Workbook

Sheet Revision Log (hidden)
A3: =+Instructions!$A$3 -> 2025 QAP Underwriting Application v1.1
A5: ="Revision Log -- This is Version "&D5 -> Revision Log -- This is Version 16 | D5: =MAX(A8:A2172) -> 16
A7: Version
A9: 0 | B9: Converted from v32. Changed title to include 'BETA'. In Section 26, added guidance about ADRR trending. In Section 16.07, if a non-zero Deferred Developer Fee is entered, a Checklist information request is triggered, to demonstrate reasonable repayability within 15 years. Removed the Development Costs entry (Section 36.02) for DDF not repaid in 15 years. Added a new 18.03 Construction Manager's Fee, with explanation. Revised 18.04 to clarify that GR/BO/BP are to be listed as related party costs if the GC is IOI. Added a new Section 27 for Reserve funding, with additional questions about non-LHC requirements. In Section 40, added an explanation that each profit / fee amount must fall below the applicable limit, for purposes of the application. Added a new Appendix 52.31 inquiring about scope of rehab.
A10: =+A9+1 -> 1 | B10: Strong password protection.
A11: 2 | B11: Instructions 1.08, 1.09, 1.10, 3.03 -- suggestions from F&J Staff unit instructions -- suggestion from F&J 2019 QAP Pool structure. First round of changes for 2019 Draft QAP.
A12: 3 | B12: LINKED To v6 of the UW Model Remaining changes for 2019 Draft QAP (March 25 version). Parish demographic data for 2019 Draft QAP.
A13: 4 | B13: LINKED To v6 of the UW Model Parish database updates: 2019 AMIs, 2019 FMRs, 2019 HOME rents. Changes in June 5 version of QAP (versus March 25 version), excluding Selection Criteria changes. Add capability for boost in 4% projects. Add capability for boost to Acquisition Basis (pending clarification from LHC). Removed Entitlement Areas item (no NHTF funds in the 2019 QAP). Where appropriate, bypass questions that are 9% only or that are specific to Other LHC Resources.
A14: 5 | B14: LINKED To v6 of the UW Model Selection Criteria changes in June 5 version of 2019 QAP. Added information message warning applicants who select non-zero boost for Acquisition Basis.
A15: 6 | B15: LINKED To v6 of the UW Model Eliminated the 2017 Import capability. Updated the 2018 import settings. Updated the QAP Reference worksheet.
A16: =+A15+1 -> 7 | B16: LINKED To v6 of the UW Model Programming assumptions in areas where QAP is unclear. Robin's testing comments. Anker's comments on eligible basis and Applicable Fraction.
A17: 8 | B17: LINKED To v6 of the UW Model Added developer self-score columns to Selection Criteria worksheet, with logic to flag self-scores that differ from the calculated scores, and with logic to identify self-scores that exceed QAP limits.
A18: 9 | B18: LINKED To v6 of the UW Model Re-converted to BLANK data status.
A19: 10 | B19: Revisions to link Reserve Adequacy to input cells, rather than hidden rows 34:35
A20: 11 | B20: LINKED To v7 of the UW Model Removed the former 34 point limit in Selection Criteria Section I. Removed the former requirement for at least one point for Security. Removed the associated Serious Problems flag. Added Section 20.08 for excess costs excludable from the cost limit computation if LHC staff agree. Added Appendix 52.28 to the Checklist. Section 40: Subtract excess costs for cost limit computation purposes. Section 41.05 Subtract excess costs for developer fee base computation purposes.
A21: 12 | B21: LINKED To v8 of the UW Model Debugged the 2018 import capability.
A22: 13 | B22: LINKED To v9 of the UW Model. Anker's comments 2019-07-07 thru 09.
A23: 14 | B23: LINKED To v10 of the UW Model. Debugged the 2018 import routine.
A24: 15 | B24: Revised formulas to correct programming errors (Anker mid July)
B25: Scoring Criteria D57 changed from "=IF(M57>=46000,L57,0)" to "=IF(M57<=46000,L57,0)"
B26: Scoring Criteria M55 changed from "=VLOOKUP($O$51,Parishes!$A$9:$AD$73,28,FALSE)" to "=VLOOKUP($O$51,Parishes!$A$9:$AD$73,29,FALSE)"
B27: Scoring Criteria M56 changed from "==VLOOKUP($O$51,Parishes!$A$9:$AD$73,29,FALSE)" to "=VLOOKUP($O$51,Parishes!$A$9:$AD$73,28,FALSE)"
B28: Development Costs C316 changed from "=IF(C315<36,J316,IF(C315<71,K316,L316))" to "=IF(OR('Project Description'!H65="Yes",'Project Description'!H68="Yes"),18%,15%)" This change eliminates the developer fee based on # of units, and replaces it with a 15% developer fee in all situations except one in which there is a NP or CHDO partner, which allows for an 18% developer fee
B29: Project Description ROW 125, added question re: whether project was located in an area which is part of a concerted community revitalization plan (necessary as a component of qualifying for points under I.B.
B30: Scoring Criteria D14 changed from "=IF('Project Description'!H134="Yes",L14,0)" to " =IF(AND('Project Description'!$H$135="Yes",'Project Description'!$H$123="Yes",'Project Description'!$H$125="Yes"),L16,0)". Added similar logic to D15 and D16.
B31: Project Description L134 changed from "=+L121+0.01" to "=+L129+0.01"
B32: Reviewer Follow Up E16 changed from "=IF('Project Description'!B528="","","Yes")" to =IF('Project Description'!H528="Yes","Yes","")
B33: Reviewer Follow Up E17 changed from "=IF('Project Description'!B548="","","Yes")" to =IF('Project Description'!H548="Yes","Yes","")
B34: Reviewer Follow Up E26 changed from =IF(OR('Project Description'!B905="",'Project Description'!B905=0),"","Yes") to =IF('Project Description'!H904="Yes","Yes","")
B35: Revised formulas to correct programming errors (Charlie July 29)
B36: Controls E157:E158 changed from 2.5 / 5 miles to 5 miles / 10 miles (QAP FAQ #9)
B37: Appendix 36 YES / NO drop-downs corrected
B38: Summary row 15 corrected to pull the self-score not the calculated score.
B39: Development Team D38 (sponsor email) unlocked.
A41: 16 | B41: Revised for 2020 PRIME -- linked to UW Model v11
B42: Added an instruction about the 'links to external sources' message that users will receive when opening the Application.
B43: Eliminated former blank PD row 126; PD rows now match v14
B44: Checklist Appendix 43 -- removed incorrect "Yes"
B45: Checklist Appendix 44 -- corrected the Yes/No formula
B46: PD M117 FFIEC non-metro median income -- updated to 2019 data
B47: Modifications to test adequacy of Surplus Cash to cover deferred developer fee (Proforma, Revenues & Expenses, and Project Description worksheets are affected)
B48: PD 165 (Funding Pool) is pre-loaded as 'New Construction General'
B49: $60M CDBG limit added; $10M CDBG per project limit added
B50: FY 2020 FMRs added to Parishes database
B53: To Do: Reveal all worksheets at start of Import routine, Hide Standard at the end.
B54: To Do: password-protect the VBA code (Anthony Allen email March 21).
B58: For Future QAPs: If NHTF funds offered, ask a question about Entitlement Areas.
B59: For Future QAPs: What to do about Op-Ex adequacy vs (a) prior audits for acquisition deals and (b) market study expenses
B60: For future QAPs: If offering NHTF / HOME / CDBG, add questions about lien position.
B63: New Programmer Lrushing@lhc.la.gov 6/1/2020
B65: Added Table of Contents for easier navigation
B66: Removed all $ so inserting rows would carry mapping with new cell references rather than hard coded
B67: Added code to open to table of contents:
B68: Private Sub Workbook_Open() Sheets("TOC").Select Range("A1").Select End Sub
B69: Added code to disable ability to add new sheet:
B70: Enable this code upon distribution Private Sub Workbook_NewSheet(ByVal Sh As Object) Application.DisplayAlerts = False Sh.Delete End Sub
B71: Added code to module to determine if sheet is protected in order to protect or unprotect:
B72: Dim ws As Worksheet Private Function SheetProtected(TargetSheet As Worksheet) As Boolean 'Function purpose: To evaluate if a worksheet is protected If TargetSheet.ProtectContents = True Then SheetProtected = True Else SheetProtected = False End If End Function Function DetermineSheetStatus(WSheet As Worksheet) If SheetProtected(ws) Then With ActiveWindow .DisplayGridlines = False .DisplayHeadings = False .DisplayHorizontalScrollBar = True .DisplayVerticalScrollBar = True .DisplayWorkbookTabs = True End With Else With ActiveWindow .DisplayGridlines = False .DisplayHeadings = True .DisplayHorizontalScrollBar = True .DisplayVerticalScrollBar = True .DisplayWorkbookTabs = True End With End If End Function
B73: Added code to each sheet to call above ^procedure and go to top of page when selected
B74: On Error Resume Next Sheets("NAME OF SHEET)").Select Range("A1").Select Set ws = Activesheet Call DetermineSheetStatus(ws)
B75: Revised and added code to module in order to hide and protect for distribution
B76: Revised and added code to module in order to unhide and unprotect for development
B77: Sub HideStd() ' ' HideStd Macro ' ' Restore worksheets to standard hidden / revealed status; hide non-user columns and rows ' Application.ScreenUpdating = False ControlSheet = "WS Controls" NumWS = Sheets(ControlSheet).Range("D1").Value Dim WSName As String Dim Hide As String Dim LastUserRow As Long LastRow = 2000 Dim LastUserCol As Long LastCol = 200 Dim LastColLtr As String For n = 1 To NumWS WSName = Sheets(ControlSheet).Cells(n + 6, 1).Value Hide = Sheets(ControlSheet).Cells(n + 6, 2).Value LastUserRow = Sheets(ControlSheet).Cells(n + 6, 3).Value LastUserCol = Sheets(ControlSheet).Cells(n + 6, 4).Value On Error Resume Next Sheets(WSName).Activate Sheets(WSName).Cells.EntireColumn.Hidden = False Sheets(WSName).Cells.EntireRow.Hidden = False If Hide = "Yes" Then Sheets(WSName).Visible = False Else: Sheets(WSName).Visible = True Sheets(WSName).Activate Sheets(WSName).Cells.EntireColumn.Hidden = False Sheets(WSName).Cells.EntireRow.Hidden = False Sheets(WSName).Range(Columns(LastUserCol), Columns(LastCol)).EntireColumn.Hidden = True Sheets(WSName).Rows("" & LastUserRow & ":" & LastRow & "").EntireRow.Hidden = True End If Next n Call sbProtectAllSheets Application.ScreenUpdating = True End Sub Sub sbProtectAllSheets() Dim pwd1 As String, pwd2 As String pwd1 = InputBox(" ") 'If pwd1 = "" Then Exit Sub pwd2 = InputBox(" ") 'If pwd2 = "" Then Exit Sub 'Check if both the passwords are identical If InStr(1, pwd2, pwd1, 0) = 0 Or _ InStr(1, pwd1, pwd2, 0) = 0 Then MsgBox "You entered different passwords. No action taken" Exit Sub End If For Each ws In Worksheets ws.Protect Password:=pwd1 Next MsgBox "All sheets Protected." Exit Sub End Sub
B79: Revised and added code to module in order to hide and protect for development
B80: Sub RevealAll() ' ' RevealAll Macro ' ' Restore all worksheets to full visibility ' ' ' Application.ScreenUpdating = False Dim ws As Worksheet Dim starting_ws As Worksheet Set starting_ws = Activesheet For Each ws In ThisWorkbook.Worksheets ws.Activate 'If ws.Visible = False Then ws.Visible = True 'End If On Error Resume Next Columns.EntireColumn.Hidden = False Rows.EntireRow.Hidden = False Next Call sbUnProtectAll starting_ws.Activate ' Application.ScreenUpdating = True End Sub Sub sbUnProtectAll() On Error GoTo ErrorOccured Dim pwd1 As String pwd1 = InputBox(" ") 'If pwd1 = "" Then Exit Sub For Each ws In Worksheets ws.Unprotect Password:=pwd1 Next MsgBox "All sheets UnProtected." Exit Sub ErrorOccured: MsgBox "Sheets could not be UnProtected - Password Incorrect" Exit Sub End Sub
B81: Added Region to Project Development row 62
B82: Inserted row 85 in Project Development and added X, Y coordinates
B83: Added =IFERROR(VLOOKUP(E82,Parishes!A10:U73,21,FALSE),"") to row M84 to handle error
B84: Inserted rows to Project Development row 159 To split federal funds and gov assist for comment section individually
B85: Inserted rows to Project Development row 160 To split federal funds and gov assist for comment section individually
B86: Inserted rows to Project Development row 161 To split federal funds and gov assist for comment section individually
B87: Inserted rows 13 and 18 in Selection Criteria
B88: Inserted rows 842 to 847 in Project Description and changed scoring numbers
B89: Inserted rows 889 to 894 in Project Description and changed scoring numbers
B90: IV. Location Characteristics Added Entertainment Facility (movie theater, bowling alley, trampoline park, laser tag, etc.) Allowed applicants to Select all that apply for a max of 15 points V. C. Project Amenities Added language to Exercise Room (must have equipment) Replaced Covered Parking with Off Street Parking Added the following new selections Patio or Balcony Free Tenant Wifi Tennis Court Courtyard with Seating Dog Park or Designated Pet Ares Open Access Multi-Purpose Tenant Activity Room Allowed applicants to Select all that apply for a max of 14 points
B91: Updated the Total Hard Costs to include the Builder Compensation on the Summary Tab. The Builder Compensation line item can then be hidden or removed from the Summary Tab since it will be included in the Total Hard Costs. The Total Hard Costs should now be the sum of the following line-items from the Development Cost Tab: • Construction Contract: Building Costs • Construction Contract: Site Work • Builder Compensation
B92: 2021 QAP Developer Fee Limit Calculation a. For Rehabilitation projects the Developer Fee will not exceed thirty percent (30%) of the rehabilitation hard cost line‐item. b. For New Construction Projects the Developer Fee will not exceed $25,000 per LIHTC unit. 13. Developer Fees: The maximum Developer Fee is the amount determined below, $1,000,000.00, or $1,500,000.00 for projects utilizing tax‐exempt bonds. • For Rehabilitation projects the Developer Fee will not exceed thirty percent (30%) of the rehabilitation hard cost line‐item. • For New Construction Projects the Developer Fee will not exceed $25,000 per LIHTC unit. c. Applications must include a Development Services Agreement. d. LHC will not allow increases to the developer fee as submitted in an application

Sheet TOC
A1: TABLE OF CONTENTS

Sheet Printing Options
A3: =+Instructions!A3 -> 2025 QAP Underwriting Application v1.1
A4: =TRIM('Project Description'!E84)&" ("&TRIM('Project Description'!E86)&" LA), "&'Project Description'!E50 -> ( LA),
B5: =COUNTA(B14:B40) -> 27 | C5: =COUNTA(C14:C40) -> 14 | D5: =COUNTA(D14:D40) -> 10 | E5: =COUNTA(E14:E40) -> 4
A6: Printing Options
B8: Using this worksheet, you can create a single PDF file containing the selected worksheets. The selected worksheets will appear in the order indicated below. The PDF file will have the filename "Exported Sheets.pdf" and will be located in the same folder as this Application tool.
B11: Select Printing Option: | C11: Option 2 | E11: An error will occur if you skip a row in Option 3
B13: Worksheets Eligible for Automated Printing Selection | C13: Option 1: Key Documents | D13: Option 2: Key User Entry Sheets | E13: Option 3: Custom Print **
B14: Summary | C14: Summary | D14: Unit Mix and Rents | E14: Syndication
B15: Selection Criteria | C15: Selection Criteria | D15: Project Description | E15: Financing Cert
B16: Checklist | C16: Checklist | D16: Development Costs | E16: Taxpayer Certification
B17: Serious Problems | C17: Serious Problems | D17: Basis Calculation | E17: App 1 Owner Info
B18: Project Description | C18: Syndication | D18: Revenues and Expenses
B19: Unit Mix and Rents | C19: Taxpayer Certification | D19: Proforma
B20: Development Costs | C20: App 1 Owner Info | D20: Development Team
B21: Basis Calculation | C21: App 2 Site Control | D21: Syndication
B22: Revenues and Expenses | C22: App 34 Debarment | D22: Taxpayer Certification
B23: Proforma | C23: App 35 Matching | D23: Financing Cert
B24: Development Team | C24: LHC-2 CEO Notification
B25: Syndication | C25: LHC-3 Developer Experience
B26: Taxpayer Certification | C26: LHC-4 Management Experience
B27: App 1 Owner Info | C27: Financing Cert
B28: App 2 Site Control
B29: App 3 Ownership History
B30: App 4 Zoning | G30: =IF(C30="","",", "&C30) -> 
B31: App 11 NP Participation
B32: App 13 NP Counsel Opinion
B33: App 34 Debarment
B34: App 35 Matching
B35: App 36 Environmental
B36: LHC-2 CEO Notification
B37: LHC-3 Developer Experience
B38: LHC-4 Management Experience
B39: Financing Cert
B40: Demand Cert
B42: ** Select the desired worksheets, and the desired sequence for printing, from the drop down lists provided in the Option 3 column.
B43: Other less common worksheets (e.g. Other Appendices) can be printed manually if desired.

Sheet Instructions
A3: 2025 QAP Underwriting Application v1.1
A4: Matches the 2025 Final QAP (approved February 14, 2025)
A5: Instructions
A7: ="Section "&E7 -> Section 1 | B7: General Instructions | C7: QAP Reference | E7: 1
A8: =+E8 -> 1.01 | B8: In the event there is a conflict between this Application and the QAP, the QAP is the governing document. | C8: =+'QAP Reference'!A6 -> II.B | E8: =+E7+0.01 -> 1.01
A9: 1.02 | B9: Note -- if your proposed transaction (a) requests bond financing and (b) does not request LIHTCs or Other LHC Resources, you may apply using the Bond Financing Application. | E9: 1.02
A10: 1.03 | B10: Applicants are advised that materials contained in applications for the LIHTC Program are subject to the requirements of the Louisiana Public Records Request law (La R.S. 44:1 et seq.), and the application materials may be viewed and copied by any member of the public. | C10: =+'QAP Reference'!A7 -> II.E | E10: =+E9+0.01 -> 1.03
A11: 1.04 | B11: Applicants are notified that any and all expenses incurred in the preparation of applications to be submitted during this round are incurred at their own risk and are subject to forfeiture. | C11: =+'QAP Reference'!A65 -> V.C.3 | E11: 1.04
A12: 1.05 | B12: It is the applicant's responsibility to notify the Corporation, in writing, of any occurrence of a reprocessing change in a Project. A reprocessing change may occur prior to delivery of Form 8609 to a Project; however, Form 8609 will be withheld until the Taxpayer submits a revised application and reprocessing fee. Following receipt of the revised application and reprocessing fee, the Corporation will complete a new legal, feasibility and viability review in order to determine any adjustment of maximum qualified basis and/or the tax credits to be allocated to the Project. Projects subject to reprocessing are at risk of credit loss if such Project fails to satisfy the minimum score or if other projects on the waiting list which are not reserved credits have higher scores. | C12: =+'QAP Reference'!A85 -> VI.C | E12: 1.05
A13: 1.06 | B13: Any Site Change may cancel any reservation, commitment or allocation of tax credits to such Project. | C13: =+'QAP Reference'!A86 -> VI.C | E13: 1.06
A14: 1.07 | B14: Applicants are advised that awarded projects are expected to proceed and be completed in accordance with the awarded application, and that the completed project must conform to the awarded application. See Section VI.D of the QAP. The Applicant/Developer must notify the Corporation of any changes to the project, including but not limited to, unit mix and development type. It is the Applicant’s responsibility to provide required public notification of any such changes. | C14: =+'QAP Reference'!A87 -> VI.C | E14: 1.07
A15: 1.08 | B15: Applications shall be evaluated using the preference and selection criteria as specifically cited in the QAP. LHC reserves the right not to reserve tax credits to any Applicant for a Project, regardless of the Project’s score, and to recapture tax credits allocated to a project prior to delivery of IRS Form 8609 upon discovery of material misrepresentations or fraudulent statements made by an applicant or upon the occurrence of a material change. In the event that the final scores of more than one Application are identical, LHC will implement the Tie‐breaking Procedures outlined in the Competitive Evaluation section of the QAP. | C15: =+'QAP Reference'!A89 -> Appendix A | E15: 1.08
A17: ="Section "&E17 -> Section 2 | B17: Using This Application Tool | E17: =+E7+1 -> 2
A19: =+E19 -> 2.01 | B19: Please do not alter the format of this Application: do not add or delete rows, do not add or delete columns, do not add or delete worksheets, do not move any worksheets, and do not re-name any worksheets. Please do not use the 'cut and paste' method anywhere within this Application (you may use the 'copy and paste' method). LHC will be using electronic methods to extract data from this Application for use in LHC's underwriting; if you have modified this Application in any way that interferes with LHC's ability to extract data for underwriting, LHC may reject the Application or, at LHC's discretion, LHC may return the Application for correction. | E19: =+E17+0.01 -> 2.01
A20: =+E20 -> 2.02 | B20: When opening this Application, you are likely to receive a message 'This workbook contains links to one or more external sources …'. If you receive this message, select 'Don't Update'; the link is to a file that LHC used during development of the Application tool. | E20: =+E19+0.01 -> 2.02
A21: =+E21 -> 2.03 | B21: Worksheets that require user entries have tabs with medium blue background at the bottom of the screen. LHC suggests that you complete these worksheets first, moving from left (Project Description) to right (Taxpayer Certification), before working on other worksheets (such as Appendices) that may be needed for your transaction. | E21: =+E20+0.01 -> 2.03
A22: =+E22 -> 2.04 | B22: Please limit your entries to cells with light blue background and dark blue bold font as shown below. If you make entries in any other cells, this may result in LHC's inability to extract data for underwriting, which may result in rejection of your Application. | E22: =+E21+0.01 -> 2.04
B23: User entry cells look like this
A24: =+E24 -> 2.05 | B24: Many user entry cells require you to select one of a fixed set of choices; this type of user entry cell will have a down arrow immediately to the right of the cell. Following is an example of this type of user entry cell: | E24: =+E22+0.01 -> 2.05
B25: Acquisition & Rehab
A26: =+E26 -> 2.06 | B26: Advisory messages appear throughout this Application in dark green font as shown below. | E26: =+E24+0.01 -> 2.06
B27: Advisory messages look like this
A28: =+E28 -> 2.07 | B28: Any messages that appear in red bold italic font indicate serious problems; any such problems must be corrected or must otherwise be addressed in the application (for example, by a letter requesting a waiver). | E28: =+E26+0.01 -> 2.07
B29: Serious problem messages look like this
A30: =+E30 -> 2.08 | B30: For narrative comment boxes (that look like the below), you can change the row height to accommodate additional explanation; see the examples below. | E30: =+E28+0.01 -> 2.08
B31: Here is an example of a comment that fits in one row.
B33: Here is an example of a much longer comment that requires multiple rows in order to display properly. Additional information provided by applicant requires extra space. Using the mouse, grab the line underneath the row number and drag that line downward to increase the row height.
A35: =+E35 -> 2.09 | B35: When there is a need to provide additional explanation beyond what will fit in this Application and its narrative comment boxes, please note that (a) Appendix 52 is one option for this type of additional explanation and that (b) there is a large narrative comment box at the end of the Project Description worksheet; the contents of this comment box will appear on the Summary worksheet. | E35: =+E30+0.01 -> 2.09
A36: =+E36 -> 2.1 | E36: =+E35+0.01 -> 2.1
A38: ="Section "&E38 -> Section 3 | B38: Project Description Worksheet | E38: =+E17+1 -> 3
A39: =+E39 -> 3.01 | B39: This worksheet contains most of the user entries to describe the Taxpayer / Applicant and the project. | E39: =+E38+0.01 -> 3.01
A40: =+E40 -> 3.02 | B40: Where appropriate, column J contains cross-references to the applicable QAP section(s). | E40: =+E39+0.01 -> 3.02
A41: =+E41 -> 3.03 | B41: Acquisition Housing Credit Rate. LHC will underwrite at the rate in effect the month prior to the application submission due date, so the credit factor is subject to modification by LHC if the credit rate entered by the applicant is different from the rate in effect the month prior to application submission for 30% value credits. LHC will use a flat 9% rate for new construction and substantial rehabilitation projects without tax-exempt bond financing. | E41: =+E40+0.01 -> 3.03
A43: ="Section "&E43 -> Section 4 | B43: Unit Mix and Rents Worksheet | E43: =+E38+1 -> 4
A44: =+E44 -> 4.01 | B44: Please note that each unit must have square footage, and number of bathrooms, at or above the LHC limit (that is, it is not acceptable to average the unit sizes). Accordingly, generally LHC expects you to include a row for each unique combination of: (1) number of bedrooms; (2) number of bathrooms; (3) square footage and (4) configuration / layout (for example, townhouse versus flat). Please also include a separate row for each staff unit. However, if the general approach outlined above would be burdensome, please contact LHC to explore whether there may be an alternative approach that will be workable for you and for LHC. | E44: =+E43+0.01 -> 4.01
A45: =+E45 -> 4.02 | B45: The Unit Type column can be used to differentiate similar types of units. Sample Unit Types might include: "2BR Flat", "2BR Townhouse", "3BR LIHTC/HOME", and "1BR PSH". | E45: =+E44+0.01 -> 4.02
A46: =+E46 -> 4.03 | B46: The Notes column will contain information in green bold font for any unit type that appears to have square footage, number of bathrooms, or rent that does not comply with applicable QAP requirements. | E46: =+E45+0.01 -> 4.03
A47: =+E47 -> 4.04 | B47: ="If there are any unit type 'flags' in the Notes column, the Checklist worksheet will contain a question numbered Appendix "&Checklist!E355&"." -> If there are any unit type 'flags' in the Notes column, the Checklist worksheet will contain a question numbered Appendix 52.13. | E47: =+E46+0.01 -> 4.04
A49: ="Section "&E49 -> Section 5 | B49: Development Costs Worksheet | E49: =+E43+1 -> 5
A50: =+E50 -> 5.01 | B50: If any red bold italicized 'serious problem messages' appear, indicating violations of QAP fee and profit limits, you will need to adjust your development costs accordingly or to submit a waiver request to LHC. | E50: =+E49+0.01 -> 5.01
A51: =+E51 -> 5.02 | B51: The section that calculates Adjusted Construction Basis subtracts amounts that LHC understands are generally excluded from construction basis. If your advisors conclude that any of the formula deductions are inappropriate for your transaction, use one of the Adjustment rows to add back amounts as appropriate. Also use the Adjustment rows to exclude other amounts as appropriate for your transaction. | E51: =+E50+0.01 -> 5.02
A52: =+E52 -> 5.03 | B52: ="Extraordinary Site Costs (as defined in the QAP), if justified by the applicant and approved by LHC, will be deducted from Total Development Cost (TDC) before computing compliance with the TDC Per Unit Limit. See Section "&F52&" of this Application." -> Extraordinary Site Costs (as defined in the QAP), if justified by the applicant and approved by LHC, will be deducted from Total Development Cost (TDC) before computing compliance with the TDC Per Unit Limit. See Section 40 of this Application. | E52: =+E51+0.01 -> 5.03 | F52: =+'Development Costs'!I231 -> 40
A54: ="Section "&E54 -> Section 6 | B54: Basis Calculation Worksheet | E54: =+E49+1 -> 6
A55: =+E55 -> 6.01 | B55: The lines titled 'Per Building Residential Area', 'Sqft of LIHTC Units', and 'Sqft of Total Units' should reflect only the square footage of residential units themselves. Do not include square footage for staff units, common areas, or Community Service Facilities. | E55: =+E54+0.01 -> 6.01
A56: =+E56 -> 6.02 | B56: If any red bold italicized 'serious problem messages' appear at the bottom of this worksheet, you will need to correct the information in the worksheet. | E56: =+E55+0.01 -> 6.02
A58: ="Section "&E58 -> Section 7 | B58: Revenues and Expenses Worksheet | E58: =+E54+1 -> 7
A59: =+E58+0.1 -> 7.1 | B59: This worksheet distinguishes between 'must-pay' expenses (that must be paid from operations regardless of availability of cash) and 'contingent' expenses (for example, expenses that are paid after year-end from excess cash). | E59: =+E58+0.01 -> 7.01
A60: =+A59+0.1 -> 7.2 | E60: =+E59+0.01 -> 7.02
A62: ="Section "&E62 -> Section 8 | B62: Other Key Worksheets (Not Requiring User Entries) | E62: =+E58+1 -> 8
A63: =+E63 -> 8.01 | B63: Proforma Worksheet. This worksheet charts revenue and expenses over time to see how a project performs financially. This worksheet does not require any user entries, but you should make sure the project has sufficient debt coverage ratios and cash flow throughout whatever compliance period applies to the funding you seek (15 years for tax credits). LHC requires a DCR of no less than 1.15 through Year 15 (exception: 1.10 DCR for Rural Housing Services (RHS) Rural Development funded properties). If a LHC funding source, such as HOME, requires a longer compliance period and the DCR is not positive through year 20, an explanation must be provided on the Summary page detailing how the owner will handle the negative cash flow so that the project remains financially viable throughout the compliance period. | E63: =+E62+0.01 -> 8.01
A64: 8.02 | B64: ="Inflation or vacancy factors in the proforma can be modified in Section "&'Project Description'!L950&" of the Project Description worksheet. Any departures from the LHC Standard factors must be justified and explained." -> Inflation or vacancy factors in the proforma can be modified in Section 28 of the Project Description worksheet. Any departures from the LHC Standard factors must be justified and explained. | E64: 8.02
A65: 8.03 | B65: Selection Criteria Worksheet. This worksheet shows the point score that your project would earn, if LHC agreed with the information you provided in this Application. | E65: 8.03
A66: 8.04 | B66: Summary Worksheet. This worksheet provides a two page overview of the project. The large comment box at the end comes from near the end of the Project Description worksheet. | E66: 8.04
A67: 8.05 | B67: Checklist Worksheet. This worksheet shows the additional information (in addition to this Application) that is needed for the proposed project. However, applicants must submit all information required under the QAP, whether or not that information is called for in the Checklist worksheet. | E67: 8.05
A68: 8.06 | B68: Serious Problems Worksheet. This worksheet shows each of the red bold italicized 'serious problem' messages in this Application. When you submit this Application, none of these message should remain (except possibly where you are requesting a waiver from LHC). | E68: 8.06
A70: ="Section "&E70 -> Section 9 | B70: Other Instructions | E70: =+E62+1 -> 9
A71: =+E71 -> 9.01 | B71: Development Team, Syndication and Taxpayer Certification Worksheets. Each of these worksheets is required to be completed. | E71: =+E70+0.01 -> 9.01
A72: 9.02 | B72: Appendices. Review the QAP, and the Checklist worksheet, to determine which Appendices should be completed and submitted for your proposed project. | E72: 9.02
A73: 9.03 | B73: LHC-2 (CEO Notification), LHC-3 (Developer Experience) and LHC-4 (Management Experience) Forms. These are required for all projects. | E73: 9.03
A74: 9.04 | B74: Financing Certification. This worksheet is to be completed, signed and notarized, to memorialize the anticipated sources and uses of funds for the project. | E74: 9.04
A75: 9.05 | B75: Demand Certification. This worksheet provides the format for a certification that the market study analyst must include in the Market Study report. | E75: 9.05
A76: 9.06 | B76: Syndication Information & Certification. This worksheet is to be completed, signed and notarized. | E76: 9.06
A77: 9.07 | B77: Ownership Information. This worksheet is to be completed, signed and notarized. | E77: 9.07
A78: 9.08 | B78: Taxpayer Application Certification. This worksheet is to be completed, signed and notarized. | E78: 9.08
E81: =+E70 -> 9 | F81: = Last Section of this sheet

Sheet Narrative
B2: =+Instructions!$A$3 & " Narrative" -> 2025 QAP Underwriting Application v1.1 Narrative
B4: Project Name & Location:
B5: ='Project Description'!E84 &" - " & 'Project Description'!E86 & ", Louisiana" -> - , Louisiana
B6: ='Project Description'!E87 &" Parish" -> Select Parish
B8: Submitted by:
B9: ='Project Description'!E36 -> 0

Sheet Controls (hidden)
A3: =+Instructions!A3 -> 2025 QAP Underwriting Application v1.1
A4: Controls
A6: General
A7: Yes
A8: No
A9: Missing
A11: Drop-Downs for Taxpayer
A13: Limited Liability Company
A14: Limited Partnership
A15: 'S' Corporation
A16: Other
A17: Missing
A19: Controlled by For-Profit
A20: Controlled by Non-Profit
A21: Missing
A23: Managing Member
A24: Manager
A25: General Partner
A26: Managing General Partner
A27: President
A28: Other
A29: Missing
A31: Drop-Downs for Funding Pools | B31: Advisory Message | C31: Per Project Cap | D31: NHTF | E31: HOME | F31: CDBG-DR | G31: Short Name | H31: Is Rural?
A32: Qualified Non‐Profit/CHDO Set-Aside | B32: Requires the material participation of a qualified non-profit organization; see the QAP for documentation requirements. | C32: =IF($H$32="No",1500000,1000000) -> 1000000 | D32: 0 | E32: 0 | F32: 0 | G32: QNP/CHDO | H32: ='Project Description'!H133 -> Missing
A33: Urban Area Pool | B33: The project must be located in EBR, Orleans, Caddo, Ouachita, Calcasieu, Lafayette, St. Tammany, or Jefferson parishes. | C33: 1500000 | D33: 0 | E33: 0 | F33: 0 | G33: Urban
A34: Rural Area Rehabilitation Pool | B34: The Rural project must be 50% or less new construction (by number of units). | C34: 1000000 | D34: 0 | E34: 0 | F34: 0 | G34: RuralRehab
A35: Rural Area New Construction Pool | B35: The Rural project must be more than 50% new construction (by number of units). | C35: 1000000 | D35: 0 | E35: 0 | F35: 0 | G35: RuralNew
A36: Choice Neighborhood Initiative CNI Set-Aside | B36: The project must be located in a CNI. | C36: 1500000 | D36: 0 | E36: 0 | F36: 0 | G36: CNI
A37: Reprocessing | B37: LIHTC will be allocated to projects that have previously received and allocation. | D37: 0 | E37: 0 | F37: 0 | G37: Reprocess
A38: Missing
A39: Urban Area Rehabilitation Pool | B39: The Urban project must be 50% or less new construction (by number of units). | C39: 1500000 | D39: 0 | E39: 0 | F39: 0 | G39: UrbanRehab
A40: Urban Area New Construction Pool | B40: The Urban project must be more than 50% new construction (by number of units). | C40: 1500000 | D40: 0 | E40: 0 | F40: 0 | G40: UrbanNew
A42: Drop-Downs for Project Type | B42: Related Lookup Category for HUD TDC Limits
A44: New Construction
A45: Acquisition & Rehab
A46: Adaptive Reuse
A47: Missing
A49: Detached | B49: Detached / Semi-Detached
A50: Detached / Semi-Detached | B50: Detached / Semi-Detached
A51: Elevator | B51: Elevator
A52: Missing | B52: Walkup
A53: Other | B53: Walkup
A54: Row | B54: Row House
A55: Row House | B55: Row House
A56: Semi-Detached | B56: Detached / Semi-Detached
A57: Walkup | B57: Walkup
A58: Walk-Up | B58: Walkup
A60: 20/50
A61: 40/60
A62: Average Income
A63: Missing
A65: Drop-Downs for Sources of Funds
A67: Fixed Rate
A68: Floating Rate
A69: Missing
A71: Interest Only
A72: P+I
A73: P+I+MIP
A74: Missing
A75: Missing
A76: Must Pay
A77: All Pmts Deferred
A78: Pay if Cash Available
A79: Other (Explain)
A81: Third Party
A82: Identity of Interest
A83: Missing
A85: Amortizing
A86: Deferred; due at maturity
A87: Forgiven at maturity
A88: Missing
A90: Permanent Hard Debt
A91: Permanent Soft Debt
A92: Grant
A93: Permanent Equity
A94: Other (Explain)
A96: Donated / Volunteer Labor
A97: Donated Materials
A98: Donated Land Value
A99: NPV of Reduced RE Taxes
A100: Other (Explain)
A102: Drop-Downs for HUD TDC Table
A104: Alexandria | B104: 7
A105: Baton Rouge | B105: 11
A106: Lafayette | B106: 15
A107: Lake Charles | B107: 19
A108: Monroe | B108: 23
A109: New Orleans | B109: 27
A110: Shreveport | B110: 31
A111: Missing | B111: 35
A113: Detached / Semi-Detached
A114: Row House
A115: Walkup
A116: Elevator
A118: Drop-Downs for Utilities
A120: Natural Gas
A121: Electric
A122: Propane
A123: Oil
A124: Other
A125: Missing
A127: Natural Gas
A128: Electric
A129: Other
A130: Missing
A132: Forced Air
A133: Hot Water
A134: Other
A135: Missing
A137: Owner
A138: Tenant
A139: Missing
A141: Drop-Downs for AMIs
A143: 120% AMI
A144: 20% AMI
A145: 30% AMI
A146: 40% AMI
A147: 50% AMI
A148: 60% AMI
A149: 70% AMI
A150: 80% AMI
A151: Not AMI Restricted
A153: Drop-Downs for Extended Affordability
A155: Until after the 35th year
A156: Until after the 40th year
A157: Until after the 45th year
A158: Missing
A160: Drop-Downs for Neighborhood Features
A162: =IF(G162="Rural",E162,C162) -> Within 1 Mile Radius | C162: Within 1 Mile Radius | E162: Within 5 Mile Radius | G162: =IF('Project Description'!H133="Yes","Rural","Not Rural") -> Not Rural
A163: =IF(G162="Rural",E163,C163) -> Within 2 Mile Radius | C163: Within 2 Mile Radius | E163: Over 5 Mile Radius
A164: No
A165: Missing
A167: Adjacent
A168: No | C168: Within 1/4 Mile Radius | E168: Within 1/2 Mile Radius | G168: =+'Project Description'!P138 -> 5
A169: Missing
A170: Within 1/2 Mile Radius
A172: Drop-Downs for Appendix 1
A174: Requested
A175: Started Construction
A176: Finished Construction
A177: 8609s
A178: Missing
A180: Drop-Downs for Appendix 2
A182: Purchase (please complete Section B below)
A183: Option to Purchase (please complete Section C below)
A184: Lease (please complete Section D below)
A185: Missing
A187: LHC Application Fee
A189: 1-4 units | B189: 100 | C189: 4
A190: 5-32 units | B190: 1000 | C190: 32
A191: 33-60 units | B191: 1500 | C191: 60
A192: 61-100 units | B192: 2500 | C192: 100
A193: Over 100 units | B193: 5000 | C193: =+C192 -> 100
A195: LHC Analysis Fee
A197: 1-4 units | B197: 100 | C197: 4
A198: 5-32 units | B198: 1000 | C198: 32
A199: 33-60 units | B199: 1500 | C199: 60
A200: 61-100 units | B200: 2500 | C200: 100
A201: Over 100 units | B201: 5000 | C201: =+C200 -> 100
A203: Drop-Downs for Appendix 36
A205: YES
A208: NO
A211: Drop-Downs for Import Tool
A213: 2018 AMEC
A214: 2017 AMEC
A215: Early 2017 AMEC
A216: Other
A218: Drop-Downs for CDBG Interest Rate
A220: 0
A221: 0.01
A222: AFR
A224: Drop-Downs for 'Other Worksheets'
A226: Not Started
A227: In Process
A228: Completed
A230: LHC Asset Management Fee
A232: 1-4 units | B232: 250 | C232: 4
A233: 5-10 units | B233: 500 | C233: 10
A234: 11-20 units | B234: 1000 | C234: 20
A235: 21-50 units | B235: 2000 | C235: 50
A236: 51-100 units | B236: 2500 | C236: 100
A237: 101 units and over | B237: 3000 | C237: =+C236 -> 100
A241: Green
A242: Green Building Basic
A243: Green Building Advanced
A244: No
A245: Missing

Sheet Project Description
A3: =+Instructions!A3 -> 2025 QAP Underwriting Application v1.1
A4: Description of the Proposed Project
A6: ="Section "&L6 -> Section 10 | B6: Project Funding Characteristics | J6: QAP Reference | L6: =+Instructions!E81+1 -> 10
A8: =+L8 -> 10.01 | B8: Tax-Exempt Bond Financing | L8: =+L6+0.01 -> 10.01
B9: Does the financing plan include tax-exempt bond financing? | H9: Missing | M9: =IF(H9="Yes","Bonds","No Bonds") -> No Bonds
B10: =IF(H9="Yes","Explain below","Skip to Section "&A23) -> Skip to Section 10.05
A12: =+L12 -> 10.02 | B12: Does your transaction include 4% ("30% PV") LIHTCs? | H12: Missing | J12: =+'QAP Reference'!A24 -> III.C | L12: =+L8+0.01 -> 10.02 | M12: =IF(H12="Yes","4% LIHTC + Bonds","") ->  | P12: =IF(M12="","",IF(AND(M23="",M30=""),M12&" only",IF(M30="",M12, M12&", "))) -> 
B13: =IF(AND(H12="Yes",H9<>"Yes"),"Error -- 4% LIHTC transactions must use Tax Exempt Bond Financing","") -> 
B14: Indicate below the appropriate housing credit rate (typically more than 3.0% and less than 4.0%). This is published monthly by the Internal Revenue Service.
B15: The housing credit rate is estimated to be: | H15: 0
B16: Comment
A18: =+L18 -> 10.03 | B18: What are the estimated costs of issuance? | H18: 0 | L18: =+L12+0.01 -> 10.03
A20: =+L20 -> 10.04 | B20: Please explain below the role of tax-exempt bond financing in the financing plan, what governmental entity is planned to be the issuer, and the current state of your discussions with the issuer. | L20: =+L18+0.01 -> 10.04
B21: Comment
A23: =+L23 -> 10.05 | B23: Does your transaction include 9% ("70% PV") LIHTCs? | H23: Missing | J23: =+'QAP Reference'!A23 -> III.B | L23: =+L20+0.01 -> 10.05 | M23: =IF(H23="Yes","9% LIHTC","") ->  | P23: =IF(M23="","",IF(AND(M12="",M30=""),M23&" only",M23&", ")) -> 
B24: =IF(AND(H23="Yes",H9="Yes"),"Error -- cannot combine 9% LIHTCs and Tax Exempt Bond Financing","") -> 
A26: =+L26 -> 10.06 | B26: Does your transaction include Other LHC Funding*? | H26: Missing | L26: =+L23+0.01 -> 10.06
B27: * HOME, NHTF or CDBG funding from LHC or from another State Agency
B28: =IF(H26="Yes","Note: The " & Instructions!A3 & " does not offer any HOME, NHTF or CDBG funding","") -> 
A30: =+L30 -> 10.07 | B30: LHC Funding Type: | D30: =P23&P12&M30 ->  | L30: =+L26+0.01 -> 10.07 | M30: =IF(H26="Yes","LHC Funds","") -> 
B32: =IF(AND(H26="No",H23="No",H12="No"),"You may use the Bond Financing Application instead of this Application","") ->  | M32: =IF(OR(H23="Yes",H26="Yes"),"Pool","Non Pool") -> Non Pool | P32: Pool = uses 9% LIHTCs or Other LHC Funds
A34: ="Section "&L34 -> Section 11 | B34: Characteristics of The Applicant | J34: QAP Reference | L34: =+L6+1 -> 11
A36: =+L36 -> 11.01 | B36: Taxpayer Name: | L36: =+L34+0.01 -> 11.01
B37: Taxpayer Address:
B38: City, State & Zip:
B39: Taxpayer Contact*:
B40: Phone:
B41: Email
B42: Federal Tax ID / SSN:
B43: Taxpayer is:
B44: Taxpayer is a:
B45: Controlling Principal Name:
B46: Controlling Principal is the:
B48: * This person will be LHC's single point of contact for the taxpayer / applicant. Please be sure that this person will be a good choice to respond to any questions from LHC during underwriting.
A50: =+L50 -> 11.02 | B50: Developer / Sponsor | J50: Glossary | L50: =+L36+0.01 -> 11.02
B51: Address:
B52: City, State & Zip:
B53: Does the Developer / Sponsor meet the requirements of QAP V.C.1? | H53: Missing | J53: =+'QAP Reference'!A62 -> IV.C.1
B54: Is the Developer a New Developer as defined in the QAP? | H54: Missing | J54: =+'QAP Reference'!A63 -> IV.C.1 .e
B55: =IF(H54="Yes","Note that, as a New Developer, you are only eligible to receive an award of tax credits for one project in this funding cycle.","") -> 
B57: Comment
B59: Are you requesting credits for any other projects in this funding cycle? | H59: Missing | J59: II.B
B60: =IF(H59="Yes","No single developer will be awarded credits in excess of $3,000,000","") -> 
B62: Comment
A64: =+L64 -> 11.03 | B64: Is there an Identity of Interest between the Developer and the Builder? | H64: Missing | J64: Glossary; "Developer Fee Base" | L64: =+L50+0.01 -> 11.03
A66: =+L66 -> 11.04 | B66: Is any member of the proposed project team "not in good standing" with the LHC, as defined in the QAP? | H66: Missing | J66: =+'QAP Reference'!A66 -> V.C.3 | L66: =+L64+0.01 -> 11.04
B68: Comment
A70: =+L70 -> 11.05 | B70: Qualified Non-Profit. Does the Applicant evidence material participation of a Qualified Non-Profit Organization (as defined in the Glossary)? If so, an information request will appear on the Checklist worksheet. | H70: Missing | J70: ='QAP Reference'!A9&"; also Glossary" -> II.A; also Glossary | L70: =+L66+0.01 -> 11.05
B71: =IF(H70="Yes","Consider applying in the nonprofit/CHDO funding pool","") ->  | M71: =IF(H70="Yes","Nonprofit","") -> 
A73: =+L73 -> 11.06 | B73: CHDO. Is the Applicant a CHDO (Community Housing Development Organization) that (a) meets the definition in the Glossary and (b) is certified as a CHDO by the LHC? If so, an information request will appear on the Checklist worksheet. | H73: Missing | J73: ='QAP Reference'!A10&"; also Glossary" -> II.A; also Glossary | L73: =+L70+0.01 -> 11.06 | O73: commitments
B74: =IF(H73="Yes","Consider applying in the nonprofit/CHDO funding pool","") ->  | M74: =IF(H73="Yes","CHDO","") -> 
A76: =+L76 -> 11.07 | B76: Management Agent | L76: =+L73+0.01 -> 11.07
B77: Street Address:
B78: City, State, Zip:
A80: =+L80 -> 11.08 | B80: Does the management agent have an identity of interest with the applicant or with the developer? | H80: Missing | L80: =+L76+0.01 -> 11.08
A82: ="Section "&L82 -> Section 12 | B82: Characteristics of The Project | J82: QAP Reference | L82: =+L34+1 -> 12
A84: =+L84 -> 12.01 | B84: Project Name: | L84: =+L82+0.01 -> 12.01
B85: Street Address:
B86: City:
B87: Parish: | E87: Select | G87: Region: | H87: =IF(OR(ISERROR(M87),M87="",M87=0),"Not found - please select Parish",M87) -> Not found - please select Parish | K87: 1 | M87: =IFERROR(VLOOKUP($E$87,Parishes!$A$10:$X$73,22,FALSE),"") ->  | Q87: =VLOOKUP(E87,Parishes!A10:W73,2,FALSE) ->  | R87: 50% AMI for the Parish
B88: Zip Code:
B89: MSA: | E89: =IF(OR(ISERROR(M89),M89=0),"Not located in an MSA",IF(M89="","Not found - Please select a Parish above",M89)) -> Not found - Please select a Parish above | M89: =IFERROR(VLOOKUP(E87,Parishes!A10:W73,21,FALSE),"") ->  | Q89: =VLOOKUP(E87,Parishes!A10:W73,20,FALSE) ->  | R89: 100% AMI for the MSA
B90: Coordinates: | D90: X: | G90: Y:
A92: =+L92 -> 12.02 | B92: Is the entire project located on a single site? | H92: Missing | L92: =+L84+0.01 -> 12.02
B93: =IF(H92="Yes","","The Checklist worksheet will include a question.") -> The Checklist worksheet will include a question.
A95: =+L95 -> 12.03 | B95: What is the primary development type? | H95: Missing | L95: =+L92+0.01 -> 12.03
B96: Will any new construction take place? | H96: Missing
B97: Percentage of new construction (by # of units*) | H97: Missing | M97: =IF(H97>50%,S178,R178) -> UrbanNew
B98: * Number of new construction units in the project ÷ number of total units in the project
A100: =+L100 -> 12.04 | B100: Will any existing buildings be acquired? | H100: Missing | L100: =+L95+0.01 -> 12.04
B101: Will any existing residential buildings be acquired? | H101: Missing
B102: Will any existing non-residential buildings be acquired? | H102: Missing
B103: Will any rehabilitation take place? | H103: Missing
B104: Will Substantial Rehabilitation take place? | H104: Missing
B105: Will any historic rehabilitation take place? | H105: Missing
A107: =+L107 -> 12.05 | B107: Does the purchase price of the real estate exceed 500K? | H107: Missing | J107: =+'QAP Reference'!A82 -> IV.B.6 | L107: =+L100+0.01 -> 12.05
B108: Will Acquisition Cost of buildings be included in basis? | H108: Missing | J108: =+'QAP Reference'!A82 -> IV.B.6
A110: =+L110 -> 12.06 | B110: Will any existing rental housing buildings be acquired? | H110: Missing | L110: =+L107+0.01 -> 12.06
B111: If so, are the seller and purchaser Related Persons? | H111: Missing | J111: ='QAP Reference'!A60&"; also Glossary" -> IV.B.2; also Glossary
A113: =+L113 -> 12.07 | B113: Is this an infill project (as defined in the QAP)? | H113: Missing | J113: Glossary | L113: =+L110+0.01 -> 12.07
B114: Is the project located in a Special Flood Hazard Area? | H114: Missing | J114: =+'QAP Reference'!A49 -> IV.A.13
B115: Is the project in a levee protected area? | H115: Missing | J115: =+'QAP Reference'!A49 -> IV.A.13
A117: =+L117 -> 12.08 | B117: What is the primary building type for this project? | H117: Missing | L117: =+L113+0.01 -> 12.08
B118: Does the project include other building types as well? | H118: Missing
A120: =+L120 -> 12.09 | B120: In which census tract is the project primarily located? | H120: Missing | L120: =+L117+0.01 -> 12.09
B121: Does any part of the project lie outside this census tract? | H121: Missing
B122: If so, what % of the units are in this census tract? | H122: 0
B123: Median income of the primary census tract | H123: Missing | J123: =+'QAP Reference'!A20 -> II.C | M123: 56600 | N123: FFIEC non-metro 2021 median income
B124: Median income of the MSA | H124: =IFERROR(IF(Q89=0,M123,Q89),"Parish required on Row 87") -> Parish required on Row 87 | M124: =+H123/H124 ->  | N124: (Census Tract income as % of MSA)
B125: Median income of the Parish | H125: =IFERROR(Q87*2,"Parish required on Row 87") -> Parish required on Row 87 | M125: =+H123/H125 ->  | N125: (Census Tract income as % of Parish)
A127: =+L127 -> 12.1 | B127: Is any part of the project located in: | L127: =+L120+0.01 -> 12.1
B128: … a Difficult Development Area? | H128: Missing | J128: Glossary
B129: … a Qualified Census Tract? | H129: Missing | J129: Glossary
B130: … a Federally recognized or State recognized Tribal Organization? | H130: Missing | J130: Glossary
B131: … a Choice Neighborhood Initiative census tract? | H131: Missing
B132: … an area part of a Concerted Community Revitalization Plan? | H132: Missing | J132: Glossary
A133: =+L133 -> 12.11 | B133: Is this a Rural Area Project, as defined in the QAP? | H133: Missing | J133: Glossary | L133: =+L127+0.01 -> 12.11
B134: =IF(H133="Yes","Note that there are rural set-asides within the Rehab and NC funding pools","") ->  | M134: =IF(H133="Yes","Rural","") -> 
A136: =+L136 -> 12.12 | B136: Is the project located within an incorporated area (town, city)? | H136: Missing | L136: =+L133+0.01 -> 12.12
B137: If so, what is the population of the incorporated area? | H137: Missing
B138: Is the project located in a Urban Area? | H138: Missing | M138: =IF(H138="Yes","Urban Area",IF(H139="Yes","Small Town or City",IF(H133="Yes","Rural",""))) ->  | P138: =IF(M138="Dense Urban Area",1,IF(M138="Small Town or City",2,IF(M138="Other Incorporated",3,IF(M138="Rural",4,5)))) -> 5 | Q138: =IF(P138=6,"Error -- programming problem","") -> 
B139: Is the project located in a Town or City with a population of 15,000 or less? | H139: Missing | J139: =+J138 -> 0
A141: =+L141 -> 12.13 | B141: Is the property a Distressed Property, as defined in the QAP (RD, HUD or PHA)? | H141: Missing | J141: Glossary | L141: =+L136+0.01 -> 12.13
A142: 12.14 | B142: Is this a Redevelopment Property, as defined in the QAP? | H142: Missing | J142: Glossary | L142: =+L141+0.01 -> 12.14
A143: 12.15 | B143: Is the property an Owner Occupied Property with Development Plan of Action, as defined in the QAP? | H143: Missing | J143: Glossary | L143: 12.15
A144: 12.16 | B144: Is this an Existing LIHTC Project, as defined in the QAP? | H144: Missing | L144: 12.16 | M144: =IF(H144="no","","IF yes please compete the Existing LHC Property Tab") -> IF yes please compete the Existing LHC Property Tab | Q144: =H144 -> Missing
A145: 12.17 | B145: Is this a rehabilitation of existing USDA, or Federally Funded project? This would include (for example) any project receiving Section 8, RD Rental Assistance, HOME, CDBG, or public housing funding; or that has a mortgage loan with a federally subsidized interest rate. | H145: Missing | L145: 12.17
A146: 12.18 | B146: Is this a rehab of an existing non-historic residential building? | H146: Missing | L146: 12.18
A147: 12.19 | B147: Does this project constitute Blighted housing remediation and/or replacement, as defined in the QAP? | H147: Missing | J147: Glossary | L147: 12.19
A148: 12.2 | B148: Is this a Rehab Infill / Scattered Site Project, as defined in the QAP? | H148: Missing | L148: 12.2
A149: 12.21 | B149: Is this Preservation of Residential Historic Property, as defined in the QAP? | H149: Missing | L149: 12.21
A150: 12.22 | B150: Is this an Existing Federally Funded Project with HAP Contract, or USDA with PBRA, as defined in the QAP? | H150: Missing | L150: 12.22
A151: 12.23 | B151: Is this a New Construction Infill / Scattered Site Project, as defined in the QAP? | H151: Missing | L151: 12.23
A152: 12.24 | B152: Is this a Homeownership project, as defined in the QAP? | H152: Missing | J152: Glossary | L152: 12.24
A154: =+L154 -> 12.25 | B154: Does the Taxpayer agree to give preference to Veterans, Disabled and Elderly persons on the PHA waiting list if they satisfy the requirements of the Project’s Management and/or Operating Plan? | H154: Missing | J154: =+'QAP Reference'!A13 -> IV.A.2.a | L154: =+L152+0.01 -> 12.25
B155: =IF(H154="Yes","",IF(H154="Missing","","Error -- the QAP requires this preference for PHA waiting list applicants")) -> 
A157: =+L157 -> 12.26 | B157: Is this a Preservation Property, as defined in the QAP? | H157: Missing | J157: VII.D, Glossary | L157: =+L154+0.01 -> 12.26
B158: =IF(AND(H157="Yes",H95=Controls!A44),"Note: This is a New Construction property; explain why you believe it is eligible as a Preservation Property under the QAP.","") -> 
M159: =IF(H157="Yes","Preservation","") -> 
A161: =+L161 -> 12.27 | B161: Is this a Single Room Occupancy (SRO) Project, as defined in the QAP? | H161: Missing | J161: =+'QAP Reference'!A72 -> IV.D | L161: =+L157+0.01 -> 12.27
B162: Is this a Project Reallocated Credits Based on Housing Discrimination, as defined in the QAP? | H162: Missing | J162: =+'QAP Reference'!A73 -> IV.D
A164: =+L164 -> 12.28 | B164: Does the project currently receive federal funds and/or receive insurance under a federal program? | H164: Missing | J164: =+'QAP Reference'!A80 -> IV.A | L164: =+L161+0.01 -> 12.28
B165: Comment
B166: =IF(AND(B165="",H164="Yes"),"An explanation is required; the Checklist will include an information request.","") -> 
B168: Will HUD or RD housing assistance, or other government assistance, be provided to the project? | H168: Missing
B169: Comment
B170: =IF(AND(B169="",H168="Yes"),"An explanation is required; the Checklist will include an information request.","") -> 
A172: =+L172 -> 12.29 | B172: Is this a PHA sponsored project? | H172: Missing | J172: Glossary | L172: =+L164+0.01 -> 12.29
A174: ="Section "&L174 -> Section 13 | B174: Selection of Funding Pool; Requests for Funding Other Than LIHTCs | J174: QAP Reference | L174: =+L82+1 -> 13
B175: =IF(OR(H23="Yes",H26="Yes"),"Complete this Section","Skip to Section "&L199) -> Skip to Section 14 | M175: Logic to identify for which pool(s) this project may be eligible
A177: =+L177 -> 13.01 | B177: For which funding pool are you applying? | H177: Missing | J177: ='QAP Reference'!A11 -> II.A | L177: =+L174+0.01 -> 13.01 | M177: =MATCH(H177,Controls!A32:A36,0) -> 
B178: =IF(ISNA(INDEX(Controls!A32:C36,M177,2))=TRUE,"",INDEX(Controls!A32:C36,M177,2)) ->  | M178: =IF(Q180=0,"",IF(Q180<4,Q178,IF(Q180=4,R178,IF(Q180<8,Q178&" and "&R178,IF(Q180=8,S178,IF(Q180<12,Q178&" and "&S178,IF(Q180=12,R178&" and "&S178,Q178&", "&R178&" and "&S178))))))) -> UrbanRehab | Q178: =+Controls!G32 -> QNP/CHDO | R178: =+Controls!G39 -> UrbanRehab | S178: =+Controls!G40 -> UrbanNew | T178: =+Controls!G34 -> RuralRehab
B179: =IF(H177<>"General","",IF('Project Description'!M178="","","You selected the General pool, but your proposed project likely is eligible for "&M178&"; please consider pool selection carefully.")) ->  | M179: =IF(M71<>"",M71,IF(M74<>"",M74,"")) ->  | N179: =IF(M97=R178,R178,"") ->  | O179: =IF(M97=S178,S178,"") -> UrbanNew
M180: =IF(M179="",0,1) -> 0 | N180: =IF(N179="",0,2) -> 0 | O180: =IF(O179="",0,4) -> 4 | P180: =IF(P179="",0,8) -> 0 | Q180: =SUM(M180:P180) -> 4
A181: =+L181 -> 13.02 | B181: National Housing Trust Fund (NHTF) | L181: =+L177+0.01 -> 13.02 | M181: =INDEX(Controls!A32:D36,M177,4) ->  | N181: NHTF available in selected pool
B182: =IF(ISNA(IF(M181=0,"No NHTF funds are available for award to projects in the pool you selected.",IF(M184=0,"NHTF funds are not available to CHDOs or to projects in Entitlement Areas.","This project may apply for up to "&TEXT(M182,"#,##0")&" per project in NHTF funds.")))=TRUE,"",IF(M181=0,"No NHTF funds are available for award to projects in the pool you selected.",IF(M184=0,"NHTF funds are not available to CHDOs or to projects in Entitlement Areas.","This project may apply for up to "&TEXT(M182,"#,##0")&" per project in NHTF funds."))) ->  | M182: 0 | N182: NHTF Per Project Cap
B183: Amount of NHTF funds requested: | H183: 0 | M183: 0 | N183: If CHDO
B184: =IF(H183<0,"Negative amount not allowed",IF(H183>M184,"Exceeds maximum allowable amount","")) ->  | M184: =IF(H73="Yes",0,M182) -> 0 | N184: Per Project Cap for This Project
B185: =IF(H183=0,"","Note that any project receiving NHTF will require Environmental Review which can take up to 120 days to complete.") -> 
A187: =+L187 -> 13.03 | B187: HOME Investment Partnership Program Funds (HOME) | L187: =+L181+0.01 -> 13.03 | M187: =INDEX(Controls!A32:E36,M177,5) ->  | N187: HOME available in selected pool
B188: =IF(ISNA(IF(M187=0,"No HOME funds are available for award to projects in the pool you selected.",IF(H73<>"Yes","HOME funds are available only to LHC-certified CHDOs.","CHDO applicants in this pool may apply for up to "&TEXT(M182,"#,##0")&" per project in HOME funds.")))=TRUE,"",IF(M187=0,"No HOME funds are available for award to projects in the pool you selected.",IF(H73<>"Yes","HOME funds are available only to LHC-certified CHDOs.","CHDO applicants in this pool may apply for up to "&TEXT(M182,"#,##0")&" per project in HOME funds."))) ->  | M188: 0 | N188: NHTF Per Project Cap
B189: Amount of HOME funds requested: | M189: =IF(H73<>"Yes",0,M188) -> 0 | N189: Per Project Cap for This Project
B190: =IF(H189<0,"Negative HOME amount not allowed",IF(H189>M190,"HOME exceeds maximum allowable amount","")) -> 
B191: =IF(H189=0,"","Note that any project receiving HOME funding will require Environmental Review which can take up to 120 days to complete.") -> 
A193: =+L193 -> 13.04 | B193: CDBG Disaster Recovery Funds (CDBG-DR) | L193: =+L187+0.01 -> 13.04 | M193: =INDEX(Controls!A32:F36,M177,6) ->  | N193: HOME available in selected pool
B194: =IF(ISNA(IF(M193=0,"No CDBG-DR funds are available for award to projects in the pool you selected.","Applicants in this pool may apply for up to "&TEXT(M182,"#,##0")&" per project in CDBG-DR funds."))=TRUE, "",IF(M193=0,"No CDBG-DR funds are available for award to projects in the pool you selected.","Applicants in this pool may apply for up to "&TEXT(M182,"#,##0")&" per project in CDBG-DR funds.")) ->  | M194: 0 | N194: NHTF Per Project Cap
B195: Amount of CDBG-DR funds requested: | M195: =+M194 -> 0 | N195: Per Project Cap for This Project
B196: =IF(H195<0,"CDBG negative amount not allowed",IF(H195>M195,"CDBG exceeds maximum allowable amount","")) -> 
B197: =IF(H195=0,"","Note that any project receiving CDBG-DR funding will require Environmental Review which can take up to 120 days to complete.") -> 
A199: ="Section "&L199 -> Section 14 | B199: =IF(H9="YES","Requests for 4% LIHTCs","Requests for 9% LIHTCs") -> Requests for 9% LIHTCs | J199: QAP Reference | L199: =+L174+1 -> 14
B200: =IF(H23="Yes","Complete this Section","Skip to Section "&L215) -> Skip to Section 15
A202: =+L202 -> 14.01 | B202: ="The LIHTC Per Project Cap for the "&TRIM(H177)&" pool is:" -> The LIHTC Per Project Cap for the Missing pool is: | H202: =IF(ISNA(INDEX(Controls!A32:C36,M177,3))=TRUE,0,INDEX(Controls!A32:C36,M177,3)) -> 0 | J202: =+'QAP Reference'!A12 -> II.B | L202: =+L199+0.01 -> 14.01
A204: =+L204 -> 14.02 | B204: Credits requested | L204: =+L202+0.01 -> 14.02
B205: =IF(ISNA(IF(H204>H202,"LIHTCs cannot exceed the cap for the "&H177&" pool",""))=TRUE,"",IF(H204>H202,"LIHTCs cannot exceed the cap for the "&H177&" pool","")) -> 
A207: =+L207 -> 14.01 | B207: The new construction / rehabilitation housing credit rate will be: | H207: 0.09 | L207: =+L199+0.01 -> 14.01
B208: If your 9% LIHTC transaction will include acquisition ("4%") credits, you will need to indicate the appropriate housing credit rate (typically more than 3.0% and less than 4.0%). This is published monthly by the Internal Revenue Service.
A209: =+L209 -> 14.02 | B209: The acquisition housing credit rate is estimated to be: | H209: 0 | L209: =+L207+0.01 -> 14.02
B210: Comment
A212: =+L212 -> 14.03 | B212: LIHTC Set-Aside Election | H212: Missing | L212: =+L209+0.01 -> 14.03
B213: =IF(H212<>"Income Averaging","",M213) ->  | M213: When you complete the Unit Mix and Rents worksheet, remember to specify LIHTC units with income restrictions at 70% AMI and/or 80% AMI. The Income Average for the project will be shown toward the bottom of the Unit Mix and Rents worksheet.
A215: ="Section "&L215 -> Section 15 | B215: Basis Boost | J215: QAP Reference | L215: =+L199+1 -> 15
B216: =IF(OR(H12="Yes",H23="Yes"),"Complete this Section","Skip to Section "&L228) -> Skip to Section 16
A218: =+L218 -> 15.01 | B218: Indicate below any Basis Boost that you are proposing: | H218: Missing | J218: =+'QAP Reference'!A19 -> II.C | L218: =+L215+0.01 -> 15.01 | M218: =IF(OR(H219<>0,H220<>0),"Boost","No Boost") -> No Boost
B219: Boost for Construction Basis | H219: 0 | M219: =IF(H23="Yes","9% Project",IF(H12="Yes","4% Project","No LIHTCs")) -> No LIHTCs
B220: Boost for Acquisition Basis | H220: 0
B221: =IF(H220=0,"","LHC advises that Acquisition Basis is not eligible for boost. Be sure to explain (in your Checklist response) why you propose boost for Acquisition Basis.") -> 
B222: =IF(M219<>"9% Project","",IF(H219<30.1%,"","Error -- Proposed boost % for 9% Project must be 30% or less")) -> 
B223: =IF(M219<>"4% Project","",IF(H219=0%,"","Error -- Only Projets with competitive LIHTCs may qualify for a 30% basis boost")) -> 
B224: =IF(M218="Boost","The Checklist worksheet will include an information request regarding Basis Boost.","") -> 
B226: =IF(AND(M218="Boost",H92="No"),M226,"") ->  | M226: You indicated that this is a multi-site project and that you are applying for a Basis Boost. Note that 100% of the project sites must qualify for the Basis Boost.
A228: ="Section "&L228 -> Section 16 | B228: Project Schedule | J228: QAP Reference | L228: =+L215+1 -> 16
B230: A. SITE | H230: Estimated Date
A231: =+L231 -> 16.01 | C231: Option/Contract | L231: =+L228+0.01 -> 16.01
A232: =+L232 -> 16.02 | C232: Site Acquisition | L232: =+L231+0.01 -> 16.02
A233: =+L233 -> 16.03 | C233: Zoning Approval | L233: =+L232+0.01 -> 16.03
A234: =+L234 -> 16.04 | C234: Site Analysis | L234: =+L233+0.01 -> 16.04
A235: =+L235 -> 16.05 | C235: Environmental Clearance | L235: =+L234+0.01 -> 16.05
B237: B. FINANCING
B238: 1. Construction Loan / Interim Financing
A239: =+L239 -> 16.06 | C239: Loan Application | L239: =+L235+0.01 -> 16.06
A240: =+L240 -> 16.07 | C240: Conditional Commitment | L240: =+L239+0.01 -> 16.07
A241: =+L241 -> 16.08 | C241: Firm Commitment | L241: =+L240+0.01 -> 16.08
B242: 2. Permanent Loan
A243: =+L243 -> 16.09 | C243: Loan Application | L243: =+L241+0.01 -> 16.09
A244: =+L244 -> 16.1 | C244: Conditional Commitment | L244: =+L243+0.01 -> 16.1
A245: =+L245 -> 16.11 | C245: Firm Commitment | L245: =+L244+0.01 -> 16.11
B246: 3. Other Loans and Grants #1
A247: =+L247 -> 16.12 | C247: Type and Source | L247: =+L245+0.01 -> 16.12
A248: =+L248 -> 16.13 | C248: Application | L248: =+L247+0.01 -> 16.13
A249: =+L249 -> 16.14 | C249: Award | L249: =+L248+0.01 -> 16.14
B250: 4. Other Loans and Grants #2
A251: =+L251 -> 16.15 | C251: Type and Source | L251: =+L249+0.01 -> 16.15
A252: =+L252 -> 16.16 | C252: Application | L252: =+L251+0.01 -> 16.16
A253: =+L253 -> 16.17 | C253: Award | L253: =+L252+0.01 -> 16.17
B254: 5. Other Loans and Grants #3
A255: =+L255 -> 16.18 | C255: Type and Source | L255: =+L253+0.01 -> 16.18
A256: =+L256 -> 16.19 | C256: Application | L256: =+L255+0.01 -> 16.19
A257: =+L257 -> 16.2 | C257: Award | L257: =+L256+0.01 -> 16.2
A259: =+L259 -> 16.21 | B259: C. PLANS AND SPECS, WORKING DRAWINGS | L259: =+L257+0.01 -> 16.21
A261: =+L261 -> 16.22 | B261: D. INITIAL CLOSING AND TRANSFER OF PROPERTY | L261: =+L259+0.01 -> 16.22
... 632 more rows

Sheet QAP Reference (hidden)
A3: =+Instructions!A3 -> 2025 QAP Underwriting Application v1.1
A5: QAP References
A6: II.B | B6: QAP is the governing document
A7: II.E | B7: LA Public Records Law applies
A9: II.A | B9: Discusses Qualified Non-Profit
A10: II.A | B10: Discusses CHDO
A11: II.A | B11: Discusses funding pools
A12: II.B | B12: Discusses LIHTC Per Project caps (by pool)
A13: IV.A.2.a | B13: Discusses required priority for certain public housing waiting list applicants
A14: NA | B14: Discusses National Housing Trust Fund
A15: Appendix C.N. | B15: Discusses HOME funds
A16: Appendix C.N. | B16: Discusses CDBG-DR funds
A17: II.B | B17: LIHTC Per-Developer Cap
A19: II.C | B19: Discusses Basis Boost
A20: II.C | B20: Discusses census tract median income data
A22: III | B22: Application Process requirements must be followed
A23: III.B | B23: Processing for 9% Housing Credit applications
A24: III.C | B24: Processing for 4% Housing Credit applications
A25: III.D | B25: LHC Fee schedule
A26: IV.D | B26: Requirements related to Pro Forma Cash Flows
A27: IV.D.1 | B27: Revenue and expense trending rates
A28: IV.D.2 | B28: Required debt service coverage ratios
A29: IV.D.3 | B29: Allowed Return on Taxpayer Capital
A30: IV.D.4 | B30: Cash flow note (for acquisition of existing project)
A31: IV.D.5 | B31: Minimum vacancy loss rate
A32: IV.D.6 | B32: Minimum annual Reserve deposit
A33: IV.D.9 | B33: Minimum operating expense level
A34: IV.D.12 | B34: Developer certification of sources and uses
A36: IV.A.1 | B36: Threshold Requirement: Resiliency Construction Requirements for Tier 1 & Tier 2 Parishes
A37: IV.A.2 | B37: Threshold Requirement: Resiliency Standards (New Construction Only):
A38: IV.A.3 | B38: Threshold Requirement: 30% AMI and Target Population:
A39: IV.A.4 | B39: Threshold Requirement: Site Control
A40: IV.A.5 | B40: Threshold Requirement: Zoning
A41: IV.A.6 | B41: Threshold Requirement: Infrastructure
A42: IV.A.7 | B42: Threshold Requirement: Environmental Review
A43: IV.A.8 | B43: Threshold Requirement: Negative Neighborhood Features
A44: IV.A.9 | B44: Threshold Requirement: Taxpayer Agreement re Tenant Referrals
A45: IV.A.10 | B45: Threshold Requirement: Minimum Internet / Cable Requirements
A46: IV.B.4 | B46: Threshold Requirement: Amenities: On-site laundry or washers and dryers hookups installed
A47: IV.A.11 | B47: Threshold Requirement: Energy Efficiency
A48: IV.A.12 | B48: Threshold Requirement: Design Features
A49: IV.A.13 | B49: Threshold Requirements: Floodplain-related requirements
A50: IV.A.14 | B50: Threshold Requirement: Rehabilitation Projects
A51: IV.B.5 | B51: Threshold Requirement: Capital Needs Assessment
A52: IV.A.15 | B52: Threshold Requirement: Historic Rehabilitation Projects
A53: IV.A.16 | B53: Threshold Requirement: Projects with Federal Funds or Insurance:
A54: IV.A.17 | B54: Threshold Requirement: Legal Description of Project Property Site:
A55: IV.A.18 | B55: Threshold Requirement: Minimum Score
A56: IV.A.19 | B56: Threshold Requirement: LIHTC Compliance Training
A57: IV.A.20 | B57: Threshold Requirement: Eviction Prevention/Low Barrier Tenant Screening:
A58: IV.A.21 | B58: Threshold Requirement: Development Wi-Fi:
A59: IV.B.1 | B59: Audited Financials (acquisition of existing projects)
A60: IV.B.2 | B60: Requirements if seller and purchaser are Related Persons
A61: IV.B.3 | B61: Ten Year Title History
A62: IV.C.1 | B62: Eligibility criteria for Developers
A63: IV.C.1 .e | B63: Limitation for New Developers
A64: V.C.2 | B64: Eligibility criteria for Management Agents
A65: V.C.3 | B65: LHC has no liability for applicants' costs of submission
A66: V.C.3 | B66: Discussion of participants 'not in good standing' with LHC
A67: III.A | B67: Local Community Notification
A68: Appendix B | B68: Minimum Square Footage / Bathroom Requirements
A69: IV.D | B69: Maximum Development Cost Requirements
A70: IV.D | B70: Allows Extraordinary Site Costs to be excluded from the TDC limit computation
A71: IV.D | B71: Allows Community Facilities and Community Service Facilities to be excluded from the TDC limit computation
A72: IV.D | B72: SRO Project
A73: IV.D | B73: Anti-discrimination project
A74: Appendix B | B74: Construction and Design Standards
A75: Appendix B | B75: Project Amenities
A76: IV.D | B76: Fee and profit limits
A77: IV.D | B77: Development Services Agreement
A78: IV.D | B78: Discusses equipment owned by Developer, Builder or related party
A79: IV.D | B79: Discusses limits to builder compensation, when a small number of subcontractors are responsible for a large percentage of construction cost
A80: IV.A | B80: Discusses projects receiving federal financing / assistance
A81: V.H NA | B81: Financing commitments
A82: IV.B.6 | B82: Appraisal requirements for value of acquired real estate
A84: VI.A | B84: Tenant Selection Plan
A85: VI.C | B85: Applicant responsible to notify LHC of any material change
A86: VI.C | B86: No site change permitted
A87: VI.C | B87: Awarded projects are expected to be constructed as described
A89: Appendix A | B89: Disclaimer regarding Selection Criteria scoring
A90: Appendix A.I.A.ii | B90: Geographic Diversity - NA
A91: Appendix A.I.B | B91: Redevelopment Project
A92: Appendix A.II.A.i | B92: Selection Criterion for Special Needs Households
A93: Appendix A.II.A.ii | B93: Selection Criterion for Elderly Households
A94: Appendix A.III.A | B94: Selection Criterion for Extended Affordability Agreement
A95: Appendix A.III.B | B95: Selection Criterion for Increased Unit Affordability - NA
A96: Appendix A.III.B(i)(a) | B96: Selection Criterion for Non-PSH Units Affordable At or Below 30% AMI - NA
A97: Appendix A.III.B(i)(b) | B97: Selection Criterion for PSH Units - NA
A98: Appendix A.III.D | B98: Selection Criterion for Additional Financial Support
A99: Appendix A.IV.A | B99: Selection Criterion for Positive Neighborhood Features
A100: Appendix A.V.A | B100: Selection Criterion for Community Facilities
A101: Appendix A.V.B | B101: Selection Criterion for Optional Amenities
A102: Appendix A.V.B.iv | B102: Selection Criterion for Green Building - NA
A103: Appendix A.V.C | B103: Selection Criterion for Project Amenities
A104: Appendix A.V.D | B104: Selection Criterion for Additional Accessibility
A105: Appendix A.V.E | B105: Selection Criterion for On-Site Security
A106: Appendix A.V.F | B106: Selection Criterion for HUD Defensible Space
A107: Appendix A.V.G | B107: Selection Criterion for Resiliency Standards
A108: Appendix A.V.H | B108: Threshold Requirment: for HUD Eviction Prevention and Low Barrier Tenant Screening
A109: Appendix A.V.I | B109: Selection Criterion for Diversity, Equity & Inclusion - NA

Sheet Unit Mix and Rents
A3: =+Instructions!A3 -> 2025 QAP Underwriting Application v1.1
A4: =TRIM('Project Description'!E84)&" ("&TRIM('Project Description'!E86)&" LA), "&'Project Description'!E50 -> ( LA),
O5: LIHTC Count | P5: Staff Unit Count | Q5: AMI Code | R5: Units Below 60 AMI | S5: Units Below 50 AMI | T5: PSH Units | U5: Non-PSH Units Below 30 AMI | V5: Units Below 20 AMI | W5: Units Below 80 AMI | X5: Units Not AMI Restr. | Y5: LIHTC Income Average Calc | Z5: LIHTC Units at 70 or 80 AMI | AB5: LIHTC Sqft | AC5: Staff Unit Sqft | AD5: Rental Subsidy Count | AE5: AMI Contract Rent Lookup | AF5: Column # | AG5: AMI Limit | AH5: FMR | AI5: Market Rent | AJ5: Min. Sqft | AK5: Min. Baths | AM5: AMI Flag | AN5: Market Flag | AO5: Sqft Flag | AP5: Baths Flag | AQ5: PSH Flag | AR5: FMR Flag | AS5: Staff Unit Flag | AU5: 0 BR Count | AV5: 1 BR Count | AW5: 2 BR Count | AX5: 3 BR Count | AY5: 4 BR Count
A6: Unit Mix, Square Footage and Rents
I7: Rental Subsidy?
A8: # | B8: Unit Type | C8: # BRs | D8: # Baths | E8: Sqft | F8: # Units | G8: LIHTC? | H8: Staff Unit? | J8: PSH? | K8: % AMI Restriction | L8: Rent* | M8: Notes**
A10: 1 | B10: =IF(F10=0,"",TEXT(C10,"0")&" BR "&TEXT(D10,"0.0")&" Bath") ->  | M10: =IF(AM10=1,"1 ","")&IF(AN10=2,"2 ","")&IF(AO10=3,"3 ","")&IF(AP10=4,"4 ","")&IF(AQ10=5,"5 ","")&IF(AR10=6,"6 ","")&IF(AS10=7,"7 ","") ->  | O10: =IF(G10="Yes",F10,0) -> 0 | P10: =IF(AND(H10="Yes",G10<>"Yes"),F10,0) -> 0 | Q10: =IF(K10="","",MATCH(K10,Controls!A143:A151,0)) ->  | R10: =IF(OR(Q10<2,Q10>6),0,F10) -> 0 | S10: =IF(OR(Q10<2,Q10>5),0,F10) -> 0 | T10: =IF(AND(J10="Yes",OR(C10=0,C10=1),K10=Controls!A144),F10,0) -> 0 | U10: =IF(AND(T10=0,OR(K10=Controls!A144,K10=Controls!A145)),F10,0) -> 0 | V10: =IF(Q10=2,F10,0) -> 0 | W10: =IF(OR(Q10<2,Q10>7),0,F10) -> 0 | X10: =IF(Q10=9,F10,0) -> 0 | Y10: =IF(OR(O10=0, Q10<2, Q10>8),0,O10*Q10/10) -> 0 | Z10: =IF(OR(O10=0,Q10<7,Q10>8),0,O10) -> 0 | AB10: =IF(G10="Yes",F10*E10,0) -> 0 | AC10: =IF(P10=0,0,F10*E10) -> 0 | AD10: =IF(I10="Yes",F10,0) -> 0 | AE10: =IF(K10="","",VLOOKUP(K10,'Project Description'!B772:G779,'Unit Mix and Rents'!AF10,FALSE)) ->  | AF10: =+C10+2 -> 2 | AG10: =IF(ISNA(AE10),9999,AE10) ->  | AH10: =IF(F10=0,0,INDEX('Project Description'!C796:G797,2,C10+1)) -> 0 | AI10: =IF(F10=0,0,INDEX('Project Description'!C788:G788,1,'Unit Mix and Rents'!C10+1)) -> 0 | AJ10: =IF(F10=0,0,INDEX(AE44:AI44,1,'Unit Mix and Rents'!C10+1)) -> 0 | AK10: =IF(F10=0,0,INDEX(AE44:AI45,2,'Unit Mix and Rents'!C10+1)) -> 0 | AM10: =IF(L10>AG10,1,"") ->  | AN10: =IF(L10>AI10,2,"") ->  | AO10: =IF(E10<AJ10,3,"") ->  | AP10: =IF(D10<AK10,4,"") ->  | AQ10: =IF(J10<>"Yes","",IF(AND(OR(C10=0,C10=1),K10=Controls!A144),"",5)) ->  | AR10: =IF(L10>AH10,6,"") ->  | AS10: =IF(H10<>"Yes","",IF(AND(G10<>"Yes",J10<>"Yes",K10="Not AMI Restricted",L10=0),"",7)) ->  | AU10: =IF(C10=0,F10,0) -> 0 | AV10: =IF(C10=1,F10,0) -> 0 | AW10: =IF(C10=2,F10,0) -> 0 | AX10: =IF(C10=3,F10,0) -> 0 | AY10: =IF(C10=4,F10,0) -> 0
A11: =+A10+1 -> 2 | B11: =IF(F11=0,"",TEXT(C11,"0")&" BR "&TEXT(D11,"0.0")&" Bath") ->  | M11: =IF(AM11=1,"1 ","")&IF(AN11=2,"2 ","")&IF(AO11=3,"3 ","")&IF(AP11=4,"4 ","")&IF(AQ11=5,"5 ","")&IF(AR11=6,"6 ","")&IF(AS11=7,"7 ","") ->  | O11: =IF(G11="Yes",F11,0) -> 0 | P11: 0 | Q11: =IF(K11="","",MATCH(K11,Controls!A143:A151,0)) ->  | R11: 0 | S11: 0 | T11: =IF(J11="Yes",F11,0) -> 0 | U11: =IF(AND(T11=0,OR(K11=Controls!A144,K11=Controls!A145)),F11,0) -> 0 | V11: 0 | W11: 0 | X11: 0 | Y11: =IF(OR(O11=0, Q11<2, Q11>8),0,O11*Q11/10) -> 0 | Z11: =IF(OR(O11=0,Q11<7,Q11>8),0,O11) -> 0 | AB11: =IF(G11="Yes",F11*E11,0) -> 0 | AC11: 0 | AD11: =IF(I11="Yes",F11,0) -> 0 | AE11: =IF(K11="","",VLOOKUP(K11,'Project Description'!B772:G779,'Unit Mix and Rents'!AF11,FALSE)) ->  | AF11: =+C11+2 -> 2 | AG11: =IF(ISNA(AE11),9999,AE11) ->  | AH11: =IF(F11=0,0,INDEX('Project Description'!C796:G797,2,C11+1)) -> 0 | AI11: =IF(F11=0,0,INDEX('Project Description'!C788:G788,1,'Unit Mix and Rents'!C11+1)) -> 0 | AJ11: =IF(F11=0,0,INDEX(AE44:AI44,1,'Unit Mix and Rents'!C11+1)) -> 0 | AK11: =IF(F11=0,0,INDEX(AE44:AI45,2,'Unit Mix and Rents'!C11+1)) -> 0 | AM11: =IF(L11>AG11,1,"") ->  | AN11: =IF(L11>AI11,2,"") ->  | AO11: =IF(E11<AJ11,3,"") ->  | AP11: =IF(D11<AK11,4,"") ->  | AQ11: =IF(J11<>"Yes","",IF(AND(OR(C11=0,C11=1),K11=Controls!A144),"",5)) ->  | AR11: =IF(L11>AH11,6,"") ->  | AU11: 0 | AV11: 0 | AW11: 0 | AX11: 0 | AY11: 0
A12: =+A11+1 -> 3 | O12: =IF(G12="Yes",F12,0) -> 0 | P12: 0 | Q12: =IF(K12="","",MATCH(K12,Controls!A143:A151,0)) ->  | R12: 0 | S12: 0 | T12: =IF(J12="Yes",F12,0) -> 0 | U12: =IF(AND(T12=0,OR(K12=Controls!A144,K12=Controls!A145)),F12,0) -> 0 | V12: 0 | W12: 0 | X12: 0 | Y12: 0 | Z12: 0 | AB12: =IF(G12="Yes",F12*E12,0) -> 0 | AC12: 0 | AD12: =IF(I12="Yes",F12,0) -> 0 | AE12: =IF(K12="","",VLOOKUP(K12,'Project Description'!B772:G779,'Unit Mix and Rents'!AF12,FALSE)) ->  | AF12: =+C12+2 -> 2 | AG12: =IF(ISNA(AE12),9999,AE12) ->  | AH12: =IF(F12=0,0,INDEX('Project Description'!C796:G797,2,C12+1)) -> 0 | AI12: =IF(F12=0,0,INDEX('Project Description'!C788:G788,1,'Unit Mix and Rents'!C12+1)) -> 0 | AJ12: =IF(F12=0,0,INDEX(AE44:AI44,1,'Unit Mix and Rents'!C12+1)) -> 0 | AK12: =IF(F12=0,0,INDEX(AE44:AI45,2,'Unit Mix and Rents'!C12+1)) -> 0 | AM12: =IF(L12>AG12,1,"") ->  | AN12: =IF(L12>AI12,2,"") ->  | AO12: =IF(E12<AJ12,3,"") ->  | AP12: =IF(D12<AK12,4,"") ->  | AQ12: =IF(J12<>"Yes","",IF(AND(OR(C12=0,C12=1),K12=Controls!A144),"",5)) ->  | AR12: =IF(L12>AH12,6,"") ->  | AU12: 0 | AV12: 0 | AW12: 0 | AX12: 0 | AY12: 0
A13: =+A12+1 -> 4 | O13: =IF(G13="Yes",F13,0) -> 0 | P13: 0 | Q13: =IF(K13="","",MATCH(K13,Controls!A143:A151,0)) ->  | R13: 0 | S13: 0 | T13: =IF(J13="Yes",F13,0) -> 0 | U13: =IF(AND(T13=0,OR(K13=Controls!A144,K13=Controls!A145)),F13,0) -> 0 | V13: 0 | W13: 0 | X13: 0 | Y13: 0 | Z13: 0 | AB13: =IF(G13="Yes",F13*E13,0) -> 0 | AC13: 0 | AD13: =IF(I13="Yes",F13,0) -> 0 | AE13: =IF(K13="","",VLOOKUP(K13,'Project Description'!B772:G779,'Unit Mix and Rents'!AF13,FALSE)) ->  | AF13: =+C13+2 -> 2 | AG13: =IF(ISNA(AE13),9999,AE13) ->  | AH13: =IF(F13=0,0,INDEX('Project Description'!C796:G797,2,C13+1)) -> 0 | AI13: =IF(F13=0,0,INDEX('Project Description'!C788:G788,1,'Unit Mix and Rents'!C13+1)) -> 0 | AJ13: =IF(F13=0,0,INDEX(AE44:AI44,1,'Unit Mix and Rents'!C13+1)) -> 0 | AK13: =IF(F13=0,0,INDEX(AE44:AI45,2,'Unit Mix and Rents'!C13+1)) -> 0 | AM13: =IF(L13>AG13,1,"") ->  | AN13: =IF(L13>AI13,2,"") ->  | AO13: =IF(E13<AJ13,3,"") ->  | AP13: =IF(D13<AK13,4,"") ->  | AQ13: =IF(J13<>"Yes","",IF(AND(OR(C13=0,C13=1),K13=Controls!A144),"",5)) ->  | AR13: =IF(L13>AH13,6,"") ->  | AS13: =IF(H13<>"Yes","",IF(AND(G13<>"Yes",J13<>"Yes",K13="Not AMI Restricted",L13=0),"",7)) ->  | AU13: 0 | AV13: 0 | AW13: 0 | AX13: 0 | AY13: 0
A14: =+A13+1 -> 5 | O14: =IF(G14="Yes",F14,0) -> 0 | P14: 0 | Q14: =IF(K14="","",MATCH(K14,Controls!A143:A151,0)) ->  | R14: 0 | S14: 0 | T14: =IF(J14="Yes",F14,0) -> 0 | U14: =IF(AND(T14=0,OR(K14=Controls!A144,K14=Controls!A145)),F14,0) -> 0 | V14: 0 | W14: 0 | X14: 0 | Y14: 0 | Z14: 0 | AB14: =IF(G14="Yes",F14*E14,0) -> 0 | AC14: 0 | AD14: =IF(I14="Yes",F14,0) -> 0 | AE14: =IF(K14="","",VLOOKUP(K14,'Project Description'!B772:G779,'Unit Mix and Rents'!AF14,FALSE)) ->  | AF14: =+C14+2 -> 2 | AG14: =IF(ISNA(AE14),9999,AE14) ->  | AH14: =IF(F14=0,0,INDEX('Project Description'!C796:G797,2,C14+1)) -> 0 | AI14: =IF(F14=0,0,INDEX('Project Description'!C788:G788,1,'Unit Mix and Rents'!C14+1)) -> 0 | AJ14: =IF(F14=0,0,INDEX(AE44:AI44,1,'Unit Mix and Rents'!C14+1)) -> 0 | AK14: =IF(F14=0,0,INDEX(AE44:AI45,2,'Unit Mix and Rents'!C14+1)) -> 0 | AM14: =IF(L14>AG14,1,"") ->  | AN14: =IF(L14>AI14,2,"") ->  | AO14: =IF(E14<AJ14,3,"") ->  | AP14: =IF(D14<AK14,4,"") ->  | AQ14: =IF(J14<>"Yes","",IF(AND(OR(C14=0,C14=1),K14=Controls!A144),"",5)) ->  | AR14: =IF(L14>AH14,6,"") ->  | AS14: =IF(H14<>"Yes","",IF(AND(G14<>"Yes",J14<>"Yes",K14="Not AMI Restricted",L14=0),"",7)) ->  | AU14: 0 | AV14: 0 | AW14: 0 | AX14: 0 | AY14: 0
A15: 6 | O15: 0 | P15: 0 | Q15: =IF(K15="","",MATCH(K15,Controls!A143:A151,0)) ->  | R15: 0 | S15: 0 | T15: 0 | U15: =IF(AND(T15=0,OR(K15=Controls!A144,K15=Controls!A145)),F15,0) -> 0 | V15: 0 | W15: 0 | X15: 0 | Y15: 0 | Z15: 0 | AB15: 0 | AC15: 0 | AD15: 0 | AE15: =IF(K15="","",VLOOKUP(K15,'Project Description'!B772:G779,'Unit Mix and Rents'!AF15,FALSE)) ->  | AF15: 2 | AH15: =IF(F15=0,0,INDEX('Project Description'!C796:G797,2,C15+1)) -> 0 | AI15: =IF(F15=0,0,INDEX('Project Description'!C788:G788,1,'Unit Mix and Rents'!C15+1)) -> 0 | AJ15: =IF(F15=0,0,INDEX(AE44:AI44,1,'Unit Mix and Rents'!C15+1)) -> 0 | AK15: =IF(F15=0,0,INDEX(AE44:AI45,2,'Unit Mix and Rents'!C15+1)) -> 0 | AQ15: =IF(J15<>"Yes","",IF(AND(OR(C15=0,C15=1),K15=Controls!A144),"",5)) ->  | AU15: 0 | AV15: 0 | AW15: 0 | AX15: 0 | AY15: 0
A16: 7 | O16: 0 | P16: 0 | Q16: =IF(K16="","",MATCH(K16,Controls!A143:A151,0)) ->  | R16: 0 | S16: 0 | T16: 0 | U16: =IF(AND(T16=0,OR(K16=Controls!A144,K16=Controls!A145)),F16,0) -> 0 | V16: 0 | W16: 0 | X16: 0 | Y16: 0 | Z16: 0 | AB16: 0 | AC16: 0 | AD16: 0 | AE16: =IF(K16="","",VLOOKUP(K16,'Project Description'!B772:G779,'Unit Mix and Rents'!AF16,FALSE)) ->  | AF16: 2 | AH16: =IF(F16=0,0,INDEX('Project Description'!C796:G797,2,C16+1)) -> 0 | AI16: =IF(F16=0,0,INDEX('Project Description'!C788:G788,1,'Unit Mix and Rents'!C16+1)) -> 0 | AJ16: =IF(F16=0,0,INDEX(AE44:AI44,1,'Unit Mix and Rents'!C16+1)) -> 0 | AK16: =IF(F16=0,0,INDEX(AE44:AI45,2,'Unit Mix and Rents'!C16+1)) -> 0 | AQ16: =IF(J16<>"Yes","",IF(AND(OR(C16=0,C16=1),K16=Controls!A144),"",5)) ->  | AU16: 0 | AV16: 0 | AW16: 0 | AX16: 0 | AY16: 0
A17: 8 | O17: 0 | P17: 0 | Q17: =IF(K17="","",MATCH(K17,Controls!A143:A151,0)) ->  | R17: 0 | S17: 0 | T17: 0 | U17: =IF(AND(T17=0,OR(K17=Controls!A144,K17=Controls!A145)),F17,0) -> 0 | V17: 0 | W17: 0 | X17: 0 | Y17: 0 | Z17: 0 | AB17: 0 | AC17: 0 | AD17: 0 | AE17: =IF(K17="","",VLOOKUP(K17,'Project Description'!B772:G779,'Unit Mix and Rents'!AF17,FALSE)) ->  | AF17: 2 | AH17: =IF(F17=0,0,INDEX('Project Description'!C796:G797,2,C17+1)) -> 0 | AI17: =IF(F17=0,0,INDEX('Project Description'!C788:G788,1,'Unit Mix and Rents'!C17+1)) -> 0 | AJ17: =IF(F17=0,0,INDEX(AE44:AI44,1,'Unit Mix and Rents'!C17+1)) -> 0 | AK17: =IF(F17=0,0,INDEX(AE44:AI45,2,'Unit Mix and Rents'!C17+1)) -> 0 | AQ17: =IF(J17<>"Yes","",IF(AND(OR(C17=0,C17=1),K17=Controls!A144),"",5)) ->  | AU17: 0 | AV17: 0 | AW17: 0 | AX17: 0 | AY17: 0
A18: 9 | O18: 0 | P18: 0 | Q18: =IF(K18="","",MATCH(K18,Controls!A143:A151,0)) ->  | R18: 0 | S18: 0 | T18: 0 | U18: =IF(AND(T18=0,OR(K18=Controls!A144,K18=Controls!A145)),F18,0) -> 0 | V18: 0 | W18: 0 | X18: 0 | Y18: 0 | Z18: 0 | AB18: 0 | AC18: 0 | AD18: 0 | AE18: =IF(K18="","",VLOOKUP(K18,'Project Description'!B772:G779,'Unit Mix and Rents'!AF18,FALSE)) ->  | AF18: 2 | AH18: =IF(F18=0,0,INDEX('Project Description'!C796:G797,2,C18+1)) -> 0 | AI18: =IF(F18=0,0,INDEX('Project Description'!C788:G788,1,'Unit Mix and Rents'!C18+1)) -> 0 | AJ18: =IF(F18=0,0,INDEX(AE44:AI44,1,'Unit Mix and Rents'!C18+1)) -> 0 | AK18: =IF(F18=0,0,INDEX(AE44:AI45,2,'Unit Mix and Rents'!C18+1)) -> 0 | AQ18: =IF(J18<>"Yes","",IF(AND(OR(C18=0,C18=1),K18=Controls!A144),"",5)) ->  | AU18: 0 | AV18: 0 | AW18: 0 | AX18: 0 | AY18: 0
A19: 10 | O19: 0 | P19: 0 | Q19: =IF(K19="","",MATCH(K19,Controls!A143:A151,0)) ->  | R19: 0 | S19: 0 | T19: 0 | U19: =IF(AND(T19=0,OR(K19=Controls!A144,K19=Controls!A145)),F19,0) -> 0 | V19: 0 | W19: 0 | X19: 0 | Y19: 0 | Z19: 0 | AB19: 0 | AC19: 0 | AD19: 0 | AE19: =IF(K19="","",VLOOKUP(K19,'Project Description'!B772:G779,'Unit Mix and Rents'!AF19,FALSE)) ->  | AF19: 2 | AH19: =IF(F19=0,0,INDEX('Project Description'!C796:G797,2,C19+1)) -> 0 | AI19: =IF(F19=0,0,INDEX('Project Description'!C788:G788,1,'Unit Mix and Rents'!C19+1)) -> 0 | AJ19: =IF(F19=0,0,INDEX(AE44:AI44,1,'Unit Mix and Rents'!C19+1)) -> 0 | AK19: =IF(F19=0,0,INDEX(AE44:AI45,2,'Unit Mix and Rents'!C19+1)) -> 0 | AQ19: =IF(J19<>"Yes","",IF(AND(OR(C19=0,C19=1),K19=Controls!A144),"",5)) ->  | AU19: 0 | AV19: 0 | AW19: 0 | AX19: 0 | AY19: 0
A20: 11 | O20: 0 | P20: 0 | Q20: =IF(K20="","",MATCH(K20,Controls!A143:A151,0)) ->  | R20: 0 | S20: 0 | T20: 0 | U20: =IF(AND(T20=0,OR(K20=Controls!A144,K20=Controls!A145)),F20,0) -> 0 | V20: 0 | W20: 0 | X20: 0 | Y20: 0 | Z20: 0 | AB20: 0 | AC20: 0 | AD20: 0 | AE20: =IF(K20="","",VLOOKUP(K20,'Project Description'!B772:G779,'Unit Mix and Rents'!AF20,FALSE)) ->  | AF20: 2 | AH20: =IF(F20=0,0,INDEX('Project Description'!C796:G797,2,C20+1)) -> 0 | AI20: =IF(F20=0,0,INDEX('Project Description'!C788:G788,1,'Unit Mix and Rents'!C20+1)) -> 0 | AJ20: =IF(F20=0,0,INDEX(AE44:AI44,1,'Unit Mix and Rents'!C20+1)) -> 0 | AK20: =IF(F20=0,0,INDEX(AE44:AI45,2,'Unit Mix and Rents'!C20+1)) -> 0 | AQ20: =IF(J20<>"Yes","",IF(AND(OR(C20=0,C20=1),K20=Controls!A144),"",5)) ->  | AU20: 0 | AV20: 0 | AW20: 0 | AX20: 0 | AY20: 0
A21: 12 | O21: 0 | P21: 0 | Q21: =IF(K21="","",MATCH(K21,Controls!A143:A151,0)) ->  | R21: 0 | S21: 0 | T21: 0 | U21: =IF(AND(T21=0,OR(K21=Controls!A144,K21=Controls!A145)),F21,0) -> 0 | V21: 0 | W21: 0 | X21: 0 | Y21: 0 | Z21: 0 | AB21: 0 | AC21: 0 | AD21: 0 | AE21: =IF(K21="","",VLOOKUP(K21,'Project Description'!B772:G779,'Unit Mix and Rents'!AF21,FALSE)) ->  | AF21: 2 | AH21: =IF(F21=0,0,INDEX('Project Description'!C796:G797,2,C21+1)) -> 0 | AI21: =IF(F21=0,0,INDEX('Project Description'!C788:G788,1,'Unit Mix and Rents'!C21+1)) -> 0 | AJ21: =IF(F21=0,0,INDEX(AE44:AI44,1,'Unit Mix and Rents'!C21+1)) -> 0 | AK21: =IF(F21=0,0,INDEX(AE44:AI45,2,'Unit Mix and Rents'!C21+1)) -> 0 | AQ21: =IF(J21<>"Yes","",IF(AND(OR(C21=0,C21=1),K21=Controls!A144),"",5)) ->  | AU21: 0 | AV21: 0 | AW21: 0 | AX21: 0 | AY21: 0
A22: 13 | O22: 0 | P22: 0 | Q22: =IF(K22="","",MATCH(K22,Controls!A143:A151,0)) ->  | R22: 0 | S22: 0 | T22: 0 | U22: =IF(AND(T22=0,OR(K22=Controls!A144,K22=Controls!A145)),F22,0) -> 0 | V22: 0 | W22: 0 | X22: 0 | Y22: 0 | Z22: 0 | AB22: 0 | AC22: 0 | AD22: 0 | AE22: =IF(K22="","",VLOOKUP(K22,'Project Description'!B772:G779,'Unit Mix and Rents'!AF22,FALSE)) ->  | AF22: 2 | AH22: =IF(F22=0,0,INDEX('Project Description'!C796:G797,2,C22+1)) -> 0 | AI22: =IF(F22=0,0,INDEX('Project Description'!C788:G788,1,'Unit Mix and Rents'!C22+1)) -> 0 | AJ22: =IF(F22=0,0,INDEX(AE44:AI44,1,'Unit Mix and Rents'!C22+1)) -> 0 | AK22: =IF(F22=0,0,INDEX(AE44:AI45,2,'Unit Mix and Rents'!C22+1)) -> 0 | AQ22: =IF(J22<>"Yes","",IF(AND(OR(C22=0,C22=1),K22=Controls!A144),"",5)) ->  | AU22: 0 | AV22: 0 | AW22: 0 | AX22: 0 | AY22: 0
A23: 14 | O23: 0 | P23: 0 | Q23: =IF(K23="","",MATCH(K23,Controls!A143:A151,0)) ->  | R23: 0 | S23: 0 | T23: 0 | U23: =IF(AND(T23=0,OR(K23=Controls!A144,K23=Controls!A145)),F23,0) -> 0 | V23: 0 | W23: 0 | X23: 0 | Y23: 0 | Z23: 0 | AB23: 0 | AC23: 0 | AD23: 0 | AE23: =IF(K23="","",VLOOKUP(K23,'Project Description'!B772:G779,'Unit Mix and Rents'!AF23,FALSE)) ->  | AF23: 2 | AH23: =IF(F23=0,0,INDEX('Project Description'!C796:G797,2,C23+1)) -> 0 | AI23: =IF(F23=0,0,INDEX('Project Description'!C788:G788,1,'Unit Mix and Rents'!C23+1)) -> 0 | AJ23: =IF(F23=0,0,INDEX(AE44:AI44,1,'Unit Mix and Rents'!C23+1)) -> 0 | AK23: =IF(F23=0,0,INDEX(AE44:AI45,2,'Unit Mix and Rents'!C23+1)) -> 0 | AQ23: =IF(J23<>"Yes","",IF(AND(OR(C23=0,C23=1),K23=Controls!A144),"",5)) ->  | AU23: 0 | AV23: 0 | AW23: 0 | AX23: 0 | AY23: 0
A24: 15 | O24: 0 | P24: 0 | Q24: =IF(K24="","",MATCH(K24,Controls!A143:A151,0)) ->  | R24: 0 | S24: 0 | T24: 0 | U24: =IF(AND(T24=0,OR(K24=Controls!A144,K24=Controls!A145)),F24,0) -> 0 | V24: 0 | W24: 0 | X24: 0 | Y24: 0 | Z24: 0 | AB24: 0 | AC24: 0 | AD24: 0 | AE24: =IF(K24="","",VLOOKUP(K24,'Project Description'!B772:G779,'Unit Mix and Rents'!AF24,FALSE)) ->  | AF24: 2 | AH24: =IF(F24=0,0,INDEX('Project Description'!C796:G797,2,C24+1)) -> 0 | AI24: =IF(F24=0,0,INDEX('Project Description'!C788:G788,1,'Unit Mix and Rents'!C24+1)) -> 0 | AJ24: =IF(F24=0,0,INDEX(AE44:AI44,1,'Unit Mix and Rents'!C24+1)) -> 0 | AK24: =IF(F24=0,0,INDEX(AE44:AI45,2,'Unit Mix and Rents'!C24+1)) -> 0 | AQ24: =IF(J24<>"Yes","",IF(AND(OR(C24=0,C24=1),K24=Controls!A144),"",5)) ->  | AU24: 0 | AV24: 0 | AW24: 0 | AX24: 0 | AY24: 0
A25: 16 | O25: 0 | P25: 0 | Q25: =IF(K25="","",MATCH(K25,Controls!A143:A151,0)) ->  | R25: 0 | S25: 0 | T25: 0 | U25: =IF(AND(T25=0,OR(K25=Controls!A144,K25=Controls!A145)),F25,0) -> 0 | V25: 0 | W25: 0 | X25: 0 | Y25: 0 | Z25: 0 | AB25: 0 | AC25: 0 | AD25: 0 | AE25: =IF(K25="","",VLOOKUP(K25,'Project Description'!B772:G779,'Unit Mix and Rents'!AF25,FALSE)) ->  | AF25: 2 | AH25: =IF(F25=0,0,INDEX('Project Description'!C796:G797,2,C25+1)) -> 0 | AI25: =IF(F25=0,0,INDEX('Project Description'!C788:G788,1,'Unit Mix and Rents'!C25+1)) -> 0 | AJ25: =IF(F25=0,0,INDEX(AE44:AI44,1,'Unit Mix and Rents'!C25+1)) -> 0 | AK25: =IF(F25=0,0,INDEX(AE44:AI45,2,'Unit Mix and Rents'!C25+1)) -> 0 | AQ25: =IF(J25<>"Yes","",IF(AND(OR(C25=0,C25=1),K25=Controls!A144),"",5)) ->  | AU25: 0 | AV25: 0 | AW25: 0 | AX25: 0 | AY25: 0
A26: 17 | O26: 0 | P26: 0 | Q26: =IF(K26="","",MATCH(K26,Controls!A143:A151,0)) ->  | R26: 0 | S26: 0 | T26: 0 | U26: =IF(AND(T26=0,OR(K26=Controls!A144,K26=Controls!A145)),F26,0) -> 0 | V26: 0 | W26: 0 | X26: 0 | Y26: 0 | Z26: 0 | AB26: 0 | AC26: 0 | AD26: 0 | AE26: =IF(K26="","",VLOOKUP(K26,'Project Description'!B772:G779,'Unit Mix and Rents'!AF26,FALSE)) ->  | AF26: 2 | AH26: =IF(F26=0,0,INDEX('Project Description'!C796:G797,2,C26+1)) -> 0 | AI26: =IF(F26=0,0,INDEX('Project Description'!C788:G788,1,'Unit Mix and Rents'!C26+1)) -> 0 | AJ26: =IF(F26=0,0,INDEX(AE44:AI44,1,'Unit Mix and Rents'!C26+1)) -> 0 | AK26: =IF(F26=0,0,INDEX(AE44:AI45,2,'Unit Mix and Rents'!C26+1)) -> 0 | AQ26: =IF(J26<>"Yes","",IF(AND(OR(C26=0,C26=1),K26=Controls!A144),"",5)) ->  | AU26: 0 | AV26: 0 | AW26: 0 | AX26: 0 | AY26: 0
A27: 18 | O27: 0 | P27: 0 | Q27: =IF(K27="","",MATCH(K27,Controls!A143:A151,0)) ->  | R27: 0 | S27: 0 | T27: 0 | U27: =IF(AND(T27=0,OR(K27=Controls!A144,K27=Controls!A145)),F27,0) -> 0 | V27: 0 | W27: 0 | X27: 0 | Y27: 0 | Z27: 0 | AB27: 0 | AC27: 0 | AD27: 0 | AE27: =IF(K27="","",VLOOKUP(K27,'Project Description'!B772:G779,'Unit Mix and Rents'!AF27,FALSE)) ->  | AF27: 2 | AH27: =IF(F27=0,0,INDEX('Project Description'!C796:G797,2,C27+1)) -> 0 | AI27: =IF(F27=0,0,INDEX('Project Description'!C788:G788,1,'Unit Mix and Rents'!C27+1)) -> 0 | AJ27: =IF(F27=0,0,INDEX(AE44:AI44,1,'Unit Mix and Rents'!C27+1)) -> 0 | AK27: =IF(F27=0,0,INDEX(AE44:AI45,2,'Unit Mix and Rents'!C27+1)) -> 0 | AQ27: =IF(J27<>"Yes","",IF(AND(OR(C27=0,C27=1),K27=Controls!A144),"",5)) ->  | AU27: 0 | AV27: 0 | AW27: 0 | AX27: 0 | AY27: 0
A28: 19 | O28: 0 | P28: 0 | Q28: =IF(K28="","",MATCH(K28,Controls!A143:A151,0)) ->  | R28: 0 | S28: 0 | T28: 0 | U28: =IF(AND(T28=0,OR(K28=Controls!A144,K28=Controls!A145)),F28,0) -> 0 | V28: 0 | W28: 0 | X28: 0 | Y28: 0 | Z28: 0 | AB28: 0 | AC28: 0 | AD28: 0 | AE28: =IF(K28="","",VLOOKUP(K28,'Project Description'!B772:G779,'Unit Mix and Rents'!AF28,FALSE)) ->  | AF28: 2 | AH28: =IF(F28=0,0,INDEX('Project Description'!C796:G797,2,C28+1)) -> 0 | AI28: =IF(F28=0,0,INDEX('Project Description'!C788:G788,1,'Unit Mix and Rents'!C28+1)) -> 0 | AJ28: =IF(F28=0,0,INDEX(AE44:AI44,1,'Unit Mix and Rents'!C28+1)) -> 0 | AK28: =IF(F28=0,0,INDEX(AE44:AI45,2,'Unit Mix and Rents'!C28+1)) -> 0 | AQ28: =IF(J28<>"Yes","",IF(AND(OR(C28=0,C28=1),K28=Controls!A144),"",5)) ->  | AU28: 0 | AV28: 0 | AW28: 0 | AX28: 0 | AY28: 0
A29: 20 | O29: 0 | P29: 0 | Q29: =IF(K29="","",MATCH(K29,Controls!A143:A151,0)) ->  | R29: 0 | S29: 0 | T29: 0 | U29: =IF(AND(T29=0,OR(K29=Controls!A144,K29=Controls!A145)),F29,0) -> 0 | V29: 0 | W29: 0 | X29: 0 | Y29: 0 | Z29: 0 | AB29: 0 | AC29: 0 | AD29: 0 | AE29: =IF(K29="","",VLOOKUP(K29,'Project Description'!B772:G779,'Unit Mix and Rents'!AF29,FALSE)) ->  | AF29: 2 | AH29: =IF(F29=0,0,INDEX('Project Description'!C796:G797,2,C29+1)) -> 0 | AI29: =IF(F29=0,0,INDEX('Project Description'!C788:G788,1,'Unit Mix and Rents'!C29+1)) -> 0 | AJ29: =IF(F29=0,0,INDEX(AE44:AI44,1,'Unit Mix and Rents'!C29+1)) -> 0 | AK29: =IF(F29=0,0,INDEX(AE44:AI45,2,'Unit Mix and Rents'!C29+1)) -> 0 | AQ29: =IF(J29<>"Yes","",IF(AND(OR(C29=0,C29=1),K29=Controls!A144),"",5)) ->  | AU29: 0 | AV29: 0 | AW29: 0 | AX29: 0 | AY29: 0
A30: 21 | O30: 0 | P30: 0 | Q30: =IF(K30="","",MATCH(K30,Controls!A143:A151,0)) ->  | R30: 0 | S30: 0 | T30: 0 | U30: =IF(AND(T30=0,OR(K30=Controls!A144,K30=Controls!A145)),F30,0) -> 0 | V30: 0 | W30: 0 | X30: 0 | Y30: 0 | Z30: 0 | AB30: 0 | AC30: 0 | AD30: 0 | AE30: =IF(K30="","",VLOOKUP(K30,'Project Description'!B772:G779,'Unit Mix and Rents'!AF30,FALSE)) ->  | AF30: 2 | AH30: =IF(F30=0,0,INDEX('Project Description'!C796:G797,2,C30+1)) -> 0 | AI30: =IF(F30=0,0,INDEX('Project Description'!C788:G788,1,'Unit Mix and Rents'!C30+1)) -> 0 | AJ30: =IF(F30=0,0,INDEX(AE44:AI44,1,'Unit Mix and Rents'!C30+1)) -> 0 | AK30: =IF(F30=0,0,INDEX(AE44:AI45,2,'Unit Mix and Rents'!C30+1)) -> 0 | AQ30: =IF(J30<>"Yes","",IF(AND(OR(C30=0,C30=1),K30=Controls!A144),"",5)) ->  | AU30: 0 | AV30: 0 | AW30: 0 | AX30: 0 | AY30: 0
A31: 22 | O31: 0 | P31: 0 | Q31: =IF(K31="","",MATCH(K31,Controls!A143:A151,0)) ->  | R31: 0 | S31: 0 | T31: 0 | U31: =IF(AND(T31=0,OR(K31=Controls!A144,K31=Controls!A145)),F31,0) -> 0 | V31: 0 | W31: 0 | X31: 0 | Y31: 0 | Z31: 0 | AB31: 0 | AC31: 0 | AD31: 0 | AE31: =IF(K31="","",VLOOKUP(K31,'Project Description'!B772:G779,'Unit Mix and Rents'!AF31,FALSE)) ->  | AF31: 2 | AH31: =IF(F31=0,0,INDEX('Project Description'!C796:G797,2,C31+1)) -> 0 | AI31: =IF(F31=0,0,INDEX('Project Description'!C788:G788,1,'Unit Mix and Rents'!C31+1)) -> 0 | AJ31: =IF(F31=0,0,INDEX(AE44:AI44,1,'Unit Mix and Rents'!C31+1)) -> 0 | AK31: =IF(F31=0,0,INDEX(AE44:AI45,2,'Unit Mix and Rents'!C31+1)) -> 0 | AQ31: =IF(J31<>"Yes","",IF(AND(OR(C31=0,C31=1),K31=Controls!A144),"",5)) ->  | AU31: 0 | AV31: 0 | AW31: 0 | AX31: 0 | AY31: 0
A32: 23 | O32: 0 | P32: 0 | Q32: =IF(K32="","",MATCH(K32,Controls!A143:A151,0)) ->  | R32: 0 | S32: 0 | T32: 0 | U32: =IF(AND(T32=0,OR(K32=Controls!A144,K32=Controls!A145)),F32,0) -> 0 | V32: 0 | W32: 0 | X32: 0 | Y32: 0 | Z32: 0 | AB32: 0 | AC32: 0 | AD32: 0 | AE32: =IF(K32="","",VLOOKUP(K32,'Project Description'!B772:G779,'Unit Mix and Rents'!AF32,FALSE)) ->  | AF32: 2 | AH32: =IF(F32=0,0,INDEX('Project Description'!C796:G797,2,C32+1)) -> 0 | AI32: =IF(F32=0,0,INDEX('Project Description'!C788:G788,1,'Unit Mix and Rents'!C32+1)) -> 0 | AJ32: =IF(F32=0,0,INDEX(AE44:AI44,1,'Unit Mix and Rents'!C32+1)) -> 0 | AK32: =IF(F32=0,0,INDEX(AE44:AI45,2,'Unit Mix and Rents'!C32+1)) -> 0 | AQ32: =IF(J32<>"Yes","",IF(AND(OR(C32=0,C32=1),K32=Controls!A144),"",5)) ->  | AU32: 0 | AV32: 0 | AW32: 0 | AX32: 0 | AY32: 0
A33: 24 | O33: =IF(G33="Yes",F33,0) -> 0 | P33: 0 | Q33: =IF(K33="","",MATCH(K33,Controls!A143:A151,0)) ->  | R33: 0 | S33: 0 | T33: =IF(J33="Yes",F33,0) -> 0 | U33: =IF(AND(T33=0,OR(K33=Controls!A144,K33=Controls!A145)),F33,0) -> 0 | V33: 0 | W33: 0 | X33: 0 | Y33: 0 | Z33: 0 | AB33: =IF(G33="Yes",F33*E33,0) -> 0 | AC33: 0 | AD33: =IF(I33="Yes",F33,0) -> 0 | AE33: =IF(K33="","",VLOOKUP(K33,'Project Description'!B772:G779,'Unit Mix and Rents'!AF33,FALSE)) ->  | AF33: =+C33+2 -> 2 | AG33: =IF(ISNA(AE33),9999,AE33) ->  | AH33: =IF(F33=0,0,INDEX('Project Description'!C796:G797,2,C33+1)) -> 0 | AI33: =IF(F33=0,0,INDEX('Project Description'!C788:G788,1,'Unit Mix and Rents'!C33+1)) -> 0 | AJ33: =IF(F33=0,0,INDEX(AE44:AI44,1,'Unit Mix and Rents'!C33+1)) -> 0 | AK33: =IF(F33=0,0,INDEX(AE44:AI45,2,'Unit Mix and Rents'!C33+1)) -> 0 | AM33: =IF(L33>AG33,1,"") ->  | AN33: =IF(L33>AI33,2,"") ->  | AO33: =IF(E33<AJ33,3,"") ->  | AP33: =IF(D33<AK33,4,"") ->  | AQ33: =IF(J33<>"Yes","",IF(AND(OR(C33=0,C33=1),K33=Controls!A144),"",5)) ->  | AR33: =IF(L33>AH33,6,"") ->  | AU33: 0 | AV33: 0 | AW33: 0 | AX33: 0 | AY33: 0
A34: 25 | O34: 0 | P34: 0 | Q34: =IF(K34="","",MATCH(K34,Controls!A143:A151,0)) ->  | R34: 0 | S34: 0 | T34: 0 | U34: =IF(AND(T34=0,OR(K34=Controls!A144,K34=Controls!A145)),F34,0) -> 0 | V34: 0 | W34: 0 | X34: 0 | Y34: 0 | Z34: 0 | AB34: 0 | AC34: 0 | AD34: 0 | AE34: =IF(K34="","",VLOOKUP(K34,'Project Description'!B772:G779,'Unit Mix and Rents'!AF34,FALSE)) ->  | AF34: 2 | AH34: =IF(F34=0,0,INDEX('Project Description'!C796:G797,2,C34+1)) -> 0 | AI34: =IF(F34=0,0,INDEX('Project Description'!C788:G788,1,'Unit Mix and Rents'!C34+1)) -> 0 | AJ34: =IF(F34=0,0,INDEX(AE44:AI44,1,'Unit Mix and Rents'!C34+1)) -> 0 | AK34: =IF(F34=0,0,INDEX(AE44:AI45,2,'Unit Mix and Rents'!C34+1)) -> 0 | AQ34: =IF(J34<>"Yes","",IF(AND(OR(C34=0,C34=1),K34=Controls!A144),"",5)) ->  | AU34: 0 | AV34: 0 | AW34: 0 | AX34: 0 | AY34: 0
A35: 26 | O35: 0 | P35: 0 | Q35: =IF(K35="","",MATCH(K35,Controls!A143:A151,0)) ->  | R35: 0 | S35: 0 | T35: 0 | U35: =IF(AND(T35=0,OR(K35=Controls!A144,K35=Controls!A145)),F35,0) -> 0 | V35: 0 | W35: 0 | X35: 0 | Y35: 0 | Z35: 0 | AB35: 0 | AC35: 0 | AD35: 0 | AE35: =IF(K35="","",VLOOKUP(K35,'Project Description'!B772:G779,'Unit Mix and Rents'!AF35,FALSE)) ->  | AF35: 2 | AH35: =IF(F35=0,0,INDEX('Project Description'!C796:G797,2,C35+1)) -> 0 | AI35: =IF(F35=0,0,INDEX('Project Description'!C788:G788,1,'Unit Mix and Rents'!C35+1)) -> 0 | AJ35: =IF(F35=0,0,INDEX(AE44:AI44,1,'Unit Mix and Rents'!C35+1)) -> 0 | AK35: =IF(F35=0,0,INDEX(AE44:AI45,2,'Unit Mix and Rents'!C35+1)) -> 0 | AQ35: =IF(J35<>"Yes","",IF(AND(OR(C35=0,C35=1),K35=Controls!A144),"",5)) ->  | AU35: 0 | AV35: 0 | AW35: 0 | AX35: 0 | AY35: 0
A36: 27 | O36: 0 | P36: 0 | Q36: =IF(K36="","",MATCH(K36,Controls!A143:A151,0)) ->  | R36: 0 | S36: 0 | T36: 0 | U36: =IF(AND(T36=0,OR(K36=Controls!A144,K36=Controls!A145)),F36,0) -> 0 | V36: 0 | W36: 0 | X36: 0 | Y36: 0 | Z36: 0 | AB36: 0 | AC36: 0 | AD36: 0 | AE36: =IF(K36="","",VLOOKUP(K36,'Project Description'!B772:G779,'Unit Mix and Rents'!AF36,FALSE)) ->  | AF36: 2 | AH36: =IF(F36=0,0,INDEX('Project Description'!C796:G797,2,C36+1)) -> 0 | AI36: =IF(F36=0,0,INDEX('Project Description'!C788:G788,1,'Unit Mix and Rents'!C36+1)) -> 0 | AJ36: =IF(F36=0,0,INDEX(AE44:AI44,1,'Unit Mix and Rents'!C36+1)) -> 0 | AK36: =IF(F36=0,0,INDEX(AE44:AI45,2,'Unit Mix and Rents'!C36+1)) -> 0 | AQ36: =IF(J36<>"Yes","",IF(AND(OR(C36=0,C36=1),K36=Controls!A144),"",5)) ->  | AU36: 0 | AV36: 0 | AW36: 0 | AX36: 0 | AY36: 0
A37: 28 | O37: 0 | P37: 0 | Q37: =IF(K37="","",MATCH(K37,Controls!A143:A151,0)) ->  | R37: 0 | S37: 0 | T37: 0 | U37: =IF(AND(T37=0,OR(K37=Controls!A144,K37=Controls!A145)),F37,0) -> 0 | V37: 0 | W37: 0 | X37: 0 | Y37: 0 | Z37: 0 | AB37: 0 | AC37: 0 | AD37: 0 | AE37: =IF(K37="","",VLOOKUP(K37,'Project Description'!B772:G779,'Unit Mix and Rents'!AF37,FALSE)) ->  | AF37: 2 | AH37: =IF(F37=0,0,INDEX('Project Description'!C796:G797,2,C37+1)) -> 0 | AI37: =IF(F37=0,0,INDEX('Project Description'!C788:G788,1,'Unit Mix and Rents'!C37+1)) -> 0 | AJ37: =IF(F37=0,0,INDEX(AE44:AI44,1,'Unit Mix and Rents'!C37+1)) -> 0 | AK37: =IF(F37=0,0,INDEX(AE44:AI45,2,'Unit Mix and Rents'!C37+1)) -> 0 | AQ37: =IF(J37<>"Yes","",IF(AND(OR(C37=0,C37=1),K37=Controls!A144),"",5)) ->  | AU37: 0 | AV37: 0 | AW37: 0 | AX37: 0 | AY37: 0
A38: 29 | O38: 0 | P38: 0 | Q38: =IF(K38="","",MATCH(K38,Controls!A143:A151,0)) ->  | R38: 0 | S38: 0 | T38: 0 | U38: =IF(AND(T38=0,OR(K38=Controls!A144,K38=Controls!A145)),F38,0) -> 0 | V38: 0 | W38: 0 | X38: 0 | Y38: 0 | Z38: 0 | AB38: 0 | AC38: 0 | AD38: 0 | AE38: =IF(K38="","",VLOOKUP(K38,'Project Description'!B772:G779,'Unit Mix and Rents'!AF38,FALSE)) ->  | AF38: 2 | AH38: =IF(F38=0,0,INDEX('Project Description'!C796:G797,2,C38+1)) -> 0 | AI38: =IF(F38=0,0,INDEX('Project Description'!C788:G788,1,'Unit Mix and Rents'!C38+1)) -> 0 | AJ38: =IF(F38=0,0,INDEX(AE44:AI44,1,'Unit Mix and Rents'!C38+1)) -> 0 | AK38: =IF(F38=0,0,INDEX(AE44:AI45,2,'Unit Mix and Rents'!C38+1)) -> 0 | AQ38: =IF(J38<>"Yes","",IF(AND(OR(C38=0,C38=1),K38=Controls!A144),"",5)) ->  | AU38: 0 | AV38: 0 | AW38: 0 | AX38: 0 | AY38: 0
A39: 30 | O39: 0 | P39: 0 | Q39: =IF(K39="","",MATCH(K39,Controls!A143:A151,0)) ->  | R39: 0 | S39: 0 | T39: 0 | U39: =IF(AND(T39=0,OR(K39=Controls!A144,K39=Controls!A145)),F39,0) -> 0 | V39: 0 | W39: 0 | X39: 0 | Y39: 0 | Z39: 0 | AB39: 0 | AC39: 0 | AD39: 0 | AE39: =IF(K39="","",VLOOKUP(K39,'Project Description'!B772:G779,'Unit Mix and Rents'!AF39,FALSE)) ->  | AF39: 2 | AH39: =IF(F39=0,0,INDEX('Project Description'!C796:G797,2,C39+1)) -> 0 | AI39: =IF(F39=0,0,INDEX('Project Description'!C788:G788,1,'Unit Mix and Rents'!C39+1)) -> 0 | AJ39: =IF(F39=0,0,INDEX(AE44:AI44,1,'Unit Mix and Rents'!C39+1)) -> 0 | AK39: =IF(F39=0,0,INDEX(AE44:AI45,2,'Unit Mix and Rents'!C39+1)) -> 0 | AQ39: =IF(J39<>"Yes","",IF(AND(OR(C39=0,C39=1),K39=Controls!A144),"",5)) ->  | AU39: 0 | AV39: 0 | AW39: 0 | AX39: 0 | AY39: 0
B41: Totals | E41: =SUMPRODUCT(F9:F40,E9:E40) -> 0 | F41: =SUM(F9:F40) -> 0 | G41: =SUM(O9:O40) -> 0 | H41: =SUM(P9:P40) -> 0 | I41: =SUM(AD9:AD40) -> 0 | L41: =SUMPRODUCT(F9:F40,L9:L40) -> 0 | O41: =SUM(O9:O40) -> 0 | P41: 0 | R41: 0 | S41: 0 | T41: 0 | U41: 0 | V41: 0 | W41: 0 | X41: 0 | Y41: 0 | Z41: 0 | AB41: =SUM(AB9:AB40) -> 0 | AC41: =SUM(AC9:AC40) -> 0 | AM41: =COUNTIF(AM9:AM40,">0") -> 0 | AN41: 0 | AO41: 0 | AP41: 0 | AQ41: 0 | AR41: 0 | AS41: 0 | AU41: =SUM(AU9:AU40) -> 0 | AV41: =SUM(AV9:AV40) -> 0 | AW41: =SUM(AW9:AW40) -> 0 | AX41: =SUM(AX9:AX40) -> 0 | AY41: =SUM(AY9:AY40) -> 0
Y42: =IF(O41=0,0,+Y41/O41) -> 0
B43: % of Rental Subsidy Units in the project: | G43: =IF(F41=0,0,+I41/F41) -> 0 | AE43: 0BR | AF43: 1BR | AG43: 2BR | AH43: 3BR | AI43: 4BR | AM43: =SUM(AM41:AT41) -> 0 | AN43: total flags | AU43: =SUM(AU41:AY41) -> 0 | AV43: total units
B44: % of Low-Income Units in the project: | F44: =+R41 -> 0 | G44: =IF(F41=0,0,+R41/F41) -> 0 | I44: =IF(G44>=40%,"Meets 40/60 Setaside","Does not Meet 40/60 Setaside") -> Does not Meet 40/60 Setaside | O44: Minimum Sqft | AE44: 450 | AF44: 650 | AG44: 800 | AH44: 1100 | AI44: 1400
B45: Total square feet for LIHTC units: | E45: =+AB41 -> 0 | O45: Minimum # Baths | AE45: 1 | AF45: 1 | AG45: 1 | AH45: 2 | AI45: 2.5
B46: PSH Units: | F46: =+T41 -> 0 | G46: =IF(F41=0,0,+F46/F41) -> 0
B47: Non-PSH Units Under 30% AMI: | F47: =+U41 -> 0 | G47: =IF(F41=0,0,+F47/F41) -> 0 | O47: =+'Project Description'!H212 -> Missing | Q47: is user's Set-Aside Election
B48: Units under 30% AMI: | F48: =+F46+F47 -> 0 | G48: =IF(F41=0,0,+F48/F41) -> 0
B49: Units under 20% AMI: | F49: =+V41 -> 0 | G49: =IF(F41=0,0,+F49/F41) -> 0 | O49: =IF(O47="40/60",IF(G44>=40%,"","Error: Applicant's 40/60 Set-Aside Is Not Met"),IF(O47="20/50",IF(G50>=20%,"","Error: Applicant's 20/50 Set-Aside is not Met"),"")) -> 
B50: Units under 50% AMI: | F50: =+S41 -> 0 | G50: =IF(F41=0,0,+F50/F41) -> 0 | I50: =IF(G50>=20%,"Meets 20/50 Setaside","Does not Meet 20/50 Setaside") -> Does not Meet 20/50 Setaside
B51: Units between 31% and 50% AMI: | F51: =+F50-F48 -> 0 | G51: =IF(F41=0,0,+F51/F41) -> 0
B52: Units under 80% AMI: | F52: =+W41 -> 0 | G52: =IF(F41=0,0,+F52/F41) -> 0
B53: Units Not AMI Restricted | F53: =+X41 -> 0 | G53: =IF(F41=0,0,+F53/F41) -> 0
B54: LIHTC 'Income Average' | G54: =+Y42 -> 0 | I54: (weighted average of income limits for LIHTC units)
B55: Staff Units | E55: =+AC41 -> 0 | F55: =+H41 -> 0 | G55: =IF(F41=0,0,+F55/F41) -> 0
B56: Residential Units | E56: =+E41-E55 -> 0 | F56: =+F41-F55 -> 0 | G56: =IF(F41=0,0,+F56/F41) -> 0
B58: =IF(G48>=5%,"",TEXT(O54,"0.0%")&" of units are affordable at or below 30% AMI; QAP requires at least 5%") -> 0.0% of units are affordable at or below 30% AMI; QAP requires at least 5%
A60: ="The applicant selected the following set-aside option: "&'Project Description'!H212 -> The applicant selected the following set-aside option: Missing
A62: * Rent is after subtracting the utility allowance; that is, this is the rent the project will collect.
A63: ** Note 1 indicates that the proposed rent is higher than the applicable AMI limit. Note 2 indicates that the proposed rent is higher than the estimated market rent for this unit type. Note 3 indicates that the square footage is below the LHC minimum for this unit type. Note 4 indicates that the number of baths is below the LHC minimum for this unit type. Note 5 indicates that units designated as PSH are either (a) larger than 1 BR or (b) not restricted at 20% AMI. Note 6 indicates that the proposed rent is higher than the FMR for this unit type. Note 7 indicates a potential problem with a Staff Unit; the Application expects to see LIHTC = No, PSH = No, AMI Restriction = Not Restricted, and Rent = zero. The values you entered may, however, be correct; if so, provide an explanation in your Checklist response. If any Note is indicated (in column M) for any unit type, the Checklist worksheet will include a question.
C64: 0 | D64: 1 | E64: 2 | F64: 3 | G64: 4
B65: Unit Mix Summary | C65: 0 BR | D65: 1 BR | E65: 2 BR | F65: 3 BR | G65: 4 BR | I65: Total
B66: =+Controls!A144 -> 20% AMI | C66: =SUMIFS(F9:F40,K9:K40,B66,C9:C40,C64) -> 0 | D66: =SUMIFS(F9:F40,K9:K40,B66,C9:C40,D64) -> 0 | E66: =SUMIFS(F9:F40,K9:K40,B66,C9:C40,E64) -> 0 | F66: =SUMIFS(F9:F40,K9:K40,B66,C9:C40,F64) -> 0 | G66: =SUMIFS(F9:F40,K9:K40,B66,C9:C40,G64) -> 0 | I66: =SUM(C66:G66) -> 0
B67: =+Controls!A145 -> 30% AMI | C67: =SUMIFS(F9:F40,K9:K40,B67,C9:C40,C64) -> 0 | D67: =SUMIFS(F9:F40,K9:K40,B67,C9:C40,D64) -> 0 | E67: =SUMIFS(F9:F40,K9:K40,B67,C9:C40,E64) -> 0 | F67: =SUMIFS(F9:F40,K9:K40,B67,C9:C40,F64) -> 0 | G67: =SUMIFS(F9:F40,K9:K40,B67,C9:C40,G64) -> 0 | I67: 0
B68: =+Controls!A146 -> 40% AMI | C68: =SUMIFS(F9:F40,K9:K40,B68,C9:C40,C64) -> 0 | D68: =SUMIFS(F9:F40,K9:K40,B68,C9:C40,D64) -> 0 | E68: =SUMIFS(F9:F40,K9:K40,B68,C9:C40,E64) -> 0 | F68: =SUMIFS(F9:F40,K9:K40,B68,C9:C40,F64) -> 0 | G68: =SUMIFS(F9:F40,K9:K40,B68,C9:C40,G64) -> 0 | I68: 0
B69: =+Controls!A147 -> 50% AMI | C69: =SUMIFS(F9:F40,K9:K40,B69,C9:C40,C64) -> 0 | D69: =SUMIFS(F9:F40,K9:K40,B69,C9:C40,D64) -> 0 | E69: =SUMIFS(F9:F40,K9:K40,B69,C9:C40,E64) -> 0 | F69: =SUMIFS(F9:F40,K9:K40,B69,C9:C40,F64) -> 0 | G69: =SUMIFS(F9:F40,K9:K40,B69,C9:C40,G64) -> 0 | I69: 0
B70: =+Controls!A148 -> 60% AMI | C70: =SUMIFS(F9:F40,K9:K40,B70,C9:C40,C64) -> 0 | D70: =SUMIFS(F9:F40,K9:K40,B70,C9:C40,D64) -> 0 | E70: =SUMIFS(F9:F40,K9:K40,B70,C9:C40,E64) -> 0 | F70: =SUMIFS(F9:F40,K9:K40,B70,C9:C40,F64) -> 0 | G70: =SUMIFS(F9:F40,K9:K40,B70,C9:C40,G64) -> 0 | I70: 0
B71: =+Controls!A149 -> 70% AMI | C71: =SUMIFS(F9:F40,K9:K40,B71,C9:C40,C64) -> 0 | D71: =SUMIFS(F9:F40,K9:K40,B71,C9:C40,D64) -> 0 | E71: =SUMIFS(F9:F40,K9:K40,B71,C9:C40,E64) -> 0 | F71: =SUMIFS(F9:F40,K9:K40,B71,C9:C40,F64) -> 0 | G71: =SUMIFS(F9:F40,K9:K40,B71,C9:C40,G64) -> 0 | I71: 0
B72: =+Controls!A150 -> 80% AMI | C72: =SUMIFS(F9:F40,K9:K40,B72,C9:C40,C64) -> 0 | D72: =SUMIFS(F9:F40,K9:K40,B72,C9:C40,D64) -> 0 | E72: =SUMIFS(F9:F40,K9:K40,B72,C9:C40,E64) -> 0 | F72: =SUMIFS(F9:F40,K9:K40,B72,C9:C40,F64) -> 0 | G72: =SUMIFS(F9:F40,K9:K40,B72,C9:C40,G64) -> 0 | I72: 0
B73: =+Controls!A143 -> 120% AMI | C73: =SUMIFS(F9:F40,K9:K40,B73,C9:C40,C64) -> 0 | D73: =SUMIFS(F9:F40,K9:K40,B73,C9:C40,D64) -> 0 | E73: =SUMIFS(F9:F40,K9:K40,B73,C9:C40,E64) -> 0 | F73: =SUMIFS(F9:F40,K9:K40,B73,C9:C40,F64) -> 0 | G73: =SUMIFS(F9:F40,K9:K40,B73,C9:C40,G64) -> 0 | I73: 0
B74: =+Controls!A151 -> Not AMI Restricted | C74: =SUMIFS(F9:F40,K9:K40,B74,C9:C40,C64) -> 0 | D74: =SUMIFS(F9:F40,K9:K40,B74,C9:C40,D64) -> 0 | E74: =SUMIFS(F9:F40,K9:K40,B74,C9:C40,E64) -> 0 | F74: =SUMIFS(F9:F40,K9:K40,B74,C9:C40,F64) -> 0 | G74: =SUMIFS(F9:F40,K9:K40,B74,C9:C40,G64) -> 0 | I74: 0
B75: Total Units | C75: =+AU41 -> 0 | D75: =+AV41 -> 0 | E75: =+AW41 -> 0 | F75: =+AX41 -> 0 | G75: =+AY41 -> 0 | I75: =+AU43 -> 0
B77: PSH Units | C77: =SUMIFS(F9:F40,J9:J40,"Yes",C9:C40,C64) -> 0 | D77: =SUMIFS(F9:F40,J9:J40,"Yes",C9:C40,D64) -> 0 | E77: =SUMIFS(F9:F40,J9:J40,"Yes",C9:C40,E64) -> 0 | F77: =SUMIFS(F9:F40,J9:J40,"Yes",C9:C40,F64) -> 0 | G77: =SUMIFS(F9:F40,J9:J40,"Yes",C9:C40,G64) -> 0 | I77: =SUM(C77:G77) -> 0

Sheet Development Costs
A3: =+Instructions!A3 -> 2025 QAP Underwriting Application v1.1
A4: =TRIM('Project Description'!E84)&" ("&TRIM('Project Description'!E86)&" LA), "&'Project Description'!E50 -> ( LA),
A6: Development Costs | I6: =+'Project Description'!L1071 -> 35
A8: ="Section "&I8 -> Section 36 | B8: Detail of Development Costs | G8: QAP Reference | I8: =+I6+1 -> 36
B10: ="Note -- see Section "&I155&" for calculation of acquisition (4%) basis and construction (9%) basis." -> Note -- see Section 38 for calculation of acquisition (4%) basis and construction (9%) basis.
B12: Acquisition | D12: =SUM(C13:C17) -> 0 | K12: Exculded from the Developer Fee Calculation for projects with no tenant relocation offsite
A13: =+I13 -> 36.01 | B13: Building Acquisition | C13: 0 | I13: =+I8+0.01 -> 36.01
A14: =+I14 -> 36.02 | B14: Land Acquisition (value of donated land) | C14: 0 | I14: =+I13+0.01 -> 36.02
A15: =+I15 -> 36.03 | B15: Land Acquisition (other) | C15: 0 | I15: =+I14+0.01 -> 36.03
A16: =+I16 -> 36.04 | B16: Acquisition Fee | C16: 0 | I16: =+I15+0.01 -> 36.04
B18: Construction Contract: Building Costs | D18: =SUM(C19:C27) -> 0
A19: =+I19 -> 36.04 | B19: Appliances | C19: 0 | I19: =+I15+0.01 -> 36.04
A20: 36.05 | B20: Community Facilities | C20: =+'Project Description'!H578 -> 0 | D20: ="See Section "&'Project Description'!A576 -> See Section 20.06 | G20: =+'QAP Reference'!A71 -> IV.D | I20: =+I19+0.01 -> 36.05
A21: 36.06 | B21: Community Service Facilities | C21: =+'Project Description'!H587 -> 0 | D21: ="See Section "&'Project Description'!A585 -> See Section 20.07 | G21: =+'QAP Reference'!A71 -> IV.D | I21: 36.06
A22: 36.07 | B22: Excess Costs | C22: =+'Project Description'!H597 -> 0 | D22: ="See Section "&'Project Description'!A593 -> See Section 20.08 | I22: 36.07
A23: 36.08 | B23: Residential Buildings - New Construction | C23: 0 | I23: 36.08
A24: 36.09 | B24: Residential Buildings - Rehabilitation | C24: 0 | I24: 36.09
A25: 36.1 | B25: Lead-based paint controls or abatement | C25: 0 | I25: =+I24+0.01 -> 36.1
A26: 36.11 | B26: Costs to Operate Self-Owned Equipment | C26: =+'Project Description'!H546 -> 0 | D26: ="See Section "&'Project Description'!A539 -> See Section 20.01 | I26: 36.11
B28: Construction Contract: Site Work | D28: =SUM(C29:C37) -> 0
A29: =+I29 -> 36.11 | B29: Demolition Cost | C29: 0 | I29: =+I25+0.01 -> 36.11
A30: 36.12 | B30: Earth Work | C30: 0 | I30: =+I29+0.01 -> 36.12
A31: 36.13 | B31: Lawn/Plantings | C31: 0 | I31: =+I30+0.01 -> 36.13
A32: 36.14 | B32: Off Site Work | C32: 0 | I32: 36.14
A33: 36.15 | B33: Roads/Walks | C33: 0 | I33: 36.15
A34: 36.16 | B34: Site Utilities | C34: 0 | I34: 36.16
A35: 36.17 | B35: Unusual Site Conditions | I35: 36.17
A36: 36.18 | B36: Extraordinary Site Costs | C36: =+'Project Description'!H574 -> 0 | D36: ="See Section "&'Project Description'!A573 -> See Section 20.05 | I36: 36.18
B38: Construction Contract: Other Costs | D38: =SUM(C39:C51) -> 0
A39: =+I39 -> 36.19 | B39: Bond Premium Paid by Contractor | C39: 0 | I39: =+I36+0.01 -> 36.19
A40: 36.2 | B40: General Requirements | C40: 0 | E40: =IF(J379>0,"GR is "&TEXT(J379,"#,##0")&" above the limit","") ->  | I40: =+I39+0.01 -> 36.2
A41: 36.21 | B41: Costs to Lease Self-Owned Equipment | C41: =+'Project Description'!H544 -> 0 | D41: ="See Section "&'Project Description'!A539 -> See Section 20.01 | I41: 36.21
A42: 36.22 | B42: Builder's Overhead | C42: 0 | E42: =IF(J380>0,"BO is "&TEXT(J380,"#,##0")&" above the limit","") ->  | I42: 36.22
A43: 36.23 | B43: Builder's Profit | C43: 0 | E43: =IF(J381>0,"BP is "&TEXT(J381,"#,##0")&" above the limit","") ->  | I43: 36.23
A44: 36.24 | B44: Construction Manager's Fee | C44: =+'Project Description'!H557 -> 0 | D44: ="See Section "&'Project Description'!A556 -> See Section 20.03 | I44: 36.24
A45: 36.25 | B45: Builder's Risk Insurance | C45: 0 | I45: 36.25
A46: 36.26 | B46: Builder's Liability Insurance | C46: 0 | I46: 36.26
A47: 36.27 | B47: Worker's Compensation Insurance | C47: 0 | I47: 36.27
A48: 36.28 | B48: Other: | C48: 0 | I48: 36.28
A49: 36.29 | B49: Other: | C49: 0 | I49: 36.29
A50: 36.3 | B50: Other: | C50: 0 | I50: 36.3
B51: =IF(J385>0,B385,"") -> 
B52: Hard Costs Outside Construction Contract | D52: =SUM(C55:C58) -> 0
A53: =+I53 -> 36.31 | B53: Bond Premium Paid by Taxpayer | I53: =+I50+0.01 -> 36.31
A55: =+I55 -> 36.28 | B55: Other Hard Cost (describe): | I55: =+I47+0.01 -> 36.28
A56: =+I56 -> 36.29 | B56: Other Hard Cost (describe): | I56: =+I55+0.01 -> 36.29
A57: =+I57 -> 36.3 | B57: Other Hard Cost (describe): | I57: =+I56+0.01 -> 36.3
B59: Construction Contingency | D59: =+C60 -> 0
A60: =+I60 -> 36.31 | B60: Construction Hard Cost Contingency | C60: 0 | E60: =IF(ROUND(C61,4)>10%,"Contingency is above the 10% limit","") ->  | I60: =+I57+0.01 -> 36.31
B61: Construction Hard Cost Contingency % | C61: =IF(C270=0,0,+C60/C270) -> 0
B63: Construction Interim Costs | D63: =SUM(C64:C76) -> 0
A64: =+I64 -> 36.32 | B64: Bridge Loan Fees | C64: 0 | I64: =+I60+0.01 -> 36.32
A65: 36.33 | B65: Bridge Loan Legal Fees | C65: 0 | I65: =+I64+0.01 -> 36.33
A66: 36.34 | B66: Building Permits/Fees | C66: 0 | I66: 36.34
A67: 36.35 | B67: Construction Credit Enhancement | C67: 0 | I67: 36.35
A68: 36.36 | B68: Construction Financing Fees | C68: 0 | I68: 36.36
A69: 36.37 | B69: Construction Hazard Insurance | C69: 0 | I69: 36.37
A70: 36.38 | B70: Construction Interest | C70: 0 | I70: 36.38
A71: 36.39 | B71: Construction Legal Fees | C71: 0 | I71: 36.39
A72: 36.4 | B72: Construction Liability Insurance | C72: 0 | I72: 36.4
A73: 36.41 | B73: Construction Loan Points | C73: 0 | I73: 36.41
A74: 36.42 | B74: Construction Title and Recording | C74: 0 | I74: 36.42
A75: 36.43 | B75: Other Construction Finance Fees | C75: 0 | I75: 36.43
B77: Permanent Financing Costs | D77: =SUM(C78:C85) -> 0
A78: =+I78 -> 36.44 | B78: Permanent Credit Enhancement | C78: 0 | I78: =+I75+0.01 -> 36.44
A79: 36.45 | B79: Permanent Financing Fees | C79: 0 | I79: =+I78+0.01 -> 36.45
A80: 36.46 | B80: Permanent Legal Fee | C80: 0 | I80: 36.46
A81: 36.47 | B81: Permanent Loan Points | C81: 0 | I81: 36.47
A82: 36.48 | B82: Permanent Title and Recording | C82: 0 | I82: 36.48
A83: 36.49 | B83: Other (describe): | C83: 0 | I83: 36.49
A84: 36.5 | B84: Other (describe): | C84: 0 | I84: 36.5
B86: LHC Risk-Sharing Fees | D86: =SUM(C87:C91) -> 0
A87: =+I87 -> 36.51 | B87: Application Fee (3,000) | C87: 0 | I87: =+I84+0.01 -> 36.51
A88: =+I88 -> 36.52 | B88: Commitment Fee (3% of loan amount) | C88: 0 | I88: =+I87+0.01 -> 36.52
A89: =+I89 -> 36.53 | B89: Upfront MIP (.5% of loan amount) | C89: 0 | I89: =+I88+0.01 -> 36.53
A90: =+I90 -> 36.54 | B90: Closing Fee (5,000) | C90: 0 | I90: =+I89+0.01 -> 36.54
B92: Professional Fees | D92: =SUM(C93:C96) -> 0
A93: =+I93 -> 36.55 | B93: Accounting Fees | C93: 0 | I93: =+I90+0.01 -> 36.55
A94: =+I94 -> 36.56 | B94: Architect Fees | C94: 0 | E94: =IF(J383>0,"Arch. Is "&TEXT(J383,"#,##0")&" above the limit","") ->  | I94: =+I93+0.01 -> 36.56
A95: =+I95 -> 36.57 | B95: Engineering Fees | C95: 0 | I95: =+I94+0.01 -> 36.57
B97: Reserves | D97: =SUM(C98:C105) -> 0 | K97: Exculded from the Developer Fee Calculation
A98: =+I98 -> 36.58 | B98: Escrows | C98: 0 | I98: =+I95+0.01 -> 36.58
A99: 36.59 | B99: Operating Deficit Reserve | C99: 0 | E99: =IF(C99<J99,"Op. Rsv. must be at least "&TEXT(J99,"#,##0"),"") ->  | I99: =+I98+0.01 -> 36.59 | J99: =+'Revenues and Expenses'!C89/2 -> 0 | K99: LHC Minimum Operating Reserve
A100: 36.6 | B100: Rent Up Reserves | C100: 0 | I100: 36.6
A101: 36.61 | B101: Replacement Reserve Deposit | C101: 0 | I101: 36.61
A102: 36.62 | B102: Other: | C102: 0 | I102: 36.62
A103: 36.63 | B103: Other: | C103: 0 | I103: 36.63
A104: 36.64 | B104: Other: | C104: 0 | I104: 36.64
B106: Syndication Costs | D106: =SUM(C107:C110) -> 0 | K106: Exculded from the Developer Fee Calculation
A107: =+I107 -> 36.65 | B107: Syndication Legal Fees | C107: 0 | I107: =+I104+0.01 -> 36.65
A108: =+I108 -> 36.66 | B108: Syndication Organization Expenses | C108: 0 | I108: =+I107+0.01 -> 36.66
A109: =+I109 -> 36.67 | B109: Other Syndication Expenses | C109: 0 | I109: =+I108+0.01 -> 36.67
B111: Other Soft Costs | D111: =SUM(C112:C132) -> 0
A112: =+I112 -> 36.68 | B112: Relocation Expenses | C112: 0 | I112: =+I109+0.01 -> 36.68
A113: 36.69 | B113: Appraisal | C113: 0 | I113: =+I112+0.01 -> 36.69
A114: 36.7 | B114: Market Study | C114: 0 | I114: 36.7
A115: 36.71 | B115: Environmental Study | C115: 0 | I115: 36.71
A116: 36.72 | B116: Environmental Review (HOME/Risk Sharing) | C116: 0 | I116: 36.72
A117: 36.73 | B117: Lead-Based Paint Assessment and Testing | C117: 0 | I117: 36.73
A118: 36.74 | B118: Survey | C118: 0 | I118: 36.74
A119: 36.75 | B119: Physical Capital Needs Assessment | C119: 0 | I119: 36.75
A120: 36.76 | B120: Marketing | C120: 0 | I120: 36.76 | K120: Exculded from the Developer Fee Calculation
A121: 36.77 | B121: Property Taxes | C121: 0 | I121: 36.77
A122: 36.78 | B122: Cost Certification | C122: 0 | I122: 36.78
A123: 36.79 | B123: Asset Management Fee | C123: 0 | I123: 36.79
A124: 36.8 | B124: LHC Non-Tax Credit Application Fee | C124: 0 | I124: 36.8 | K124: Exculded from the Developer Fee Calculation
A125: 36.81 | B125: LHC Tax Credit Application Fee | C125: 0 | I125: 36.81 | K125: Exculded from the Developer Fee Calculation
A126: 36.82 | B126: LHC Tax Credit Reservation Fee (5%) | C126: 0 | I126: 36.82 | K126: Exculded from the Developer Fee Calculation
A127: 36.83 | B127: LHC Fees other | C127: 0 | I127: 36.83 | K127: Exculded from the Developer Fee Calculation
A128: 36.84 | B128: Non-LHC Tax Credit Fees | C128: 0 | I128: 36.84 | K128: Exculded from the Developer Fee Calculation
A129: 36.85 | B129: Other: | C129: 0 | I129: 36.85
A130: 36.86 | B130: Other: | C130: 0 | I130: 36.86
A131: 36.87 | B131: Other: | C131: 0 | I131: 36.87
B133: Developer's Fee | D133: =SUM(C134:C139) -> 0 | E133: =IF('Project Description'!H12="Yes","",IFERROR(IF(J382>0,"Dev Fee is "&TEXT(J382,"#,##0")&" above the limit",""),"Primary Development Type is missing in Project Description")) -> 
A134: =+I134 -> 36.88 | B134: Consulting Fee | C134: 0 | I134: =+I131+0.01 -> 36.88
A135: =+I135 -> 36.89 | B135: Fees paid to CHDOs | C135: 0 | I135: =+I134+0.01 -> 36.89
A136: =+I136 -> 36.9 | B136: Fees paid to nonprofits | C136: 0 | I136: =+I135+0.01 -> 36.9
A137: =+I137 -> 36.91 | B137: Developer Fee | C137: 0 | I137: =+I136+0.01 -> 36.91
A138: =+I138 -> 36.92 | B138: Other developer fee | C138: 0 | I138: =+I137+0.01 -> 36.92
B140: TOTAL DEVELOPMENT COSTS | D140: =SUM(D9:D139) -> 0
B142: =IF('Project Description'!H12="Yes","",IF(J142=0,"","There are Fee Limit problems; see Section "&I373)) ->  | J142: =COUNTIF(J374:J386,">0") -> 0
B144: Comment on Development Costs
A146: ="Section "&I146 -> Section 37 | B146: Do Sources and Uses Balance? | G146: QAP Reference | I146: =+I8+1 -> 37
B148: ="Total Permanent Sources of Funds ("&'Project Description'!A510&")" -> Total Permanent Sources of Funds (Section 19) | D148: =+'Project Description'!H529 -> 0
B150: Total Development Costs | D150: =+D140 -> 0
B152: Total Sources Minus TDC | D152: =+D148-D150 -> 0
B153: =IF(ROUND(D152,0)=0,"","Sources and Uses are out of Balance:"&IF(D152<0," Sources Too Low"," Excess Sources")) -> 
A155: ="Section "&I155 -> Section 38 | B155: Acquisition Basis and Construction Basis | G155: QAP Reference | I155: =+I146+1 -> 38
A157: =+I157 -> 38.01 | B157: Calculation of Adjusted Acquisition Basis | I157: =+I155+0.01 -> 38.01
B159: Building Acquisition | C159: =+C13 -> 0
B160: Adjustment (explain) | C160: 0
B161: Adjustment (explain) | C161: 0
B162: Adjustment (explain) | C162: 0
B164: Adjusted Acquisition Basis | C164: =SUM(C158:C163) -> 0
B166: Comment on Acquisition Basis
A168: =+I168 -> 38.02 | B168: Calculation of Adjusted Construction Basis | I168: =+I157+0.01 -> 38.02
B170: The computation below subtracts amounts that LHC understands are generally excluded from construction basis. If your advisors conclude that any of the formula deductions are inappropriate for your transaction, use one of the Adjustment rows to add back amounts as appropriate. Also use the Adjustment rows to exclude other amounts as appropriate for your transaction.
B172: Total Development Cost | C172: =+D140 -> 0
B173: Subtract Adjusted Acquisition Basis | C173: =+-C164 -> 0
B174: Subtract Land Cost | C174: =+-C14-C15 -> 0
B175: Subtract the out-of-basis portion of:
B176: Community Facilities | C176: =-'Project Description'!H580 -> 0
B177: Community Service Facilities | C177: =+-'Project Description'!H589 -> 0
B178: Subtract Commercial Development Cost | C178: =+-'Project Description'!H624 -> 0
B179: Subtract Permanent Financing Costs | C179: =+-D77 -> 0
B180: Subtract Reserves | C180: =+-D97 -> 0
B181: Subtract Syndication Costs | C181: =+-D106 -> 0
B182: Subtract LHC Fees | C182: =+-C124-C125-C126-C127 -> 0
B183: Subtract Federal Grants | C183: =+-'Project Description'!H530 -> 0 | D183: ="See Section "&'Project Description'!L510 -> See Section 19
B184: Subtract HOME | C184: =IF(AND('Project Description'!E362>0,'Project Description'!E360=Controls!A87),-'Project Description'!E362,0) -> 0
B185: Subtract issuance costs for tax-exempt bonds | C185: =IF('Project Description'!H9="Yes",-ABS('Project Description'!H18),0) -> 0 | D185: ="See Section "&TEXT('Project Description'!A8,"0.00") -> See Section 10.01
B186: Adjustment (explain) | C186: 0
B187: Adjustment (explain) | C187: 0
B188: Adjustment (explain) | C188: 0
B189: Adjustment (explain) | C189: 0
B190: Adjustment (explain) | C190: 0
B191: Adjustment (explain) | C191: 0
B193: Adjusted Construction Basis | C193: =SUM(C169:C192) -> 0
B195: Comment on Construction Basis
A197: ="Section "&I197 -> Section 39 | B197: Total Development Cost Summary | G197: QAP Reference | I197: =+I155+1 -> 39
B199: USES OF FUNDS / TOTAL DEVELOPMENT COST | C199: TOTAL
A201: =+I201 -> 39.01 | B201: Building Acquisition | C201: =+C13 -> 0 | D201: =IF(J201=0,0,C201/J201) -> 0 | E201: per unit | I201: =+I197+0.01 -> 39.01 | J201: =+'Unit Mix and Rents'!F41 -> 0 | K201: total units
A202: 39.02 | B202: Land Acquisition | C202: =+D12-C13 -> 0 | D202: =IF(J201=0,0,C202/J201) -> 0 | E202: per unit | I202: =+I201+0.01 -> 39.02
A203: 39.03 | B203: Construction Contract: New Construction | C203: =+C23 -> 0 | D203: =IF(J201=0,0,C203/J201) -> 0 | E203: per unit | I203: =+I202+0.01 -> 39.03
A204: 39.04 | B204: Construction Contract: Rehab | C204: =+C24 -> 0 | D204: =IF(J201=0,0,C204/J201) -> 0 | E204: per unit | I204: 39.04
A205: 39.05 | B205: Other Construction Contract Building Costs | C205: =+D18-C204-C203 -> 0 | D205: =IF(J201=0,0,C205/J201) -> 0 | E205: per unit | I205: 39.05
A206: 39.06 | B206: Construction Contract: Site Work | C206: =+D28 -> 0 | D206: =IF(J201=0,0,C206/J201) -> 0 | E206: per unit | I206: 39.06
A207: 39.07 | B207: General Requirements | C207: =+C40 -> 0 | D207: =IF(J201=0,0,C207/J201) -> 0 | E207: per unit | I207: 39.07
A208: 39.08 | B208: Builder's Overhead | C208: =+C42 -> 0 | D208: =IF(J201=0,0,C208/J201) -> 0 | E208: per unit | I208: 39.08
A209: 39.09 | B209: Builder's Profit | C209: =+C43 -> 0 | D209: =IF(J201=0,0,C209/J201) -> 0 | E209: per unit | I209: 39.09
A210: 39.1 | B210: Other Construction Contract Costs | C210: =+D38-C209-C208-C207 -> 0 | D210: =IF(J201=0,0,C210/J201) -> 0 | E210: per unit | I210: 39.1
A211: 39.11 | B211: Hard Costs Outside Construction Contract | C211: =+D52 -> 0 | D211: =IF(J201=0,0,C211/J201) -> 0 | E211: per unit | I211: 39.11
A212: 39.12 | B212: Construction Hard Cost Contingency | C212: =+D59 -> 0 | D212: =IF(J201=0,0,C212/J201) -> 0 | E212: per unit | I212: 39.12
A213: 39.13 | B213: Total Construction Interim Costs | C213: =+D63 -> 0 | D213: =IF(J201=0,0,C213/J201) -> 0 | E213: per unit | I213: 39.13
A214: 39.14 | B214: Total Permanent Financing Costs | C214: =+D77 -> 0 | D214: =IF(J201=0,0,C214/J201) -> 0 | E214: per unit | I214: 39.14
A215: 39.15 | B215: Total LHC Risk-Sharing Fees | C215: =+D86 -> 0 | D215: =IF(J201=0,0,C215/J201) -> 0 | E215: per unit | I215: 39.15
A216: 39.16 | B216: Total Professional Fees | C216: =+D92 -> 0 | D216: =IF(J201=0,0,C216/J201) -> 0 | E216: per unit | I216: 39.16
A217: 39.17 | B217: Escrows | C217: =+C98 -> 0 | D217: =IF(J201=0,0,C217/J201) -> 0 | E217: per unit | I217: 39.17
A218: 39.18 | B218: Operating Deficit Reserve | C218: 0 | D218: =IF(J201=0,0,C218/J201) -> 0 | E218: per unit | I218: 39.18
A219: 39.19 | B219: Rent Up Reserves | C219: 0 | D219: =IF(J201=0,0,C219/J201) -> 0 | E219: per unit | I219: 39.19
A220: 39.2 | B220: Replacement Reserve Deposit IDRR | C220: 0 | D220: =IF(J201=0,0,C220/J201) -> 0 | E220: per unit | I220: 39.2
A221: 39.21 | B221: Other: | C221: 0 | D221: =IF(J201=0,0,C221/J201) -> 0 | E221: per unit | I221: 39.21
A222: 39.22 | B222: Other: | C222: 0 | D222: =IF(J201=0,0,C222/J201) -> 0 | E222: per unit | I222: 39.22
A223: 39.23 | B223: Other: | C223: 0 | D223: =IF(J201=0,0,C223/J201) -> 0 | E223: per unit | I223: 39.23
A224: 39.24 | B224: Total Syndication Costs | C224: =+D106 -> 0 | D224: =IF(J201=0,0,C224/J201) -> 0 | E224: per unit | I224: 39.24
A225: 39.25 | B225: Total Other Soft Costs | C225: =+D111 -> 0 | D225: =IF(J201=0,0,C225/J201) -> 0 | E225: per unit | I225: 39.25
A226: 39.26 | B226: Developer Fee | C226: =+C137 -> 0 | D226: =IF(J201=0,0,C226/J201) -> 0 | E226: per unit | I226: 39.26
A227: 39.27 | B227: Other Developer's Fee | C227: =+D133-C226 -> 0 | D227: =IF(J201=0,0,C227/J201) -> 0 | E227: per unit | I227: 39.27
B229: Total Development Cost (Total Uses of Funds) | C229: =SUM(C200:C228) -> 0 | D229: =IF(J201=0,0,C229/J201) -> 0 | E229: per unit | J229: =+D140-C229 -> 0
A231: ="Section "&I231 -> Section 40 | B231: HUD TDC Per Unit Limit | G231: QAP Reference | I231: =+I197+1 -> 40
B233: Parish | C233: =+'Project Description'!E87 -> Select
B234: Louisiana Cost Area for TDC Limit Purposes | C234: =+K234 ->  | K234: =VLOOKUP(C233,Parishes!A10:X73,24,FALSE) -> 
B235: Primary Building Type | C235: =+'Project Description'!H117 -> Missing | F235: Maximum
B236: Building Type for TDC Limit Purposes | C236: =VLOOKUP(C235,Controls!A49:B58,2,FALSE) -> Walkup | E236: TDC / Unit | F236: TDC | K236: =TRIM(C234&" "&C236) -> 
B238: 0 BR Units | C238: =+'Unit Mix and Rents'!AU41 -> 0 | D238: units | E238: =VLOOKUP(K236,'HUD TDC Data'!C8:J35,K238,FALSE) ->  | F238: =+C238*E238 ->  | K238: 2
B239: 1 BR Units | C239: =+'Unit Mix and Rents'!AV41 -> 0 | D239: units | E239: =VLOOKUP(K236,'HUD TDC Data'!C8:J35,K239,FALSE) ->  | F239: =+C239*E239 ->  | K239: 3
B240: 2 BR Units | C240: =+'Unit Mix and Rents'!AW41 -> 0 | D240: units | E240: =VLOOKUP(K236,'HUD TDC Data'!C8:J35,K240,FALSE) ->  | F240: =+C240*E240 ->  | K240: 4
B241: 3 BR Units | C241: =+'Unit Mix and Rents'!AX41 -> 0 | D241: units | E241: =VLOOKUP(K236,'HUD TDC Data'!C8:J35,K241,FALSE) ->  | F241: =+C241*E241 ->  | K241: 5
B242: 4 BR Units | C242: =+'Unit Mix and Rents'!AY41 -> 0 | D242: units | E242: =VLOOKUP(K236,'HUD TDC Data'!C8:J35,K242,FALSE) ->  | F242: =+C242*E242 ->  | K242: 6
B244: Total | C244: =SUM(C235:C243) -> 0 | D244: units | E244: =IF(C244=0,0,+F244/C244) -> 0 | F244: =SUM(F235:F243) ->  | G244: = Maximum TDC Limit | J244: =+F254+-F248 -> 0 | K244: Adjusted TDC, adding back Extraordinary Site Costs
... 106 more rows

Sheet Basis Calculation
A3: =+Instructions!A3 -> 2025 QAP Underwriting Application v1.1
A4: =TRIM('Project Description'!E84)&" ("&TRIM('Project Description'!E86)&" LA), "&'Project Description'!E50 -> ( LA),
A6: Basis Calculation | D6: =IF(C9<'Project Description'!H603,1,0) -> 0 | E6: =IF(D9<'Project Description'!H603,1,0) -> 0 | F6: =IF(E9<'Project Description'!H603,1,0) -> 0 | G6: =IF(F9<'Project Description'!H603,1,0) -> 0 | H6: =IF(G9<'Project Description'!H603,1,0) -> 0 | I6: =IF(H9<'Project Description'!H603,1,0) -> 0 | J6: =IF(I9<'Project Description'!H603,1,0) -> 0 | K6: =IF(J9<'Project Description'!H603,1,0) -> 0 | L6: =IF(K9<'Project Description'!H603,1,0) -> 0 | M6: =IF(L9<'Project Description'!H603,1,0) -> 0 | N6: =IF(M9<'Project Description'!H603,1,0) -> 0 | O6: =IF(N9<'Project Description'!H603,1,0) -> 0 | P6: =IF(O9<'Project Description'!H603,1,0) -> 0 | Q6: =IF(P9<'Project Description'!H603,1,0) -> 0 | R6: =IF(Q9<'Project Description'!H603,1,0) -> 0 | S6: =IF(R9<'Project Description'!H603,1,0) -> 0 | T6: =IF(S9<'Project Description'!H603,1,0) -> 0 | U6: =IF(T9<'Project Description'!H603,1,0) -> 0
B7: =IF(K57=0,"","Note -- there are error conditions; see the Notes at the end of this worksheet") -> 
C8: Total | D8: Configuration | E8: =IF(E6=1,"Configuration","") ->  | F8: =IF(F6=1,"Configuration","") -> 
B9: BUILDING CONFIGURATION | C9: =+'Project Description'!H603 -> 0 | D9: 1 | E9: =IF(E6=1,+D9+1,"") ->  | F9: =IF(F6=1,+E9+1,"") -> 
B10: =IF('Project Description'!H204=0,"THIS SECTION IS NOT REQUIRED BECAUSE THERE ARE NO TAX CREDITS REQUESTED","") -> THIS SECTION IS NOT REQUIRED BECAUSE THERE ARE NO TAX CREDITS REQUESTED
B11: Number of Buildings with Configuration | C11: =SUM(D11:U11) -> 0
A13: =+'Project Description'!H639+'Project Description'!H640 -> 0 | B13: Floor Area of Residential Units + Staff Units | C13: =SUMPRODUCT(D13:U13,D11:U11) -> 0
A14: =+A16-A13-A15 -> 0 | B14: Other (Common Areas, …) | C14: =SUMPRODUCT(D14:U14,D11:U11) -> 0
A15: ='Project Description'!H641 -> 0 | B15: Other (Comml) | C15: =SUMPRODUCT(D15:U15,D12:U12) -> 0
A16: =+'Project Description'!H646 -> 0 | B16: Per Building Total Area | C16: =SUMPRODUCT(D16:U16,D11:U11) -> 0 | D16: =SUM(D13:D14) -> 0 | E16: =IF(E6=1,SUM(E13:E14),"") -> 
A18: =+'Unit Mix and Rents'!G41 -> 0 | B18: Number of LIHTC Units | C18: =SUMPRODUCT(D18:U18,D11:U11) -> 0
A19: =+'Unit Mix and Rents'!F56 -> 0 | B19: Number of Residential Units | C19: =SUMPRODUCT(D19:U19,D11:U11) -> 0
B20: Applicable Fraction by Units | D20: =IF(D19=0,0,+D18/D19) -> 0 | E20: =IF(E6=1,IF(E19=0,0,E18/E19),"") -> 
A22: =+'Unit Mix and Rents'!E45 -> 0 | B22: Sqft of LIHTC Units | C22: =SUMPRODUCT(D22:U22,D11:U11) -> 0
A23: =+'Unit Mix and Rents'!E56 -> 0 | B23: Total Sqft of Residential Units | C23: =SUMPRODUCT(D23:U23,D11:U11) -> 0
B24: Applicable Fraction by Sqft | D24: =IF(D23=0,0,+D22/D23) -> 0 | E24: =IF(E6=1,IF(E23=0,0,E22/E23),"") -> 
B26: BASIS CALCULATION
A28: =+'Development Costs'!C193 -> 0 | B28: Adjusted Construction Basis | C28: =SUMPRODUCT(D28:U28,D11:U11) -> 0 | D28: =IF(C16=0,0,ROUND((D16/C16)*'Development Costs'!C193,0)) -> 0 | E28: =IF(E6=1,ROUND((E16/C16)*'Development Costs'!C193,0),0) -> 0 | F28: =IF(F6=1,ROUND((F16/C16)*'Development Costs'!C193,0),0) -> 0 | G28: =IF(G6=1,ROUND((G16/C16)*'Development Costs'!C193,0),0) -> 0 | H28: =IF(H6=1,ROUND((H16/C16)*'Development Costs'!C193,0),0) -> 0 | I28: =IF(I6=1,ROUND((I16/C16)*'Development Costs'!C193,0),0) -> 0 | J28: =IF(J6=1,ROUND((J16/C16)*'Development Costs'!C193,0),0) -> 0 | K28: =IF(K6=1,ROUND((K16/C16)*'Development Costs'!C193,0),0) -> 0 | L28: =IF(L6=1,ROUND((L16/C16)*'Development Costs'!C193,0),0) -> 0 | M28: =IF(M6=1,ROUND((M16/C16)*'Development Costs'!C193,0),0) -> 0 | N28: =IF(N6=1,ROUND((N16/C16)*'Development Costs'!C193,0),0) -> 0 | O28: =IF(O6=1,ROUND((O16/C16)*'Development Costs'!C193,0),0) -> 0 | P28: =IF(P6=1,ROUND((P16/C16)*'Development Costs'!C193,0),0) -> 0 | Q28: =IF(Q6=1,ROUND((Q16/C16)*'Development Costs'!C193,0),0) -> 0 | R28: =IF(R6=1,ROUND((R16/C16)*'Development Costs'!C193,0),0) -> 0 | S28: =IF(S6=1,ROUND((S16/C16)*'Development Costs'!C193,0),0) -> 0 | T28: =IF(T6=1,ROUND((T16/C16)*'Development Costs'!C193,0),0) -> 0 | U28: =IF(U6=1,ROUND((U16/C16)*'Development Costs'!C193,0),0) -> 0
A29: =+'Development Costs'!C164 -> 0 | B29: Adjusted Acquisition Basis | C29: =SUMPRODUCT(D29:U29,D11:U11) -> 0 | D29: =IF(C16=0,0,ROUND((D13/C16)*'Development Costs'!C164,0)) -> 0 | E29: =IF(E6=1,ROUND((E13/C16)*'Development Costs'!C164,0),0) -> 0 | F29: =IF(F6=1,ROUND((F13/C16)*'Development Costs'!C164,0),0) -> 0 | G29: =IF(G6=1,ROUND((G13/C16)*'Development Costs'!C164,0),0) -> 0 | H29: =IF(H6=1,ROUND((H13/C16)*'Development Costs'!C164,0),0) -> 0 | I29: =IF(I6=1,ROUND((I13/C16)*'Development Costs'!C164,0),0) -> 0 | J29: =IF(J6=1,ROUND((J13/C16)*'Development Costs'!C164,0),0) -> 0 | K29: =IF(K6=1,ROUND((K13/C16)*'Development Costs'!C164,0),0) -> 0 | L29: =IF(L6=1,ROUND((L13/C16)*'Development Costs'!C164,0),0) -> 0 | M29: =IF(M6=1,ROUND((M13/C16)*'Development Costs'!C164,0),0) -> 0 | N29: =IF(N6=1,ROUND((N13/C16)*'Development Costs'!C164,0),0) -> 0 | O29: =IF(O6=1,ROUND((O13/C16)*'Development Costs'!C164,0),0) -> 0 | P29: =IF(P6=1,ROUND((P13/C16)*'Development Costs'!C164,0),0) -> 0 | Q29: =IF(Q6=1,ROUND((Q13/C16)*'Development Costs'!C164,0),0) -> 0 | R29: =IF(R6=1,ROUND((R13/C16)*'Development Costs'!C164,0),0) -> 0 | S29: =IF(S6=1,ROUND((S13/C16)*'Development Costs'!C164,0),0) -> 0 | T29: =IF(T6=1,ROUND((T13/C16)*'Development Costs'!C164,0),0) -> 0 | U29: =IF(U6=1,ROUND((U13/C16)*'Development Costs'!C164,0),0) -> 0
A31: =+'Project Description'!H219+1 -> 1 | B31: Construction Basis After Boost | C31: =SUMPRODUCT(D31:U31,D11:U11) -> 0 | D31: =+D28*A31 -> 0 | E31: =IF(E6=1,+E28*A31,"") ->  | F31: =IF(F6=1,+F28*A31,"") ->  | G31: =IF(G6=1,+G28*A31,"") ->  | H31: =IF(H6=1,+H28*A31,"") ->  | I31: =IF(I6=1,+I28*A31,"") ->  | J31: =IF(J6=1,+J28*A31,"") ->  | K31: =IF(K6=1,+K28*A31,"") ->  | L31: =IF(L6=1,+L28*A31,"") ->  | M31: =IF(M6=1,+M28*A31,"") ->  | N31: =IF(N6=1,+N28*A31,"") ->  | O31: =IF(O6=1,+O28*A31,"") ->  | P31: =IF(P6=1,+P28*A31,"") ->  | Q31: =IF(Q6=1,+Q28*A31,"") ->  | R31: =IF(R6=1,+R28*A31,"") ->  | S31: =IF(S6=1,+S28*A31,"") ->  | T31: =IF(T6=1,+T28*A31,"") ->  | U31: =IF(U6=1,+U28*A31,"") -> 
A32: =+'Project Description'!H220+1 -> 1 | B32: Acquisition Basis After Boost | C32: =SUMPRODUCT(D32:U32,D11:U11) -> 0 | D32: =+D29*A32 -> 0 | E32: =IF(E6=1,+E29*A32,"") ->  | F32: =IF(F6=1,+F29*A32,"") ->  | G32: =IF(G6=1,+G29*A32,"") ->  | H32: =IF(H6=1,+H29*A32,"") ->  | I32: =IF(I6=1,+I29*A32,"") ->  | J32: =IF(J6=1,+J29*A32,"") ->  | K32: =IF(K6=1,+K29*A32,"") ->  | L32: =IF(L6=1,+L29*A32,"") ->  | M32: =IF(M6=1,+M29*A32,"") ->  | N32: =IF(N6=1,+N29*A32,"") ->  | O32: =IF(O6=1,+O29*A32,"") ->  | P32: =IF(P6=1,+P29*A32,"") ->  | Q32: =IF(Q6=1,+Q29*A32,"") ->  | R32: =IF(R6=1,+R29*A32,"") ->  | S32: =IF(S6=1,+S29*A32,"") ->  | T32: =IF(T6=1,+T29*A32,"") ->  | U32: =IF(U6=1,+U29*A32,"") -> 
B34: Applicable Fraction | C34: =IF(C31=0,0,+C36/C31) -> 0 | D34: =MIN(D24,D20) -> 0 | E34: =IF(E6=1,MIN(E24,E20),"") -> 
B36: Unadjusted Qualified Construction Basis | C36: =SUMPRODUCT(D36:U36,D11:U11) -> 0 | D36: =+D34*D31 -> 0 | E36: =IF(E6=1,+E34*E31,"") -> 
B37: Unadjusted Qualified Acquisition. Basis | C37: =SUMPRODUCT(D37:U37,D11:U11) -> 0 | D37: =+D34*D32 -> 0 | E37: =IF(E6=1,E34*E32,"") -> 
B39: Homeless Basis Adjustment (Construction)* | C39: =SUMPRODUCT(D39:U39,D11:U11) -> 0 | D39: 0 | E39: 0 | F39: 0 | G39: 0 | H39: 0 | I39: 0 | J39: 0 | K39: 0 | L39: 0 | M39: 0 | N39: 0 | O39: 0 | P39: 0 | Q39: 0 | R39: 0 | S39: 0 | T39: 0 | U39: 0
B40: Homeless Basis Adjustment (Acquisition)* | C40: =SUMPRODUCT(D40:U40,D11:U11) -> 0 | D40: 0 | E40: 0 | F40: 0 | G40: 0 | H40: 0 | I40: 0 | J40: 0 | K40: 0 | L40: 0 | M40: 0 | N40: 0 | O40: 0 | P40: 0 | Q40: 0 | R40: 0 | S40: 0 | T40: 0 | U40: 0
B42: Qualified Construction Basis | C42: =SUMPRODUCT(D42:U42,D11:U11) -> 0 | D42: =+D39+D36 -> 0 | E42: =IF(E6=1,+E36+E39,"") -> 
B43: Qualified Acquisition Basis | C43: =SUMPRODUCT(D43:U43,D11:U11) -> 0 | D43: =+D40+D37 -> 0 | E43: =IF(E6=1,+E37+E40,"") -> 
B45: Construction Credit Percentage | C45: =IF('Project Description'!H23="Yes",'Project Description'!H207,IF('Project Description'!H12="Yes",'Project Description'!H15,0)) -> 0
B46: Acquisition Credit Percentage | C46: =IF('Project Description'!H23="Yes",+'Project Description'!H209,IF('Project Description'!H12="Yes",'Project Description'!H15,0)) -> 0
B49: Permitted Construction Credit | C49: =SUMPRODUCT(D49:U49,D11:U11) -> 0 | D49: =+D42*C45 -> 0 | E49: =IF(E6=1,+E42*C45,"") ->  | F49: =IF(F6=1,+F42*C45,"") ->  | G49: =IF(G6=1,+G42*C45,"") ->  | H49: =IF(H6=1,+H42*C45,"") ->  | I49: =IF(I6=1,+I42*C45,"") ->  | J49: =IF(J6=1,+J42*C45,"") ->  | K49: =IF(K6=1,+K42*C45,"") ->  | L49: =IF(L6=1,+L42*C45,"") ->  | M49: =IF(M6=1,+M42*C45,"") ->  | N49: =IF(N6=1,+N42*C45,"") ->  | O49: =IF(O6=1,+O42*C45,"") ->  | P49: =IF(P6=1,+P42*C45,"") ->  | Q49: =IF(Q6=1,+Q42*C45,"") ->  | R49: =IF(R6=1,+R42*C45,"") ->  | S49: =IF(S6=1,+S42*C45,"") ->  | T49: =IF(T6=1,+T42*C45,"") ->  | U49: =IF(U6=1,+U42*C45,"") -> 
B50: Permitted Acquisition Credi | C50: =SUMPRODUCT(D50:U50,D11:U11) -> 0 | D50: =+D43*C46 -> 0 | E50: =IF(E6=1,+E43*C46,"") ->  | F50: =IF(F6=1,+F43*C46,"") ->  | G50: =IF(G6=1,+G43*C46,"") ->  | H50: =IF(H6=1,+H43*C46,"") ->  | I50: =IF(I6=1,+I43*C46,"") ->  | J50: =IF(J6=1,+J43*C46,"") ->  | K50: =IF(K6=1,+K43*C46,"") ->  | L50: =IF(L6=1,+L43*C46,"") ->  | M50: =IF(M6=1,+M43*C46,"") ->  | N50: =IF(N6=1,+N43*C46,"") ->  | O50: =IF(O6=1,+O43*C46,"") ->  | P50: =IF(P6=1,+P43*C46,"") ->  | Q50: =IF(Q6=1,+Q43*C46,"") ->  | R50: =IF(R6=1,+R43*C46,"") ->  | S50: =IF(S6=1,+S43*C46,"") ->  | T50: =IF(T6=1,+T43*C46,"") ->  | U50: =IF(U6=1,+U43*C46,"") -> 
B52: Maximum Permitted Credit for Project | C52: =+C50+C49 -> 0
B53: (Based on estimated development costs, without regard to Equity Gap limitation and without regard to maximum credits allowable in the selected pool)
B55: * Section 42(c)(1)(E) permits an upward adjustment to basis for buildings used at least in part "to provide supportive services designed to assist [homeless] tenants in locating and retaiing permanent housing".
B57: Error checks: | K57: =SUM(K58:K63) -> 0
B58: =IF(C11='Project Description'!H602,"","Note 1 -- Total number of buildings ("&C11&" buildings) does not agree with Project Description section "&'Project Description'!A600&" ("&'Project Description'!H602&" buildings)") ->  | K58: =IF(B58="","",1) -> 
B59: =IF(A13=C13,"","Note 2 -- Total Floor Area (Residential + Staff Units) of "&TEXT(C13,"#,##0")&" square feet, does not agree with Unit Mix and Rents worksheet ("&TEXT(A13,"#,##0")&" square feet)") -> 
B60: =IF(A18=C18,"","Note 3 -- Total LIHTC Units ("&TEXT(C18,"#,##0")&" units) does not agree with Unit Mix and Rents worksheet ("&TEXT(A18,"#,##0")&" units)") -> 
B61: =IF(A19=C19,"","Note 4 -- Total Residential Units ("&TEXT(C19,"#,##0")&" units) does not agree with Unit Mix and Rents worksheet ("&TEXT(A19,"#,##0")&" units)") -> 
B62: =IF(A22=C22,"","Note 5 -- Total LIHTC Units Floor Area ("&TEXT(C22,"#,##0")&" sqft) does not agree with Unit Mix and Rents worksheet ("&TEXT(A22,"#,##0")&" sqft)") -> 
B63: =IF(A23=C23,"","Note 6 -- Total Residential Floor Area ("&TEXT(C23,"#,##0")&" sqft) does not agree with Unit Mix and Rents worksheet ("&TEXT(A23,"#,##0")&" sqft)") -> 

Sheet Revenues and Expenses
A3: =+Instructions!A3 -> 2025 QAP Underwriting Application v1.1
A4: =TRIM('Project Description'!E84)&" ("&TRIM('Project Description'!E86)&" LA), "&'Project Description'!E50 -> ( LA),
A6: Revenues and Expenses, For First Stabilized Year After Lease-Up
A8: ="Section "&H8 -> Section 43 | B8: Revenues for First Stabilized Year | H8: =+'Development Costs'!I396+1 -> 43
A10: =+H10 -> 43.01 | B10: Gross Potential Rents (excluding utilities) | C10: =+'Unit Mix and Rents'!L41*12 -> 0 | H10: =+H8+0.01 -> 43.01
A11: 43.02 | B11: Rent from Commercial Space | C11: 0 | H11: =+H10+0.01 -> 43.02
A12: 43.03 | B12: Interest Income | C12: 0 | H12: =+H11+0.01 -> 43.03
A13: 43.04 | B13: Laundry Income | C13: 0 | H13: 43.04
A14: 43.05 | B14: Parking Income | C14: 0 | H14: 43.05
A15: 43.06 | B15: Tenant Charges (e.g. late fees) | C15: 0 | H15: 43.06
B16: Operating Subsidies:
A17: =+H17 -> 43.07 | B17: Other (identify) | C17: 0 | H17: =+H15+0.01 -> 43.07
A18: =+H18 -> 43.08 | B18: Other (identify) | C18: 0 | H18: 43.08
A19: =+H19 -> 43.09 | B19: Other (identify) | C19: 0 | H19: 43.09
B20: Other Revenue:
A21: =+H21 -> 43.1 | B21: Other (identify) | C21: 0 | H21: =+H19+0.01 -> 43.1
A22: =+H22 -> 43.11 | B22: Other (identify) | C22: 0 | H22: 43.11
A23: =+H23 -> 43.12 | B23: Other (identify) | C23: 0 | H23: 43.12
A25: =+H25 -> 43.13 | B25: Total Revenue Before Rent Loss | C25: =SUM(C9:C24) -> 0 | H25: =+H23+0.01 -> 43.13
B27: Comment regarding Revenues
A29: ="Section "&H29 -> Section 44 | B29: Must-Pay Operating Expenses for First Stabilized Year | H29: =+H8+1 -> 44
A31: =+H31 -> 44.01 | B31: Administrative Expenses: | C31: =SUM(C32:C51) -> 0 | D31: =IF(I31=0,0,C31/I31) -> 0 | E31: PUPA | H31: =+H29+0.01 -> 44.01 | I31: =+'Unit Mix and Rents'!F41 -> 0 | J31: total units
A32: =+H32 -> 44.02 | B32: Accounting Services | C32: 0 | H32: =+H31+0.01 -> 44.02
A33: 44.03 | B33: Administrative Rent Free Unit(s) | C33: 0 | H33: =+H32+0.01 -> 44.03
A34: 44.04 | B34: Bad Debt | C34: 0 | H34: 44.04
A35: 44.05 | B35: Rent Concessions | C35: 0 | H35: 44.05
A36: 44.06 | B36: Advertising | C36: 0 | H36: 44.06
A37: 44.07 | B37: LHC Compliance Monitoring Fee | C37: =+'Project Description'!H1043 -> 0 | H37: 44.07
A38: 44.08 | B38: Compliance Fees (Other) | C38: 0 | H38: 44.08
A39: 44.09 | B39: LHC Asset Management Fee | C39: 0 | H39: 44.09
A40: 44.1 | B40: Asset Management Fee (Other) | C40: 0 | H40: 44.1
A41: 44.11 | B41: Legal Auditing | C41: 0 | H41: 44.11
A42: 44.12 | B42: Management Fee | C42: 0 | H42: 44.12
A43: 44.13 | B43: Manager(s) Salaries | C43: 0 | H43: 44.13
A44: 44.14 | B44: Office Salaries | C44: 0 | H44: 44.14
A45: 44.15 | B45: Office Supplies | C45: 0 | H45: 44.15
A46: 44.16 | B46: Telephone | C46: 0 | H46: 44.16
A47: 44.17 | B47: Supportive Services Expense | C47: 0 | H47: 44.17
A48: 44.18 | B48: Other (identify) | C48: 0 | H48: 44.18
A49: 44.19 | B49: Other (identify) | C49: 0 | H49: 44.19
A50: 44.2 | B50: Other (identify) | H50: 44.2
A52: 44.21 | B52: Operating/Maintenance Expenses: | C52: =SUM(C53:C63) -> 0 | D52: =IF(I31=0,0,C52/I31) -> 0 | E52: PUPA | H52: =+H50+0.01 -> 44.21
A53: 44.22 | B53: Elevator Maintenance/Contract | C53: 0 | H53: 44.22
A54: 44.23 | B54: Exterminating Contract | C54: 0 | H54: 44.23
A55: 44.24 | B55: Grounds Expense | C55: 0 | H55: 44.24
A56: 44.25 | B56: Janitorial Services | C56: 0 | H56: 44.25
A57: 44.26 | B57: Repairs/Maintenance | C57: 0 | H57: 44.26
A58: 44.27 | B58: Security Payroll/Contract | C58: 0 | H58: 44.27
A59: 44.28 | B59: Waste Collection | C59: 0 | H59: 44.28
A60: 44.29 | B60: Other (identify) | C60: 0 | H60: 44.29
A61: 44.3 | B61: Other (identify) | C61: 0 | H61: 44.3
A62: 44.31 | B62: Other (identify) | C62: 0 | H62: 44.31
A64: 44.32 | B64: Utilities Expenses: | C64: =SUM(C65:C72) -> 0 | D64: =IF(I31=0,0,C64/I31) -> 0 | E64: PUPA | H64: =+H62+0.01 -> 44.32
A65: 44.33 | B65: Electricity | C65: 0 | H65: 44.33
A66: 44.34 | B66: Gas | C66: 0 | H66: 44.34
A67: 44.35 | B67: Sewer | C67: 0 | H67: 44.35
A68: 44.36 | B68: Water | C68: 0 | H68: 44.36
A69: 44.37 | B69: Other (identify): | C69: 0 | H69: 44.37
A70: 44.38 | B70: Other (identify) | C70: 0 | H70: 44.38
A71: 44.39 | B71: Other (identify) | C71: 0 | H71: 44.39
A73: 44.4 | B73: Tax and Insurance Expenses: | C73: =SUM(C74:C82) -> 0 | D73: =IF(I31=0,0,C73/I31) -> 0 | E73: PUPA | H73: =+H71+0.01 -> 44.4
A74: 44.41 | B74: Property Insurance | C74: 0 | H74: 44.41
A75: 44.42 | B75: Other Insurance | C75: 0 | H75: 44.42
A76: 44.43 | B76: Payroll Taxes | C76: 0 | H76: 44.43
A77: 44.44 | B77: Real Estate Taxes | C77: 0 | H77: 44.44
A78: 44.45 | B78: Workmen's Compensation | C78: 0 | H78: 44.45
A79: 44.46 | B79: Other (identify): | C79: 0 | H79: 44.46
A80: 44.47 | B80: Other (identify) | C80: 0 | H80: 44.47
A81: 44.48 | B81: Other (identify) | C81: 0 | H81: 44.48
A83: 44.49 | B83: Total Operating Expenses | C83: =+C73+C64+C52+C31 -> 0 | D83: =IF(I31=0,0,C83/I31) -> 0 | E83: PUPA | H83: =+H81+0.01 -> 44.49
B85: ="LHC Minimum Expenses (QAP "&I85&")" -> LHC Minimum Expenses (QAP IV.D.9) | C85: =+D85*'Unit Mix and Rents'!F41 -> 0 | D85: =+K85 -> 4500 | E85: PUPA | I85: =+'QAP Reference'!A33 -> IV.D.9 | K85: 4500 | L85: PUPA | M85: Updated in the 2025 QAP
B87: =IF(C83<C85,K87,"") ->  | K87: You have proposed total operating expenses that are below the minimum level specified in the QAP. Either increase the operating expenses so they are at or above LHC's minimum, or your Checklist response must include a waiver request.
B89: Use These Expenses for Underwriting | C89: =+C83 -> 0 | D89: =IF(I31=0,0,C89/I31) -> 0 | E89: PUPA
B91: =IF(AND('Project Description'!H117=Controls!A51,'Revenues and Expenses'!C53=0),"This is an elevator building; explain why no elevator maintenance was budgeted.","") -> 
B93: =IF(C40>0,"Asset Management Fees (Other) is generally not permitted as an ‘above the line’ operating expense, and may be structured to be paid only from the sponsor’s share of Surplus Cash—input any such fee at Section 45.01 below.",IF(C39<>0,"Include a full explanation of the proposed asset management fee(s) below.","")) -> 
B95: Comment regarding Must-Pay Expenses
A97: ="Section "&H97 -> Section 45 | B97: Contingent Operating Expenses | H97: =+H29+1 -> 45
A99: Please explain below any operating expenses that are payable only if cash is available, and/or after certain other payments are made first from available cash flow. Please use the comment area below if additional explanation is needed.
A100: =IF('Project Description'!H195=0,"",K100) ->  | K100: You have applied for CDBG-DR funds. Note that expenses such as the following cannot be paid from operations, but instead can be paid only from the borrower's share of Surplus Cash: deferred developer fee, other development costs, tax credit adjusters, most asset management fees, and investor service fees.
A102: =+H102 -> 45.01 | B102: Asset Management Fee | C102: 0 | H102: =+H97+0.01 -> 45.01 | J102: =+C102+C40 -> 0 | K102: Total asset mgmt fee (must-pay + contingent)
A103: 45.02 | B103: Investor Service Fee | C103: 0 | H103: =+H102+0.01 -> 45.02 | J103: 5000 | K103: Maximum allowable as operating expense (combination of must-pay + contingent)
A104: 45.03 | B104: Other (identify) | C104: 0 | H104: 45.03 | J104: =MIN(J103,J102) -> 0 | K104: Allowable as operating expense for this transaction
A105: 45.04 | B105: Other (identify) | C105: 0 | H105: 45.04 | J105: =+J104-C40 -> 0 | K105: Allowable as contingent expense for this transaction
A106: 45.05 | B106: Other (identify) | C106: 0 | H106: 45.05
A107: 45.06 | B107: Other (identify) | C107: 0 | H107: 45.06
A108: 45.07 | B108: Other (identify) | C108: 0 | H108: 45.07
A110: 45.08 | B110: Comment regarding Contingent Expenses | H110: =+H108+0.01 -> 45.08

Sheet Proforma
A3: =+Instructions!A3 -> 2025 QAP Underwriting Application v1.1
A4: =TRIM('Project Description'!E84)&" ("&TRIM('Project Description'!E86)&" LA), "&'Project Description'!E50 -> ( LA),
A6: Pro Forma Cash Flows
A8: 9 | H8: =+'Unit Mix and Rents'!F41 -> 0 | I8: Units
C9: 1 | D9: =+C9+1 -> 2 | E9: =+D9+1 -> 3 | F9: 4 | G9: 5 | H9: 6 | I9: 7 | J9: 8 | K9: 9 | L9: 10 | M9: 11 | N9: 12 | O9: 13 | P9: 14 | Q9: 15 | R9: 16 | S9: 17 | T9: 18 | U9: 19 | V9: 20 | W9: 21 | X9: 22 | Y9: 23 | Z9: 24 | AA9: 25 | AB9: 26 | AC9: 27 | AD9: 28 | AE9: 29 | AF9: 30 | AG9: 31 | AH9: 32 | AI9: 33 | AJ9: 34 | AK9: 35 | AL9: =+AK9+1 -> 36 | AM9: =+AL9+1 -> 37 | AN9: =+AM9+1 -> 38 | AO9: =+AN9+1 -> 39 | AP9: =+AO9+1 -> 40
A10: =ROW(A10)-A8 -> 1 | C10: Year 1 | D10: Year 2 | E10: Year 3 | F10: Year 4 | G10: Year 5 | H10: Year 6 | I10: Year 7 | J10: Year 8 | K10: Year 9 | L10: Year 10 | M10: Year 11 | N10: Year 12 | O10: Year 13 | P10: Year 14 | Q10: Year 15 | R10: Year 16 | S10: Year 17 | T10: Year 18 | U10: Year 19 | V10: Year 20 | W10: Year 21 | X10: Year 22 | Y10: Year 23 | Z10: Year 24 | AA10: Year 25 | AB10: Year 26 | AC10: Year 27 | AD10: Year 28 | AE10: Year 29 | AF10: Year 30 | AG10: Year 31 | AH10: Year 32 | AI10: Year 33 | AJ10: Year 34 | AK10: Year 35 | AL10: Year 36 | AM10: Year 37 | AN10: Year 38 | AO10: Year 39 | AP10: Year 40
A11: =ROW(A11)-A8 -> 2
A12: =ROW(A12)-A8 -> 3 | B12: Rent Loss % | C12: =+'Project Description'!H957 -> 0.07 | D12: =+'Project Description'!H957 -> 0.07 | E12: =+'Project Description'!H957 -> 0.07 | F12: =+'Project Description'!H959 -> 0.07 | G12: =+F12 -> 0.07 | H12: =+G12 -> 0.07 | I12: 0.07 | J12: 0.07 | K12: 0.07 | L12: 0.07 | M12: 0.07 | N12: 0.07 | O12: 0.07 | P12: 0.07 | Q12: 0.07 | R12: 0.07 | S12: 0.07 | T12: 0.07 | U12: 0.07 | V12: 0.07 | W12: 0.07 | X12: 0.07 | Y12: 0.07 | Z12: 0.07 | AA12: 0.07 | AB12: 0.07 | AC12: 0.07 | AD12: 0.07 | AE12: 0.07 | AF12: 0.07 | AG12: 0.07 | AH12: 0.07 | AI12: 0.07 | AJ12: 0.07 | AK12: 0.07 | AL12: =+AK12 -> 0.07 | AM12: =+AL12 -> 0.07 | AN12: =+AM12 -> 0.07 | AO12: =+AN12 -> 0.07 | AP12: =+AO12 -> 0.07
A13: =ROW(A13)-A8 -> 4
A14: =ROW(A14)-A8 -> 5 | B14: Gross Rent Potential | C14: =+'Revenues and Expenses'!C10 -> 0 | D14: =ROUND(C14*(1+'Project Description'!H961),0) -> 0 | E14: =ROUND(D14*(1+'Project Description'!H961),0) -> 0 | F14: =ROUND(E14*(1+'Project Description'!H963),0) -> 0 | G14: =ROUND(F14*(1+'Project Description'!H963),0) -> 0 | H14: =ROUND(G14*(1+'Project Description'!H963),0) -> 0 | I14: =ROUND(H14*(1+'Project Description'!H963),0) -> 0 | J14: =ROUND(I14*(1+'Project Description'!H963),0) -> 0 | K14: =ROUND(J14*(1+'Project Description'!H963),0) -> 0 | L14: =ROUND(K14*(1+'Project Description'!H963),0) -> 0 | M14: =ROUND(L14*(1+'Project Description'!H963),0) -> 0 | N14: =ROUND(M14*(1+'Project Description'!H963),0) -> 0 | O14: =ROUND(N14*(1+'Project Description'!H963),0) -> 0 | P14: =ROUND(O14*(1+'Project Description'!H963),0) -> 0 | Q14: =ROUND(P14*(1+'Project Description'!H963),0) -> 0 | R14: =ROUND(Q14*(1+'Project Description'!$H$967),0) -> 0 | S14: =ROUND(R14*(1+'Project Description'!$H$967),0) -> 0 | T14: =ROUND(S14*(1+'Project Description'!$H$967),0) -> 0 | U14: =ROUND(T14*(1+'Project Description'!$H$967),0) -> 0 | V14: =ROUND(U14*(1+'Project Description'!$H$967),0) -> 0 | W14: =ROUND(V14*(1+'Project Description'!$H$967),0) -> 0 | X14: =ROUND(W14*(1+'Project Description'!$H$967),0) -> 0 | Y14: =ROUND(X14*(1+'Project Description'!$H$967),0) -> 0 | Z14: =ROUND(Y14*(1+'Project Description'!$H$967),0) -> 0 | AA14: =ROUND(Z14*(1+'Project Description'!$H$967),0) -> 0 | AB14: =ROUND(AA14*(1+'Project Description'!$H$967),0) -> 0 | AC14: =ROUND(AB14*(1+'Project Description'!$H$967),0) -> 0 | AD14: =ROUND(AC14*(1+'Project Description'!$H$967),0) -> 0 | AE14: =ROUND(AD14*(1+'Project Description'!$H$967),0) -> 0 | AF14: =ROUND(AE14*(1+'Project Description'!$H$967),0) -> 0 | AG14: =ROUND(AF14*(1+'Project Description'!$H$967),0) -> 0 | AH14: =ROUND(AG14*(1+'Project Description'!$H$967),0) -> 0 | AI14: =ROUND(AH14*(1+'Project Description'!$H$967),0) -> 0 | AJ14: =ROUND(AI14*(1+'Project Description'!$H$967),0) -> 0 | AK14: =ROUND(AJ14*(1+'Project Description'!$H$967),0) -> 0 | AL14: =ROUND(AK14*(1+'Project Description'!$H$967),0) -> 0 | AM14: =ROUND(AL14*(1+'Project Description'!$H$967),0) -> 0 | AN14: =ROUND(AM14*(1+'Project Description'!$H$967),0) -> 0 | AO14: =ROUND(AN14*(1+'Project Description'!$H$967),0) -> 0 | AP14: =ROUND(AO14*(1+'Project Description'!$H$967),0) -> 0
A15: =ROW(A15)-A8 -> 6 | B15: Rent Loss | C15: =-ROUND(C14*C12,0) -> 0 | D15: =-ROUND(D14*D12,0) -> 0 | E15: 0 | F15: 0 | G15: 0 | H15: 0 | I15: 0 | J15: 0 | K15: 0 | L15: 0 | M15: 0 | N15: 0 | O15: 0 | P15: 0 | Q15: 0 | R15: 0 | S15: 0 | T15: 0 | U15: 0 | V15: 0 | W15: 0 | X15: 0 | Y15: 0 | Z15: 0 | AA15: 0 | AB15: 0 | AC15: 0 | AD15: 0 | AE15: 0 | AF15: 0 | AG15: 0 | AH15: 0 | AI15: 0 | AJ15: 0 | AK15: 0 | AL15: =-ROUND(AL14*AL12,0) -> 0 | AM15: =-ROUND(AM14*AM12,0) -> 0 | AN15: =-ROUND(AN14*AN12,0) -> 0 | AO15: =-ROUND(AO14*AO12,0) -> 0 | AP15: =-ROUND(AP14*AP12,0) -> 0
A16: =ROW(A16)-A8 -> 7 | B16: Rent from Commercial Space | C16: =+'Revenues and Expenses'!C11 -> 0 | D16: =ROUND(C16*(1+'Project Description'!H961),0) -> 0 | E16: =ROUND(D16*(1+'Project Description'!H961),0) -> 0 | F16: =ROUND(E16*(1+'Project Description'!H963),0) -> 0 | G16: =ROUND(F16*(1+'Project Description'!H963),0) -> 0 | H16: =ROUND(G16*(1+'Project Description'!H963),0) -> 0 | I16: =ROUND(H16*(1+'Project Description'!H963),0) -> 0 | J16: =ROUND(I16*(1+'Project Description'!H963),0) -> 0 | K16: =ROUND(J16*(1+'Project Description'!H963),0) -> 0 | L16: =ROUND(K16*(1+'Project Description'!H963),0) -> 0 | M16: =ROUND(L16*(1+'Project Description'!H963),0) -> 0 | N16: =ROUND(M16*(1+'Project Description'!H963),0) -> 0 | O16: =ROUND(N16*(1+'Project Description'!H963),0) -> 0 | P16: =ROUND(O16*(1+'Project Description'!H963),0) -> 0 | Q16: =ROUND(P16*(1+'Project Description'!H963),0) -> 0 | R16: =ROUND(Q16*(1+'Project Description'!H963),0) -> 0 | S16: =ROUND(R16*(1+'Project Description'!H963),0) -> 0 | T16: =ROUND(S16*(1+'Project Description'!H963),0) -> 0 | U16: =ROUND(T16*(1+'Project Description'!H963),0) -> 0 | V16: =ROUND(U16*(1+'Project Description'!H963),0) -> 0 | W16: =ROUND(V16*(1+'Project Description'!H963),0) -> 0 | X16: =ROUND(W16*(1+'Project Description'!H963),0) -> 0 | Y16: =ROUND(X16*(1+'Project Description'!H963),0) -> 0 | Z16: =ROUND(Y16*(1+'Project Description'!H963),0) -> 0 | AA16: =ROUND(Z16*(1+'Project Description'!H963),0) -> 0 | AB16: =ROUND(AA16*(1+'Project Description'!H963),0) -> 0 | AC16: =ROUND(AB16*(1+'Project Description'!H963),0) -> 0 | AD16: =ROUND(AC16*(1+'Project Description'!H963),0) -> 0 | AE16: =ROUND(AD16*(1+'Project Description'!H963),0) -> 0 | AF16: =ROUND(AE16*(1+'Project Description'!H963),0) -> 0 | AG16: =ROUND(AF16*(1+'Project Description'!H963),0) -> 0 | AH16: =ROUND(AG16*(1+'Project Description'!H963),0) -> 0 | AI16: =ROUND(AH16*(1+'Project Description'!H963),0) -> 0 | AJ16: =ROUND(AI16*(1+'Project Description'!H963),0) -> 0 | AK16: =ROUND(AJ16*(1+'Project Description'!H963),0) -> 0 | AL16: =ROUND(AK16*(1+'Project Description'!H963),0) -> 0 | AM16: =ROUND(AL16*(1+'Project Description'!H963),0) -> 0 | AN16: =ROUND(AM16*(1+'Project Description'!H963),0) -> 0 | AO16: =ROUND(AN16*(1+'Project Description'!H963),0) -> 0 | AP16: =ROUND(AO16*(1+'Project Description'!H963),0) -> 0
A17: =ROW(A17)-A8 -> 8 | B17: Interest | C17: =+'Revenues and Expenses'!C12 -> 0 | D17: =ROUND(C17*(1+'Project Description'!H961),0) -> 0 | E17: =ROUND(D17*(1+'Project Description'!H961),0) -> 0 | F17: =ROUND(E17*(1+'Project Description'!H963),0) -> 0 | G17: =ROUND(F17*(1+'Project Description'!H963),0) -> 0 | H17: =ROUND(G17*(1+'Project Description'!H963),0) -> 0 | I17: =ROUND(H17*(1+'Project Description'!H963),0) -> 0 | J17: =ROUND(I17*(1+'Project Description'!H963),0) -> 0 | K17: =ROUND(J17*(1+'Project Description'!H963),0) -> 0 | L17: =ROUND(K17*(1+'Project Description'!H963),0) -> 0 | M17: =ROUND(L17*(1+'Project Description'!H963),0) -> 0 | N17: =ROUND(M17*(1+'Project Description'!H963),0) -> 0 | O17: =ROUND(N17*(1+'Project Description'!H963),0) -> 0 | P17: =ROUND(O17*(1+'Project Description'!H963),0) -> 0 | Q17: =ROUND(P17*(1+'Project Description'!H963),0) -> 0 | R17: =ROUND(Q17*(1+'Project Description'!H963),0) -> 0 | S17: =ROUND(R17*(1+'Project Description'!H963),0) -> 0 | T17: =ROUND(S17*(1+'Project Description'!H963),0) -> 0 | U17: =ROUND(T17*(1+'Project Description'!H963),0) -> 0 | V17: =ROUND(U17*(1+'Project Description'!H963),0) -> 0 | W17: =ROUND(V17*(1+'Project Description'!H963),0) -> 0 | X17: =ROUND(W17*(1+'Project Description'!H963),0) -> 0 | Y17: =ROUND(X17*(1+'Project Description'!H963),0) -> 0 | Z17: =ROUND(Y17*(1+'Project Description'!H963),0) -> 0 | AA17: =ROUND(Z17*(1+'Project Description'!H963),0) -> 0 | AB17: =ROUND(AA17*(1+'Project Description'!H963),0) -> 0 | AC17: =ROUND(AB17*(1+'Project Description'!H963),0) -> 0 | AD17: =ROUND(AC17*(1+'Project Description'!H963),0) -> 0 | AE17: =ROUND(AD17*(1+'Project Description'!H963),0) -> 0 | AF17: =ROUND(AE17*(1+'Project Description'!H963),0) -> 0 | AG17: =ROUND(AF17*(1+'Project Description'!H963),0) -> 0 | AH17: =ROUND(AG17*(1+'Project Description'!H963),0) -> 0 | AI17: =ROUND(AH17*(1+'Project Description'!H963),0) -> 0 | AJ17: =ROUND(AI17*(1+'Project Description'!H963),0) -> 0 | AK17: =ROUND(AJ17*(1+'Project Description'!H963),0) -> 0 | AL17: =ROUND(AK17*(1+'Project Description'!H963),0) -> 0 | AM17: =ROUND(AL17*(1+'Project Description'!H963),0) -> 0 | AN17: =ROUND(AM17*(1+'Project Description'!H963),0) -> 0 | AO17: =ROUND(AN17*(1+'Project Description'!H963),0) -> 0 | AP17: =ROUND(AO17*(1+'Project Description'!H963),0) -> 0
A18: =ROW(A18)-A8 -> 9 | B18: Laundry | C18: =+'Revenues and Expenses'!C13 -> 0 | D18: =ROUND(C18*(1+'Project Description'!H961),0) -> 0 | E18: =ROUND(D18*(1+'Project Description'!H961),0) -> 0 | F18: =ROUND(E18*(1+'Project Description'!H963),0) -> 0 | G18: =ROUND(F18*(1+'Project Description'!H963),0) -> 0 | H18: =ROUND(G18*(1+'Project Description'!H963),0) -> 0 | I18: =ROUND(H18*(1+'Project Description'!H963),0) -> 0 | J18: =ROUND(I18*(1+'Project Description'!H963),0) -> 0 | K18: =ROUND(J18*(1+'Project Description'!H963),0) -> 0 | L18: =ROUND(K18*(1+'Project Description'!H963),0) -> 0 | M18: =ROUND(L18*(1+'Project Description'!H963),0) -> 0 | N18: =ROUND(M18*(1+'Project Description'!H963),0) -> 0 | O18: =ROUND(N18*(1+'Project Description'!H963),0) -> 0 | P18: =ROUND(O18*(1+'Project Description'!H963),0) -> 0 | Q18: =ROUND(P18*(1+'Project Description'!H963),0) -> 0 | R18: =ROUND(Q18*(1+'Project Description'!H963),0) -> 0 | S18: =ROUND(R18*(1+'Project Description'!H963),0) -> 0 | T18: =ROUND(S18*(1+'Project Description'!H963),0) -> 0 | U18: =ROUND(T18*(1+'Project Description'!H963),0) -> 0 | V18: =ROUND(U18*(1+'Project Description'!H963),0) -> 0 | W18: =ROUND(V18*(1+'Project Description'!H963),0) -> 0 | X18: =ROUND(W18*(1+'Project Description'!H963),0) -> 0 | Y18: =ROUND(X18*(1+'Project Description'!H963),0) -> 0 | Z18: =ROUND(Y18*(1+'Project Description'!H963),0) -> 0 | AA18: =ROUND(Z18*(1+'Project Description'!H963),0) -> 0 | AB18: =ROUND(AA18*(1+'Project Description'!H963),0) -> 0 | AC18: =ROUND(AB18*(1+'Project Description'!H963),0) -> 0 | AD18: =ROUND(AC18*(1+'Project Description'!H963),0) -> 0 | AE18: =ROUND(AD18*(1+'Project Description'!H963),0) -> 0 | AF18: =ROUND(AE18*(1+'Project Description'!H963),0) -> 0 | AG18: =ROUND(AF18*(1+'Project Description'!H963),0) -> 0 | AH18: =ROUND(AG18*(1+'Project Description'!H963),0) -> 0 | AI18: =ROUND(AH18*(1+'Project Description'!H963),0) -> 0 | AJ18: =ROUND(AI18*(1+'Project Description'!H963),0) -> 0 | AK18: =ROUND(AJ18*(1+'Project Description'!H963),0) -> 0 | AL18: =ROUND(AK18*(1+'Project Description'!H963),0) -> 0 | AM18: =ROUND(AL18*(1+'Project Description'!H963),0) -> 0 | AN18: =ROUND(AM18*(1+'Project Description'!H963),0) -> 0 | AO18: =ROUND(AN18*(1+'Project Description'!H963),0) -> 0 | AP18: =ROUND(AO18*(1+'Project Description'!H963),0) -> 0
A19: =ROW(A19)-A8 -> 10 | B19: Parking | C19: =+'Revenues and Expenses'!C14 -> 0 | D19: =ROUND(C19*(1+'Project Description'!H961),0) -> 0 | E19: =ROUND(D19*(1+'Project Description'!H961),0) -> 0 | F19: =ROUND(E19*(1+'Project Description'!H963),0) -> 0 | G19: =ROUND(F19*(1+'Project Description'!H963),0) -> 0 | H19: =ROUND(G19*(1+'Project Description'!H963),0) -> 0 | I19: =ROUND(H19*(1+'Project Description'!H963),0) -> 0 | J19: =ROUND(I19*(1+'Project Description'!H963),0) -> 0 | K19: =ROUND(J19*(1+'Project Description'!H963),0) -> 0 | L19: =ROUND(K19*(1+'Project Description'!H963),0) -> 0 | M19: =ROUND(L19*(1+'Project Description'!H963),0) -> 0 | N19: =ROUND(M19*(1+'Project Description'!H963),0) -> 0 | O19: =ROUND(N19*(1+'Project Description'!H963),0) -> 0 | P19: =ROUND(O19*(1+'Project Description'!H963),0) -> 0 | Q19: =ROUND(P19*(1+'Project Description'!H963),0) -> 0 | R19: =ROUND(Q19*(1+'Project Description'!H963),0) -> 0 | S19: =ROUND(R19*(1+'Project Description'!H963),0) -> 0 | T19: =ROUND(S19*(1+'Project Description'!H963),0) -> 0 | U19: =ROUND(T19*(1+'Project Description'!H963),0) -> 0 | V19: =ROUND(U19*(1+'Project Description'!H963),0) -> 0 | W19: =ROUND(V19*(1+'Project Description'!H963),0) -> 0 | X19: =ROUND(W19*(1+'Project Description'!H963),0) -> 0 | Y19: =ROUND(X19*(1+'Project Description'!H963),0) -> 0 | Z19: =ROUND(Y19*(1+'Project Description'!H963),0) -> 0 | AA19: =ROUND(Z19*(1+'Project Description'!H963),0) -> 0 | AB19: =ROUND(AA19*(1+'Project Description'!H963),0) -> 0 | AC19: =ROUND(AB19*(1+'Project Description'!H963),0) -> 0 | AD19: =ROUND(AC19*(1+'Project Description'!H963),0) -> 0 | AE19: =ROUND(AD19*(1+'Project Description'!H963),0) -> 0 | AF19: =ROUND(AE19*(1+'Project Description'!H963),0) -> 0 | AG19: =ROUND(AF19*(1+'Project Description'!H963),0) -> 0 | AH19: =ROUND(AG19*(1+'Project Description'!H963),0) -> 0 | AI19: =ROUND(AH19*(1+'Project Description'!H963),0) -> 0 | AJ19: =ROUND(AI19*(1+'Project Description'!H963),0) -> 0 | AK19: =ROUND(AJ19*(1+'Project Description'!H963),0) -> 0 | AL19: =ROUND(AK19*(1+'Project Description'!H963),0) -> 0 | AM19: =ROUND(AL19*(1+'Project Description'!H963),0) -> 0 | AN19: =ROUND(AM19*(1+'Project Description'!H963),0) -> 0 | AO19: =ROUND(AN19*(1+'Project Description'!H963),0) -> 0 | AP19: =ROUND(AO19*(1+'Project Description'!H963),0) -> 0
A20: =ROW(A20)-A8 -> 11 | B20: Tenant Charges | C20: =+'Revenues and Expenses'!C15 -> 0 | D20: =ROUND(C20*(1+'Project Description'!H961),0) -> 0 | E20: =ROUND(D20*(1+'Project Description'!H961),0) -> 0 | F20: =ROUND(E20*(1+'Project Description'!H963),0) -> 0 | G20: =ROUND(F20*(1+'Project Description'!H963),0) -> 0 | H20: =ROUND(G20*(1+'Project Description'!H963),0) -> 0 | I20: =ROUND(H20*(1+'Project Description'!H963),0) -> 0 | J20: =ROUND(I20*(1+'Project Description'!H963),0) -> 0 | K20: =ROUND(J20*(1+'Project Description'!H963),0) -> 0 | L20: =ROUND(K20*(1+'Project Description'!H963),0) -> 0 | M20: =ROUND(L20*(1+'Project Description'!H963),0) -> 0 | N20: =ROUND(M20*(1+'Project Description'!H963),0) -> 0 | O20: =ROUND(N20*(1+'Project Description'!H963),0) -> 0 | P20: =ROUND(O20*(1+'Project Description'!H963),0) -> 0 | Q20: =ROUND(P20*(1+'Project Description'!H963),0) -> 0 | R20: =ROUND(Q20*(1+'Project Description'!H963),0) -> 0 | S20: =ROUND(R20*(1+'Project Description'!H963),0) -> 0 | T20: =ROUND(S20*(1+'Project Description'!H963),0) -> 0 | U20: =ROUND(T20*(1+'Project Description'!H963),0) -> 0 | V20: =ROUND(U20*(1+'Project Description'!H963),0) -> 0 | W20: =ROUND(V20*(1+'Project Description'!H963),0) -> 0 | X20: =ROUND(W20*(1+'Project Description'!H963),0) -> 0 | Y20: =ROUND(X20*(1+'Project Description'!H963),0) -> 0 | Z20: =ROUND(Y20*(1+'Project Description'!H963),0) -> 0 | AA20: =ROUND(Z20*(1+'Project Description'!H963),0) -> 0 | AB20: =ROUND(AA20*(1+'Project Description'!H963),0) -> 0 | AC20: =ROUND(AB20*(1+'Project Description'!H963),0) -> 0 | AD20: =ROUND(AC20*(1+'Project Description'!H963),0) -> 0 | AE20: =ROUND(AD20*(1+'Project Description'!H963),0) -> 0 | AF20: =ROUND(AE20*(1+'Project Description'!H963),0) -> 0 | AG20: =ROUND(AF20*(1+'Project Description'!H963),0) -> 0 | AH20: =ROUND(AG20*(1+'Project Description'!H963),0) -> 0 | AI20: =ROUND(AH20*(1+'Project Description'!H963),0) -> 0 | AJ20: =ROUND(AI20*(1+'Project Description'!H963),0) -> 0 | AK20: =ROUND(AJ20*(1+'Project Description'!H963),0) -> 0 | AL20: =ROUND(AK20*(1+'Project Description'!H963),0) -> 0 | AM20: =ROUND(AL20*(1+'Project Description'!H963),0) -> 0 | AN20: =ROUND(AM20*(1+'Project Description'!H963),0) -> 0 | AO20: =ROUND(AN20*(1+'Project Description'!H963),0) -> 0 | AP20: =ROUND(AO20*(1+'Project Description'!H963),0) -> 0
A21: =ROW(A21)-A8 -> 12 | B21: Other | C21: =+'Revenues and Expenses'!C16+SUM('Revenues and Expenses'!C20:C24) -> 0 | D21: =ROUND(C21*(1+'Project Description'!H961),0) -> 0 | E21: =ROUND(D21*(1+'Project Description'!H961),0) -> 0 | F21: =ROUND(E21*(1+'Project Description'!H963),0) -> 0 | G21: =ROUND(F21*(1+'Project Description'!H963),0) -> 0 | H21: =ROUND(G21*(1+'Project Description'!H963),0) -> 0 | I21: =ROUND(H21*(1+'Project Description'!H963),0) -> 0 | J21: =ROUND(I21*(1+'Project Description'!H963),0) -> 0 | K21: =ROUND(J21*(1+'Project Description'!H963),0) -> 0 | L21: =ROUND(K21*(1+'Project Description'!H963),0) -> 0 | M21: =ROUND(L21*(1+'Project Description'!H963),0) -> 0 | N21: =ROUND(M21*(1+'Project Description'!H963),0) -> 0 | O21: =ROUND(N21*(1+'Project Description'!H963),0) -> 0 | P21: =ROUND(O21*(1+'Project Description'!H963),0) -> 0 | Q21: =ROUND(P21*(1+'Project Description'!H963),0) -> 0 | R21: =ROUND(Q21*(1+'Project Description'!H963),0) -> 0 | S21: =ROUND(R21*(1+'Project Description'!H963),0) -> 0 | T21: =ROUND(S21*(1+'Project Description'!H963),0) -> 0 | U21: =ROUND(T21*(1+'Project Description'!H963),0) -> 0 | V21: =ROUND(U21*(1+'Project Description'!H963),0) -> 0 | W21: =ROUND(V21*(1+'Project Description'!H963),0) -> 0 | X21: =ROUND(W21*(1+'Project Description'!H963),0) -> 0 | Y21: =ROUND(X21*(1+'Project Description'!H963),0) -> 0 | Z21: =ROUND(Y21*(1+'Project Description'!H963),0) -> 0 | AA21: =ROUND(Z21*(1+'Project Description'!H963),0) -> 0 | AB21: =ROUND(AA21*(1+'Project Description'!H963),0) -> 0 | AC21: =ROUND(AB21*(1+'Project Description'!H963),0) -> 0 | AD21: =ROUND(AC21*(1+'Project Description'!H963),0) -> 0 | AE21: =ROUND(AD21*(1+'Project Description'!H963),0) -> 0 | AF21: =ROUND(AE21*(1+'Project Description'!H963),0) -> 0 | AG21: =ROUND(AF21*(1+'Project Description'!H963),0) -> 0 | AH21: =ROUND(AG21*(1+'Project Description'!H963),0) -> 0 | AI21: =ROUND(AH21*(1+'Project Description'!H963),0) -> 0 | AJ21: =ROUND(AI21*(1+'Project Description'!H963),0) -> 0 | AK21: =ROUND(AJ21*(1+'Project Description'!H963),0) -> 0 | AL21: =ROUND(AK21*(1+'Project Description'!H963),0) -> 0 | AM21: =ROUND(AL21*(1+'Project Description'!H963),0) -> 0 | AN21: =ROUND(AM21*(1+'Project Description'!H963),0) -> 0 | AO21: =ROUND(AN21*(1+'Project Description'!H963),0) -> 0 | AP21: =ROUND(AO21*(1+'Project Description'!H963),0) -> 0
A22: =ROW(A22)-A8 -> 13 | B22: Total Operating Subsidy | C22: =SUM('Revenues and Expenses'!C16:C20) -> 0 | D22: =ROUND(C22*(1+'Project Description'!H961),0) -> 0 | E22: =ROUND(D22*(1+'Project Description'!H961),0) -> 0 | F22: =ROUND(E22*(1+'Project Description'!H963),0) -> 0 | G22: =ROUND(F22*(1+'Project Description'!H963),0) -> 0 | H22: =ROUND(G22*(1+'Project Description'!H963),0) -> 0 | I22: =ROUND(H22*(1+'Project Description'!H963),0) -> 0 | J22: =ROUND(I22*(1+'Project Description'!H963),0) -> 0 | K22: =ROUND(J22*(1+'Project Description'!H963),0) -> 0 | L22: =ROUND(K22*(1+'Project Description'!H963),0) -> 0 | M22: =ROUND(L22*(1+'Project Description'!H963),0) -> 0 | N22: =ROUND(M22*(1+'Project Description'!H963),0) -> 0 | O22: =ROUND(N22*(1+'Project Description'!H963),0) -> 0 | P22: =ROUND(O22*(1+'Project Description'!H963),0) -> 0 | Q22: =ROUND(P22*(1+'Project Description'!H963),0) -> 0 | R22: =ROUND(Q22*(1+'Project Description'!H963),0) -> 0 | S22: =ROUND(R22*(1+'Project Description'!H963),0) -> 0 | T22: =ROUND(S22*(1+'Project Description'!H963),0) -> 0 | U22: =ROUND(T22*(1+'Project Description'!H963),0) -> 0 | V22: =ROUND(U22*(1+'Project Description'!H963),0) -> 0 | W22: =ROUND(V22*(1+'Project Description'!H963),0) -> 0 | X22: =ROUND(W22*(1+'Project Description'!H963),0) -> 0 | Y22: =ROUND(X22*(1+'Project Description'!H963),0) -> 0 | Z22: =ROUND(Y22*(1+'Project Description'!H963),0) -> 0 | AA22: =ROUND(Z22*(1+'Project Description'!H963),0) -> 0 | AB22: =ROUND(AA22*(1+'Project Description'!H963),0) -> 0 | AC22: =ROUND(AB22*(1+'Project Description'!H963),0) -> 0 | AD22: =ROUND(AC22*(1+'Project Description'!H963),0) -> 0 | AE22: =ROUND(AD22*(1+'Project Description'!H963),0) -> 0 | AF22: =ROUND(AE22*(1+'Project Description'!H963),0) -> 0 | AG22: =ROUND(AF22*(1+'Project Description'!H963),0) -> 0 | AH22: =ROUND(AG22*(1+'Project Description'!H963),0) -> 0 | AI22: =ROUND(AH22*(1+'Project Description'!H963),0) -> 0 | AJ22: =ROUND(AI22*(1+'Project Description'!H963),0) -> 0 | AK22: =ROUND(AJ22*(1+'Project Description'!H963),0) -> 0 | AL22: =ROUND(AK22*(1+'Project Description'!H963),0) -> 0 | AM22: =ROUND(AL22*(1+'Project Description'!H963),0) -> 0 | AN22: =ROUND(AM22*(1+'Project Description'!H963),0) -> 0 | AO22: =ROUND(AN22*(1+'Project Description'!H963),0) -> 0 | AP22: =ROUND(AO22*(1+'Project Description'!H963),0) -> 0
A23: =ROW(A23)-A8 -> 14
A24: =ROW(A24)-A8 -> 15 | B24: Effective Gross Income | C24: =SUM(C13:C23) -> 0 | D24: =SUM(D13:D23) -> 0 | E24: 0 | F24: 0 | G24: 0 | H24: 0 | I24: 0 | J24: 0 | K24: 0 | L24: 0 | M24: 0 | N24: 0 | O24: 0 | P24: 0 | Q24: 0 | R24: 0 | S24: 0 | T24: 0 | U24: 0 | V24: 0 | W24: 0 | X24: 0 | Y24: 0 | Z24: 0 | AA24: 0 | AB24: 0 | AC24: 0 | AD24: 0 | AE24: 0 | AF24: 0 | AG24: 0 | AH24: 0 | AI24: 0 | AJ24: 0 | AK24: 0 | AL24: =SUM(AL13:AL23) -> 0 | AM24: =SUM(AM13:AM23) -> 0 | AN24: =SUM(AN13:AN23) -> 0 | AO24: =SUM(AO13:AO23) -> 0 | AP24: =SUM(AP13:AP23) -> 0
A25: =ROW(A25)-A8 -> 16
A26: =ROW(A26)-A8 -> 17 | B26: Property Management Fee @ 2% Trend | C26: =+'Revenues and Expenses'!C42 -> 0 | D26: =ROUND(C26*(1+'Project Description'!$H$961),0) -> 0 | E26: =ROUND(D26*(1+'Project Description'!$H$961),0) -> 0 | F26: =ROUND(E26*(1+'Project Description'!$H$961),0) -> 0 | G26: =ROUND(F26*(1+'Project Description'!$H$961),0) -> 0 | H26: =ROUND(G26*(1+'Project Description'!$H$961),0) -> 0 | I26: =ROUND(H26*(1+'Project Description'!$H$961),0) -> 0 | J26: =ROUND(I26*(1+'Project Description'!$H$961),0) -> 0 | K26: =ROUND(J26*(1+'Project Description'!$H$961),0) -> 0 | L26: =ROUND(K26*(1+'Project Description'!$H$961),0) -> 0 | M26: =ROUND(L26*(1+'Project Description'!$H$961),0) -> 0 | N26: =ROUND(M26*(1+'Project Description'!$H$961),0) -> 0 | O26: =ROUND(N26*(1+'Project Description'!$H$961),0) -> 0 | P26: =ROUND(O26*(1+'Project Description'!$H$961),0) -> 0 | Q26: =ROUND(P26*(1+'Project Description'!$H$961),0) -> 0 | R26: =ROUND(Q26*(1+'Project Description'!$H$967),0) -> 0 | S26: =ROUND(R26*(1+'Project Description'!$H$967),0) -> 0 | T26: =ROUND(S26*(1+'Project Description'!$H$967),0) -> 0 | U26: =ROUND(T26*(1+'Project Description'!$H$967),0) -> 0 | V26: =ROUND(U26*(1+'Project Description'!$H$967),0) -> 0 | W26: =ROUND(V26*(1+'Project Description'!$H$967),0) -> 0 | X26: =ROUND(W26*(1+'Project Description'!$H$967),0) -> 0 | Y26: =ROUND(X26*(1+'Project Description'!$H$967),0) -> 0 | Z26: =ROUND(Y26*(1+'Project Description'!$H$967),0) -> 0 | AA26: =ROUND(Z26*(1+'Project Description'!$H$967),0) -> 0 | AB26: =ROUND(AA26*(1+'Project Description'!$H$967),0) -> 0 | AC26: =ROUND(AB26*(1+'Project Description'!$H$967),0) -> 0 | AD26: =ROUND(AC26*(1+'Project Description'!$H$967),0) -> 0 | AE26: =ROUND(AD26*(1+'Project Description'!$H$967),0) -> 0 | AF26: =ROUND(AE26*(1+'Project Description'!$H$967),0) -> 0 | AG26: =ROUND(AF26*(1+'Project Description'!$H$967),0) -> 0 | AH26: =ROUND(AG26*(1+'Project Description'!$H$967),0) -> 0 | AI26: =ROUND(AH26*(1+'Project Description'!$H$967),0) -> 0 | AJ26: =ROUND(AI26*(1+'Project Description'!$H$967),0) -> 0 | AK26: =ROUND(AJ26*(1+'Project Description'!$H$967),0) -> 0 | AL26: =ROUND(AK26*(1+'Project Description'!$H$967),0) -> 0 | AM26: =ROUND(AL26*(1+'Project Description'!$H$967),0) -> 0 | AN26: =ROUND(AM26*(1+'Project Description'!$H$967),0) -> 0 | AO26: =ROUND(AN26*(1+'Project Description'!$H$967),0) -> 0 | AP26: =ROUND(AO26*(1+'Project Description'!$H$967),0) -> 0
A27: =ROW(A27)-A8 -> 18 | B27: LHC Compliance Monitoring Fee | C27: =+'Revenues and Expenses'!C37 -> 0 | D27: =ROUND(C27*(1+'Project Description'!H967),0) -> 0 | E27: =ROUND(D27*(1+'Project Description'!H967),0) -> 0 | F27: =ROUND(E27*(1+'Project Description'!H967),0) -> 0 | G27: =ROUND(F27*(1+'Project Description'!H967),0) -> 0 | H27: =ROUND(G27*(1+'Project Description'!H967),0) -> 0 | I27: =ROUND(H27*(1+'Project Description'!H967),0) -> 0 | J27: =ROUND(I27*(1+'Project Description'!H967),0) -> 0 | K27: =ROUND(J27*(1+'Project Description'!H967),0) -> 0 | L27: =ROUND(K27*(1+'Project Description'!H967),0) -> 0 | M27: =ROUND(L27*(1+'Project Description'!H967),0) -> 0 | N27: =ROUND(M27*(1+'Project Description'!H967),0) -> 0 | O27: =ROUND(N27*(1+'Project Description'!H967),0) -> 0 | P27: =ROUND(O27*(1+'Project Description'!H967),0) -> 0 | Q27: =ROUND(P27*(1+'Project Description'!H967),0) -> 0 | R27: =ROUND(Q27*(1+'Project Description'!H967),0) -> 0 | S27: =ROUND(R27*(1+'Project Description'!H967),0) -> 0 | T27: =ROUND(S27*(1+'Project Description'!H967),0) -> 0 | U27: =ROUND(T27*(1+'Project Description'!H967),0) -> 0 | V27: =ROUND(U27*(1+'Project Description'!H967),0) -> 0 | W27: =ROUND(V27*(1+'Project Description'!H967),0) -> 0 | X27: =ROUND(W27*(1+'Project Description'!H967),0) -> 0 | Y27: =ROUND(X27*(1+'Project Description'!H967),0) -> 0 | Z27: =ROUND(Y27*(1+'Project Description'!H967),0) -> 0 | AA27: =ROUND(Z27*(1+'Project Description'!H967),0) -> 0 | AB27: =ROUND(AA27*(1+'Project Description'!H967),0) -> 0 | AC27: =ROUND(AB27*(1+'Project Description'!H967),0) -> 0 | AD27: =ROUND(AC27*(1+'Project Description'!H967),0) -> 0 | AE27: =ROUND(AD27*(1+'Project Description'!H967),0) -> 0 | AF27: =ROUND(AE27*(1+'Project Description'!H967),0) -> 0 | AG27: =ROUND(AF27*(1+'Project Description'!H967),0) -> 0 | AH27: =ROUND(AG27*(1+'Project Description'!H967),0) -> 0 | AI27: =ROUND(AH27*(1+'Project Description'!H967),0) -> 0 | AJ27: =ROUND(AI27*(1+'Project Description'!H967),0) -> 0 | AK27: =ROUND(AJ27*(1+'Project Description'!H967),0) -> 0 | AL27: =ROUND(AK27*(1+'Project Description'!H967),0) -> 0 | AM27: =ROUND(AL27*(1+'Project Description'!H967),0) -> 0 | AN27: =ROUND(AM27*(1+'Project Description'!H967),0) -> 0 | AO27: =ROUND(AN27*(1+'Project Description'!H967),0) -> 0 | AP27: =ROUND(AO27*(1+'Project Description'!H967),0) -> 0
A28: =ROW(A28)-A8 -> 19 | B28: Asset Management Fee | C28: =+'Revenues and Expenses'!C39 -> 0 | D28: =ROUND(C28*(1+'Project Description'!H967),0) -> 0 | E28: =ROUND(D28*(1+'Project Description'!H967),0) -> 0 | F28: =ROUND(E28*(1+'Project Description'!H967),0) -> 0 | G28: =ROUND(F28*(1+'Project Description'!H967),0) -> 0 | H28: =ROUND(G28*(1+'Project Description'!H967),0) -> 0 | I28: =ROUND(H28*(1+'Project Description'!H967),0) -> 0 | J28: =ROUND(I28*(1+'Project Description'!H967),0) -> 0 | K28: =ROUND(J28*(1+'Project Description'!H967),0) -> 0 | L28: =ROUND(K28*(1+'Project Description'!H967),0) -> 0 | M28: =ROUND(L28*(1+'Project Description'!H967),0) -> 0 | N28: =ROUND(M28*(1+'Project Description'!H967),0) -> 0 | O28: =ROUND(N28*(1+'Project Description'!H967),0) -> 0 | P28: =ROUND(O28*(1+'Project Description'!H967),0) -> 0 | Q28: =ROUND(P28*(1+'Project Description'!H967),0) -> 0 | R28: =ROUND(Q28*(1+'Project Description'!H967),0) -> 0 | S28: =ROUND(R28*(1+'Project Description'!H967),0) -> 0 | T28: =ROUND(S28*(1+'Project Description'!H967),0) -> 0 | U28: =ROUND(T28*(1+'Project Description'!H967),0) -> 0 | V28: =ROUND(U28*(1+'Project Description'!H967),0) -> 0 | W28: =ROUND(V28*(1+'Project Description'!H967),0) -> 0 | X28: =ROUND(W28*(1+'Project Description'!H967),0) -> 0 | Y28: =ROUND(X28*(1+'Project Description'!H967),0) -> 0 | Z28: =ROUND(Y28*(1+'Project Description'!H967),0) -> 0 | AA28: =ROUND(Z28*(1+'Project Description'!H967),0) -> 0 | AB28: =ROUND(AA28*(1+'Project Description'!H967),0) -> 0 | AC28: =ROUND(AB28*(1+'Project Description'!H967),0) -> 0 | AD28: =ROUND(AC28*(1+'Project Description'!H967),0) -> 0 | AE28: =ROUND(AD28*(1+'Project Description'!H967),0) -> 0 | AF28: =ROUND(AE28*(1+'Project Description'!H967),0) -> 0 | AG28: =ROUND(AF28*(1+'Project Description'!H967),0) -> 0 | AH28: =ROUND(AG28*(1+'Project Description'!H967),0) -> 0 | AI28: =ROUND(AH28*(1+'Project Description'!H967),0) -> 0 | AJ28: =ROUND(AI28*(1+'Project Description'!H967),0) -> 0 | AK28: =ROUND(AJ28*(1+'Project Description'!H967),0) -> 0 | AL28: =ROUND(AK28*(1+'Project Description'!H967),0) -> 0 | AM28: =ROUND(AL28*(1+'Project Description'!H967),0) -> 0 | AN28: =ROUND(AM28*(1+'Project Description'!H967),0) -> 0 | AO28: =ROUND(AN28*(1+'Project Description'!H967),0) -> 0 | AP28: =ROUND(AO28*(1+'Project Description'!H967),0) -> 0
A29: =ROW(A29)-A8 -> 20 | B29: Other Administrative Expenses | C29: ='Revenues and Expenses'!C31-SUM(Proforma!C25:C28) -> 0 | D29: =ROUND(C29*(1+'Project Description'!H967),0) -> 0 | E29: =ROUND(D29*(1+'Project Description'!H967),0) -> 0 | F29: =ROUND(E29*(1+'Project Description'!H967),0) -> 0 | G29: =ROUND(F29*(1+'Project Description'!H967),0) -> 0 | H29: =ROUND(G29*(1+'Project Description'!H967),0) -> 0 | I29: =ROUND(H29*(1+'Project Description'!H967),0) -> 0 | J29: =ROUND(I29*(1+'Project Description'!H967),0) -> 0 | K29: =ROUND(J29*(1+'Project Description'!H967),0) -> 0 | L29: =ROUND(K29*(1+'Project Description'!H967),0) -> 0 | M29: =ROUND(L29*(1+'Project Description'!H967),0) -> 0 | N29: =ROUND(M29*(1+'Project Description'!H967),0) -> 0 | O29: =ROUND(N29*(1+'Project Description'!H967),0) -> 0 | P29: =ROUND(O29*(1+'Project Description'!H967),0) -> 0 | Q29: =ROUND(P29*(1+'Project Description'!H967),0) -> 0 | R29: =ROUND(Q29*(1+'Project Description'!H967),0) -> 0 | S29: =ROUND(R29*(1+'Project Description'!H967),0) -> 0 | T29: =ROUND(S29*(1+'Project Description'!H967),0) -> 0 | U29: =ROUND(T29*(1+'Project Description'!H967),0) -> 0 | V29: =ROUND(U29*(1+'Project Description'!H967),0) -> 0 | W29: =ROUND(V29*(1+'Project Description'!H967),0) -> 0 | X29: =ROUND(W29*(1+'Project Description'!H967),0) -> 0 | Y29: =ROUND(X29*(1+'Project Description'!H967),0) -> 0 | Z29: =ROUND(Y29*(1+'Project Description'!H967),0) -> 0 | AA29: =ROUND(Z29*(1+'Project Description'!H967),0) -> 0 | AB29: =ROUND(AA29*(1+'Project Description'!H967),0) -> 0 | AC29: =ROUND(AB29*(1+'Project Description'!H967),0) -> 0 | AD29: =ROUND(AC29*(1+'Project Description'!H967),0) -> 0 | AE29: =ROUND(AD29*(1+'Project Description'!H967),0) -> 0 | AF29: =ROUND(AE29*(1+'Project Description'!H967),0) -> 0 | AG29: =ROUND(AF29*(1+'Project Description'!H967),0) -> 0 | AH29: =ROUND(AG29*(1+'Project Description'!H967),0) -> 0 | AI29: =ROUND(AH29*(1+'Project Description'!H967),0) -> 0 | AJ29: =ROUND(AI29*(1+'Project Description'!H967),0) -> 0 | AK29: =ROUND(AJ29*(1+'Project Description'!H967),0) -> 0 | AL29: =ROUND(AK29*(1+'Project Description'!H967),0) -> 0 | AM29: =ROUND(AL29*(1+'Project Description'!H967),0) -> 0 | AN29: =ROUND(AM29*(1+'Project Description'!H967),0) -> 0 | AO29: =ROUND(AN29*(1+'Project Description'!H967),0) -> 0 | AP29: =ROUND(AO29*(1+'Project Description'!H967),0) -> 0
A30: =ROW(A30)-A8 -> 21 | B30: Operating & Maintenance Expenses | C30: =+'Revenues and Expenses'!C52 -> 0 | D30: =ROUND(C30*(1+'Project Description'!H967),0) -> 0 | E30: =ROUND(D30*(1+'Project Description'!H967),0) -> 0 | F30: =ROUND(E30*(1+'Project Description'!H967),0) -> 0 | G30: =ROUND(F30*(1+'Project Description'!H967),0) -> 0 | H30: =ROUND(G30*(1+'Project Description'!H967),0) -> 0 | I30: =ROUND(H30*(1+'Project Description'!H967),0) -> 0 | J30: =ROUND(I30*(1+'Project Description'!H967),0) -> 0 | K30: =ROUND(J30*(1+'Project Description'!H967),0) -> 0 | L30: =ROUND(K30*(1+'Project Description'!H967),0) -> 0 | M30: =ROUND(L30*(1+'Project Description'!H967),0) -> 0 | N30: =ROUND(M30*(1+'Project Description'!H967),0) -> 0 | O30: =ROUND(N30*(1+'Project Description'!H967),0) -> 0 | P30: =ROUND(O30*(1+'Project Description'!H967),0) -> 0 | Q30: =ROUND(P30*(1+'Project Description'!H967),0) -> 0 | R30: =ROUND(Q30*(1+'Project Description'!H967),0) -> 0 | S30: =ROUND(R30*(1+'Project Description'!H967),0) -> 0 | T30: =ROUND(S30*(1+'Project Description'!H967),0) -> 0 | U30: =ROUND(T30*(1+'Project Description'!H967),0) -> 0 | V30: =ROUND(U30*(1+'Project Description'!H967),0) -> 0 | W30: =ROUND(V30*(1+'Project Description'!H967),0) -> 0 | X30: =ROUND(W30*(1+'Project Description'!H967),0) -> 0 | Y30: =ROUND(X30*(1+'Project Description'!H967),0) -> 0 | Z30: =ROUND(Y30*(1+'Project Description'!H967),0) -> 0 | AA30: =ROUND(Z30*(1+'Project Description'!H967),0) -> 0 | AB30: =ROUND(AA30*(1+'Project Description'!H967),0) -> 0 | AC30: =ROUND(AB30*(1+'Project Description'!H967),0) -> 0 | AD30: =ROUND(AC30*(1+'Project Description'!H967),0) -> 0 | AE30: =ROUND(AD30*(1+'Project Description'!H967),0) -> 0 | AF30: =ROUND(AE30*(1+'Project Description'!H967),0) -> 0 | AG30: =ROUND(AF30*(1+'Project Description'!H967),0) -> 0 | AH30: =ROUND(AG30*(1+'Project Description'!H967),0) -> 0 | AI30: =ROUND(AH30*(1+'Project Description'!H967),0) -> 0 | AJ30: =ROUND(AI30*(1+'Project Description'!H967),0) -> 0 | AK30: =ROUND(AJ30*(1+'Project Description'!H967),0) -> 0 | AL30: =ROUND(AK30*(1+'Project Description'!H967),0) -> 0 | AM30: =ROUND(AL30*(1+'Project Description'!H967),0) -> 0 | AN30: =ROUND(AM30*(1+'Project Description'!H967),0) -> 0 | AO30: =ROUND(AN30*(1+'Project Description'!H967),0) -> 0 | AP30: =ROUND(AO30*(1+'Project Description'!H967),0) -> 0
A31: =ROW(A31)-A8 -> 22 | B31: Utilities Expenses | C31: =+'Revenues and Expenses'!C64 -> 0 | D31: =ROUND(C31*(1+'Project Description'!H967),0) -> 0 | E31: =ROUND(D31*(1+'Project Description'!H967),0) -> 0 | F31: =ROUND(E31*(1+'Project Description'!H967),0) -> 0 | G31: =ROUND(F31*(1+'Project Description'!H967),0) -> 0 | H31: =ROUND(G31*(1+'Project Description'!H967),0) -> 0 | I31: =ROUND(H31*(1+'Project Description'!H967),0) -> 0 | J31: =ROUND(I31*(1+'Project Description'!H967),0) -> 0 | K31: =ROUND(J31*(1+'Project Description'!H967),0) -> 0 | L31: =ROUND(K31*(1+'Project Description'!H967),0) -> 0 | M31: =ROUND(L31*(1+'Project Description'!H967),0) -> 0 | N31: =ROUND(M31*(1+'Project Description'!H967),0) -> 0 | O31: =ROUND(N31*(1+'Project Description'!H967),0) -> 0 | P31: =ROUND(O31*(1+'Project Description'!H967),0) -> 0 | Q31: =ROUND(P31*(1+'Project Description'!H967),0) -> 0 | R31: =ROUND(Q31*(1+'Project Description'!H967),0) -> 0 | S31: =ROUND(R31*(1+'Project Description'!H967),0) -> 0 | T31: =ROUND(S31*(1+'Project Description'!H967),0) -> 0 | U31: =ROUND(T31*(1+'Project Description'!H967),0) -> 0 | V31: =ROUND(U31*(1+'Project Description'!H967),0) -> 0 | W31: =ROUND(V31*(1+'Project Description'!H967),0) -> 0 | X31: =ROUND(W31*(1+'Project Description'!H967),0) -> 0 | Y31: =ROUND(X31*(1+'Project Description'!H967),0) -> 0 | Z31: =ROUND(Y31*(1+'Project Description'!H967),0) -> 0 | AA31: =ROUND(Z31*(1+'Project Description'!H967),0) -> 0 | AB31: =ROUND(AA31*(1+'Project Description'!H967),0) -> 0 | AC31: =ROUND(AB31*(1+'Project Description'!H967),0) -> 0 | AD31: =ROUND(AC31*(1+'Project Description'!H967),0) -> 0 | AE31: =ROUND(AD31*(1+'Project Description'!H967),0) -> 0 | AF31: =ROUND(AE31*(1+'Project Description'!H967),0) -> 0 | AG31: =ROUND(AF31*(1+'Project Description'!H967),0) -> 0 | AH31: =ROUND(AG31*(1+'Project Description'!H967),0) -> 0 | AI31: =ROUND(AH31*(1+'Project Description'!H967),0) -> 0 | AJ31: =ROUND(AI31*(1+'Project Description'!H967),0) -> 0 | AK31: =ROUND(AJ31*(1+'Project Description'!H967),0) -> 0 | AL31: =ROUND(AK31*(1+'Project Description'!H967),0) -> 0 | AM31: =ROUND(AL31*(1+'Project Description'!H967),0) -> 0 | AN31: =ROUND(AM31*(1+'Project Description'!H967),0) -> 0 | AO31: =ROUND(AN31*(1+'Project Description'!H967),0) -> 0 | AP31: =ROUND(AO31*(1+'Project Description'!H967),0) -> 0
A32: =ROW(A32)-A8 -> 23 | B32: Taxes & Insurance Expenses | C32: =+'Revenues and Expenses'!C89-SUM(Proforma!C25:C31) -> 0 | D32: =ROUND(C32*(1+'Project Description'!H967),0) -> 0 | E32: =ROUND(D32*(1+'Project Description'!H967),0) -> 0 | F32: =ROUND(E32*(1+'Project Description'!H967),0) -> 0 | G32: =ROUND(F32*(1+'Project Description'!H967),0) -> 0 | H32: =ROUND(G32*(1+'Project Description'!H967),0) -> 0 | I32: =ROUND(H32*(1+'Project Description'!H967),0) -> 0 | J32: =ROUND(I32*(1+'Project Description'!H967),0) -> 0 | K32: =ROUND(J32*(1+'Project Description'!H967),0) -> 0 | L32: =ROUND(K32*(1+'Project Description'!H967),0) -> 0 | M32: =ROUND(L32*(1+'Project Description'!H967),0) -> 0 | N32: =ROUND(M32*(1+'Project Description'!H967),0) -> 0 | O32: =ROUND(N32*(1+'Project Description'!H967),0) -> 0 | P32: =ROUND(O32*(1+'Project Description'!H967),0) -> 0 | Q32: =ROUND(P32*(1+'Project Description'!H967),0) -> 0 | R32: =ROUND(Q32*(1+'Project Description'!H967),0) -> 0 | S32: =ROUND(R32*(1+'Project Description'!H967),0) -> 0 | T32: =ROUND(S32*(1+'Project Description'!H967),0) -> 0 | U32: =ROUND(T32*(1+'Project Description'!H967),0) -> 0 | V32: =ROUND(U32*(1+'Project Description'!H967),0) -> 0 | W32: =ROUND(V32*(1+'Project Description'!H967),0) -> 0 | X32: =ROUND(W32*(1+'Project Description'!H967),0) -> 0 | Y32: =ROUND(X32*(1+'Project Description'!H967),0) -> 0 | Z32: =ROUND(Y32*(1+'Project Description'!H967),0) -> 0 | AA32: =ROUND(Z32*(1+'Project Description'!H967),0) -> 0 | AB32: =ROUND(AA32*(1+'Project Description'!H967),0) -> 0 | AC32: =ROUND(AB32*(1+'Project Description'!H967),0) -> 0 | AD32: =ROUND(AC32*(1+'Project Description'!H967),0) -> 0 | AE32: =ROUND(AD32*(1+'Project Description'!H967),0) -> 0 | AF32: =ROUND(AE32*(1+'Project Description'!H967),0) -> 0 | AG32: =ROUND(AF32*(1+'Project Description'!H967),0) -> 0 | AH32: =ROUND(AG32*(1+'Project Description'!H967),0) -> 0 | AI32: =ROUND(AH32*(1+'Project Description'!H967),0) -> 0 | AJ32: =ROUND(AI32*(1+'Project Description'!H967),0) -> 0 | AK32: =ROUND(AJ32*(1+'Project Description'!H967),0) -> 0 | AL32: =ROUND(AK32*(1+'Project Description'!H967),0) -> 0 | AM32: =ROUND(AL32*(1+'Project Description'!H967),0) -> 0 | AN32: =ROUND(AM32*(1+'Project Description'!H967),0) -> 0 | AO32: =ROUND(AN32*(1+'Project Description'!H967),0) -> 0 | AP32: =ROUND(AO32*(1+'Project Description'!H967),0) -> 0
A33: =ROW(A33)-A8 -> 24
A34: =ROW(A34)-A8 -> 25 | B34: Total Operating Expenses | C34: =SUM(C25:C32) -> 0 | D34: =SUM(D25:D32) -> 0 | E34: 0 | F34: 0 | G34: 0 | H34: 0 | I34: 0 | J34: 0 | K34: 0 | L34: 0 | M34: 0 | N34: 0 | O34: 0 | P34: 0 | Q34: 0 | R34: 0 | S34: 0 | T34: 0 | U34: 0 | V34: 0 | W34: 0 | X34: 0 | Y34: 0 | Z34: 0 | AA34: 0 | AB34: 0 | AC34: 0 | AD34: 0 | AE34: 0 | AF34: 0 | AG34: 0 | AH34: 0 | AI34: 0 | AJ34: 0 | AK34: 0 | AL34: =SUM(AL25:AL32) -> 0 | AM34: =SUM(AM25:AM32) -> 0 | AN34: =SUM(AN25:AN32) -> 0 | AO34: =SUM(AO25:AO32) -> 0 | AP34: =SUM(AP25:AP32) -> 0
A35: =ROW(A35)-A8 -> 26
A36: =ROW(A36)-A8 -> 27 | B36: Replacement Reserve ADRR | C36: =+'Project Description'!H987 -> 0 | D36: =ROUND(C36*(1+'Project Description'!H971),0) -> 0 | E36: =ROUND(D36*(1+'Project Description'!H971),0) -> 0 | F36: =ROUND(E36*(1+'Project Description'!H971),0) -> 0 | G36: =ROUND(F36*(1+'Project Description'!H971),0) -> 0 | H36: =ROUND(G36*(1+'Project Description'!H971),0) -> 0 | I36: =ROUND(H36*(1+'Project Description'!H971),0) -> 0 | J36: =ROUND(I36*(1+'Project Description'!H971),0) -> 0 | K36: =ROUND(J36*(1+'Project Description'!H971),0) -> 0 | L36: =ROUND(K36*(1+'Project Description'!H971),0) -> 0 | M36: =ROUND(L36*(1+'Project Description'!H971),0) -> 0 | N36: =ROUND(M36*(1+'Project Description'!H971),0) -> 0 | O36: =ROUND(N36*(1+'Project Description'!H971),0) -> 0 | P36: =ROUND(O36*(1+'Project Description'!H971),0) -> 0 | Q36: =ROUND(P36*(1+'Project Description'!H971),0) -> 0 | R36: =ROUND(Q36*(1+'Project Description'!H971),0) -> 0 | S36: =ROUND(R36*(1+'Project Description'!H971),0) -> 0 | T36: =ROUND(S36*(1+'Project Description'!H971),0) -> 0 | U36: =ROUND(T36*(1+'Project Description'!H971),0) -> 0 | V36: =ROUND(U36*(1+'Project Description'!H971),0) -> 0 | W36: =ROUND(V36*(1+'Project Description'!H971),0) -> 0 | X36: =ROUND(W36*(1+'Project Description'!H971),0) -> 0 | Y36: =ROUND(X36*(1+'Project Description'!H971),0) -> 0 | Z36: =ROUND(Y36*(1+'Project Description'!H971),0) -> 0 | AA36: =ROUND(Z36*(1+'Project Description'!H971),0) -> 0 | AB36: =ROUND(AA36*(1+'Project Description'!H971),0) -> 0 | AC36: =ROUND(AB36*(1+'Project Description'!H971),0) -> 0 | AD36: =ROUND(AC36*(1+'Project Description'!H971),0) -> 0 | AE36: =ROUND(AD36*(1+'Project Description'!H971),0) -> 0 | AF36: =ROUND(AE36*(1+'Project Description'!H971),0) -> 0 | AG36: =ROUND(AF36*(1+'Project Description'!H971),0) -> 0 | AH36: =ROUND(AG36*(1+'Project Description'!H971),0) -> 0 | AI36: =ROUND(AH36*(1+'Project Description'!H971),0) -> 0 | AJ36: =ROUND(AI36*(1+'Project Description'!H971),0) -> 0 | AK36: =ROUND(AJ36*(1+'Project Description'!H971),0) -> 0 | AL36: =ROUND(AK36*(1+'Project Description'!H971),0) -> 0 | AM36: =ROUND(AL36*(1+'Project Description'!H971),0) -> 0 | AN36: =ROUND(AM36*(1+'Project Description'!H971),0) -> 0 | AO36: =ROUND(AN36*(1+'Project Description'!H971),0) -> 0 | AP36: =ROUND(AO36*(1+'Project Description'!H971),0) -> 0
A37: =ROW(A37)-A8 -> 28
A38: =ROW(A38)-A8 -> 29 | B38: Net Operating Income | C38: =+C24-C34-C36 -> 0 | D38: =+D24-D34-D36 -> 0 | E38: 0 | F38: 0 | G38: 0 | H38: 0 | I38: 0 | J38: 0 | K38: 0 | L38: 0 | M38: 0 | N38: 0 | O38: 0 | P38: 0 | Q38: 0 | R38: 0 | S38: 0 | T38: 0 | U38: 0 | V38: 0 | W38: 0 | X38: 0 | Y38: 0 | Z38: 0 | AA38: 0 | AB38: 0 | AC38: 0 | AD38: 0 | AE38: 0 | AF38: 0 | AG38: 0 | AH38: 0 | AI38: 0 | AJ38: 0 | AK38: 0 | AL38: =+AL24-AL34-AL36 -> 0 | AM38: =+AM24-AM34-AM36 -> 0 | AN38: =+AN24-AN34-AN36 -> 0 | AO38: =+AO24-AO34-AO36 -> 0 | AP38: =+AP24-AP34-AP36 -> 0
A39: =ROW(A39)-A8 -> 30
A40: =ROW(A40)-A8 -> 31 | B40: Must Pay Debt Service | C40: =+'Project Description'!H994 -> 0 | D40: =+C40 -> 0 | E40: =+D40 -> 0 | F40: 0 | G40: 0 | H40: 0 | I40: 0 | J40: 0 | K40: 0 | L40: 0 | M40: 0 | N40: 0 | O40: 0 | P40: 0 | Q40: 0 | R40: 0 | S40: 0 | T40: 0 | U40: 0 | V40: 0 | W40: 0 | X40: 0 | Y40: 0 | Z40: 0 | AA40: 0 | AB40: 0 | AC40: 0 | AD40: 0 | AE40: 0 | AF40: 0 | AG40: 0 | AH40: 0 | AI40: 0 | AJ40: 0 | AK40: 0 | AL40: =+AK40 -> 0 | AM40: =+AL40 -> 0 | AN40: =+AM40 -> 0 | AO40: =+AN40 -> 0 | AP40: =+AO40 -> 0
A41: =ROW(A41)-A8 -> 32 | B41: Other
A42: =ROW(A42)-A8 -> 33
A43: =ROW(A43)-A8 -> 34 | B43: Operating Cash Flow | C43: =C38-SUM(C39:C42) -> 0 | D43: =D38-SUM(D39:D42) -> 0 | E43: 0 | F43: 0 | G43: 0 | H43: 0 | I43: 0 | J43: 0 | K43: 0 | L43: 0 | M43: 0 | N43: 0 | O43: 0 | P43: 0 | Q43: 0 | R43: 0 | S43: 0 | T43: 0 | U43: 0 | V43: 0 | W43: 0 | X43: 0 | Y43: 0 | Z43: 0 | AA43: 0 | AB43: 0 | AC43: 0 | AD43: 0 | AE43: 0 | AF43: 0 | AG43: 0 | AH43: 0 | AI43: 0 | AJ43: 0 | AK43: 0 | AL43: =AL38-SUM(AL39:AL42) -> 0 | AM43: =AM38-SUM(AM39:AM42) -> 0 | AN43: =AN38-SUM(AN39:AN42) -> 0 | AO43: =AO38-SUM(AO39:AO42) -> 0 | AP43: =AP38-SUM(AP39:AP42) -> 0
A44: =ROW(A44)-A8 -> 35 | B44: DSCR | C44: =IF(SUM(C40:C41)=0,0,C38/SUM(C40:C41)) -> 0 | D44: =IF(SUM(D40:D41)=0,0,D38/SUM(D40:D41)) -> 0 | E44: 0 | F44: 0 | G44: 0 | H44: 0 | I44: 0 | J44: 0 | K44: 0 | L44: 0 | M44: 0 | N44: 0 | O44: 0 | P44: 0 | Q44: 0 | R44: 0 | S44: 0 | T44: 0 | U44: 0 | V44: 0 | W44: 0 | X44: 0 | Y44: 0 | Z44: 0 | AA44: 0 | AB44: 0 | AC44: 0 | AD44: 0 | AE44: 0 | AF44: 0 | AG44: 0 | AH44: 0 | AI44: 0 | AJ44: 0 | AK44: 0 | AL44: =IF(SUM(AL40:AL41)=0,0,AL38/SUM(AL40:AL41)) -> 0 | AM44: =IF(SUM(AM40:AM41)=0,0,AM38/SUM(AM40:AM41)) -> 0 | AN44: =IF(SUM(AN40:AN41)=0,0,AN38/SUM(AN40:AN41)) -> 0 | AO44: =IF(SUM(AO40:AO41)=0,0,AO38/SUM(AO40:AO41)) -> 0 | AP44: =IF(SUM(AP40:AP41)=0,0,AP38/SUM(AP40:AP41)) -> 0
A45: =ROW(A45)-A8 -> 36
B46: Allowable Contingent A/M Fee | C46: =+'Revenues and Expenses'!J105 -> 0 | D46: =ROUND(C46*(1+'Project Description'!H967),0) -> 0 | E46: =ROUND(D46*(1+'Project Description'!H967),0) -> 0 | F46: =ROUND(E46*(1+'Project Description'!H967),0) -> 0 | G46: =ROUND(F46*(1+'Project Description'!H967),0) -> 0 | H46: =ROUND(G46*(1+'Project Description'!H967),0) -> 0 | I46: =ROUND(H46*(1+'Project Description'!H967),0) -> 0 | J46: =ROUND(I46*(1+'Project Description'!H967),0) -> 0 | K46: =ROUND(J46*(1+'Project Description'!H967),0) -> 0 | L46: =ROUND(K46*(1+'Project Description'!H967),0) -> 0 | M46: =ROUND(L46*(1+'Project Description'!H967),0) -> 0 | N46: =ROUND(M46*(1+'Project Description'!H967),0) -> 0 | O46: =ROUND(N46*(1+'Project Description'!H967),0) -> 0 | P46: =ROUND(O46*(1+'Project Description'!H967),0) -> 0 | Q46: =ROUND(P46*(1+'Project Description'!H967),0) -> 0 | R46: =ROUND(Q46*(1+'Project Description'!H967),0) -> 0 | S46: =ROUND(R46*(1+'Project Description'!H967),0) -> 0 | T46: =ROUND(S46*(1+'Project Description'!H967),0) -> 0 | U46: =ROUND(T46*(1+'Project Description'!H967),0) -> 0 | V46: =ROUND(U46*(1+'Project Description'!H967),0) -> 0 | W46: =ROUND(V46*(1+'Project Description'!H967),0) -> 0 | X46: =ROUND(W46*(1+'Project Description'!H967),0) -> 0 | Y46: =ROUND(X46*(1+'Project Description'!H967),0) -> 0 | Z46: =ROUND(Y46*(1+'Project Description'!H967),0) -> 0 | AA46: =ROUND(Z46*(1+'Project Description'!H967),0) -> 0 | AB46: =ROUND(AA46*(1+'Project Description'!H967),0) -> 0 | AC46: =ROUND(AB46*(1+'Project Description'!H967),0) -> 0 | AD46: =ROUND(AC46*(1+'Project Description'!H967),0) -> 0 | AE46: =ROUND(AD46*(1+'Project Description'!H967),0) -> 0 | AF46: =ROUND(AE46*(1+'Project Description'!H967),0) -> 0 | AG46: =ROUND(AF46*(1+'Project Description'!H967),0) -> 0 | AH46: =ROUND(AG46*(1+'Project Description'!H967),0) -> 0 | AI46: =ROUND(AH46*(1+'Project Description'!H967),0) -> 0 | AJ46: =ROUND(AI46*(1+'Project Description'!H967),0) -> 0 | AK46: =ROUND(AJ46*(1+'Project Description'!H967),0) -> 0 | AL46: =ROUND(AK46*(1+'Project Description'!H967),0) -> 0 | AM46: =ROUND(AL46*(1+'Project Description'!H967),0) -> 0 | AN46: =ROUND(AM46*(1+'Project Description'!H967),0) -> 0 | AO46: =ROUND(AN46*(1+'Project Description'!H967),0) -> 0 | AP46: =ROUND(AO46*(1+'Project Description'!H967),0) -> 0
B48: Surplus Cash | C48: =MAX(0,C43-C46) -> 0 | D48: =MAX(0,D43-D46) -> 0 | E48: 0 | F48: 0 | G48: 0 | H48: 0 | I48: 0 | J48: 0 | K48: 0 | L48: 0 | M48: 0 | N48: 0 | O48: 0 | P48: 0 | Q48: 0 | R48: 0 | S48: 0 | T48: 0 | U48: 0 | V48: 0 | W48: 0 | X48: 0 | Y48: 0 | Z48: 0 | AA48: 0 | AB48: 0 | AC48: 0 | AD48: 0 | AE48: 0 | AF48: 0 | AG48: 0 | AH48: 0 | AI48: 0 | AJ48: 0 | AK48: 0 | AL48: 0 | AM48: 0 | AN48: 0 | AO48: 0 | AP48: 0
B50: Cumulative Surplus Cash | C50: =+C48 -> 0 | D50: =+C50+D48 -> 0 | E50: =+D50+E48 -> 0 | F50: 0 | G50: 0 | H50: 0 | I50: 0 | J50: 0 | K50: 0 | L50: 0 | M50: 0 | N50: 0 | O50: 0 | P50: 0 | Q50: 0 | R50: 0 | S50: 0 | T50: 0 | U50: 0 | V50: 0 | W50: 0 | X50: 0 | Y50: 0 | Z50: 0 | AA50: 0 | AB50: 0 | AC50: 0 | AD50: 0 | AE50: 0 | AF50: 0 | AG50: 0 | AH50: 0 | AI50: 0 | AJ50: 0 | AK50: 0 | AL50: 0 | AM50: 0 | AN50: 0 | AO50: 0 | AP50: 0
B51: Through Year 15 | C51: =+Q50 -> 0
B52: Through Year 35 | C52: =+AK50 -> 0
B53: Through Year 40 | C53: =+AP50 -> 0

Sheet Selection Criteria
A3: =+Instructions!A3 -> 2025 QAP Underwriting Application v1.1
A4: =+'Unit Mix and Rents'!A4 -> ( LA),
A5: Selection Criteria: Points Claimed by Taxpayer / Applicant
D6: Calculated | F6: Self-Score | L6: Max
A7: I. | B7: TARGETED PROJECT TYPE | L7: 11 | R7: Scoring updated for 2025 QAP
A8: A. | B8: De-Concentration Projects. (Only one selection allowed)
A9: i. | B9: Project Diversity. | E9: points | F9: 0 | I9: =TEXT(M9,"0.0%")&" Low Income Units in Project" -> 0.0% Low Income Units in Project | L9: 5 | M9: =+'Unit Mix and Rents'!G44 -> 0 | R9: Scoring updated for 2022 QAP
A10: ii. | B10: Geographic Diversity. | F10: 0 | I10: ="Census tract median income is "&TEXT(M10,"0.0%")&" of MSA" -> Census tract median income is 0.0% of MSA | L10: 5 | M10: =IFERROR(+'Project Description'!M124,0) -> 0 | N10: of MSA | O10: =IFERROR(+'Project Description'!M125,0) -> 0 | P10: of Parish | R10: Scoring updated for 2025 QAP
C11: =IF(AND(D10>0,'Project Description'!H121="Yes"),"Note -- LHC review needed for Geographic Diversity; project lies in multiple census tracts","") -> 
A13: A. | B13: Community Redevelopment (select one. maximum 3 points allowed)
A14: i. | B14: Redevelopment Project
B15: a. Distressed Property | D15: =MAX(H15:H19) -> 0 | E15: points | F15: 0 | H15: =IF(AND('Project Description'!H141="Yes",'Project Description'!H129="Yes",'Project Description'!H132="Yes"),L15,0) -> 0 | L15: 3
B16: b. Redevelopment Property | F16: 0 | H16: =IF(AND('Project Description'!H142="Yes",'Project Description'!H129="Yes",'Project Description'!H132="Yes"),L16,0) -> 0 | L16: 3
B17: c. Owner Occupied / Plan of Action | F17: 0 | H17: =IF(AND('Project Description'!H143="Yes",'Project Description'!H129="Yes",'Project Description'!H132="Yes"),L17,0) -> 0 | L17: 3
A18: ii | B18: New Construction Project included in a Concerted Community Revitalization Plan | F18: 0 | H18: =IF(AND(M31="Yes",'Project Description'!H129="Yes",'Project Description'!H132="Yes"),L18,0) -> 0 | L18: 3
A19: iii | B19: PHA sponsored project | F19: 0 | H19: =IF('Project Description'!H172="Yes",L19,0) -> 0 | L19: 3 | R19: Scoring updated for 2025 QAP
A21: B. | B21: Rehabilitation & Preservation (Maximum 8 points) | M21: ='Project Description'!H103 -> Missing | N21: (any rehab?)
A22: i.a. | B22: Existing LIHTC project | D22: =MAX(H22:H28) -> 0 | E22: points | F22: 0 | H22: =IF('Project Description'!H144="Yes",L22,0) -> 0 | L22: 8 | R22: Scoring updated for 2025 QAP
A23: i.b | B23: Existing USDA, LHC, or other Federally Funded Project | F23: 0 | H23: =IF(AND(H22=0,'Project Description'!H145="Yes"),L23,0) -> 0 | I23: =IF(AND(F23>0,COUNTIF(F22:F23,">0")>1),"Only one selection allowed in I.C.i","") ->  | L23: 8 | R23: Scoring updated for 2025 QAP
A24: i.c | B24: Existing non-historic residential building | F24: 0 | H24: =IF(AND(SUM(H22:H23)=0,'Project Description'!H146="Yes"),L24,0) -> 0 | I24: =IF(AND(F24>0,COUNTIF(F22:F24,">0")>1),"Only one selection allowed in I.C.i","") ->  | L24: 7
A25: i.d | B25: Blighted housing remediation and/or replacement | F25: 0 | H25: =IF(AND(SUM(H22:H24)=0,'Project Description'!H147="Yes"),L25,0) -> 0 | I25: =IF(AND(F25>0,COUNTIF(F22:F25,">0")>1),"Only one selection allowed in I.C.i","") ->  | L25: 7
A26: i.e | B26: Rehab Infill / Scattered Site (not eligible community facility points) | F26: 0 | H26: =IF(AND(SUM(H22:H25)=0,'Project Description'!H148="Yes"),L26,0) -> 0 | I26: =IF(AND(F26>0,COUNTIF(F22:F26,">0")>1),"Only one selection allowed in I.C.i","") ->  | L26: 7 | M26: =+'Project Description'!H113 -> Missing | N26: (infill?) | O26: =+'Project Description'!H92 -> Missing | P26: (single site?)
A27: i.f | B27: Preservation of Residential Historic Property | F27: 0 | H27: =IF(AND(SUM(H22:H26)=0,'Project Description'!H149="Yes"),L27,0) -> 0 | I27: =IF(AND(F27>0,COUNTIF(F22:F27,">0")>1),"Only one selection allowed in I.C.i","") ->  | L27: 3
A28: ii. | B28: Existing Federally Funded with HAP Contract | E28: points | F28: 0 | M28: =+'Project Description'!H150 -> Missing | N28: (Existing FF with HAP) | R28: Scoring updated for 2025 QAP
A30: C. | B30: New Construction (Maximum 8 points) | M30: =+'Project Description'!H96 -> Missing | N30: (any new const?) | P30: =+'Project Description'!H97 -> Missing | Q30: new const (by # of units)
A31: i.a. | B31: New Construction | D31: =MAX(H31:H32) -> 0 | E31: points | F31: 0 | H31: =IF(AND(M31="Yes",M26<>"Yes"),L31,0) -> 0 | I31: =IF(AND(F31<>0,F32<>0),"Only one selection allowed","") ->  | L31: 7 | M31: =IF(AND(M30="Yes",P30>=50%),"Yes","No") -> No | N31: (at least 50% new const by # units)
A32: i.b | B32: New Construction Infill / Scattered Site (not eligible for points for community facility) | F32: 0 | H32: =IF(AND(M31="Yes",'Project Description'!H151="Yes",H31=0),L32,0) -> 0 | I32: =IF(AND(F31<>0,F32<>0),"Only one selection allowed","") ->  | L32: 7 | S32: Scoring updated for 2022 QAP
A33: i.c | B33: Homeownership Project | D33: =IF(AND(M31="Yes",'Project Description'!H152="Yes"),L33,0) -> 0 | E33: points | F33: 0 | L33: 1
B35: Total for Section I - Maximum 11 points | D35: =MIN(L35,M35) -> 0 | E35: points | F35: =SUM(F7:F34) -> 0 | L35: =+L7 -> 11 | M35: =(MAX(D31,D22)+D9+D15+D28+D33) -> 0 | N35: Section I Total | S35: Scoring updated for 2022 QAP
A37: II. | B37: TARGETED POPULATION TYPE | L37: 6
A38: A.i. | B38: Special Needs Households: | D38: =IF('Project Description'!H803<>"Yes",0,IF(M38>=30%,L38,IF(M38>=20%,L38-1,IF(M38>=10%,L38-2,0)))) -> 0 | E38: points | F38: 0 | H38: =TEXT(M38,"0.0%")&" of Total Units in Project for Special Needs" -> 0.0% of Total Units in Project for Special Needs | L38: 6 | M38: =IF('Project Description'!H803<>"Yes",0,'Project Description'!M813) -> 0
B39: =IF(D38=0,"","Population type(s):") ->  | C39: =IF(D38=0,"",'Project Description'!E813) -> 
A40: A.ii. | B40: Elderly Households: | D40: =IF(AND(D38=0,'Project Description'!H815="Yes"),L40,0) -> 0 | E40: points | F40: 0 | H40: =TEXT(M40,"0.0%")&" of Total Units in Project for Elderly" -> 0.0% of Total Units in Project for Elderly | L40: 6 | M40: =IF('Project Description'!H815<>"Yes",0,1) -> 0
B42: Total for Section II - Maximum 6 points | D42: =MAX(D38,D40) -> 0 | E42: points | F42: =SUM(F37:F41) -> 0 | H42: =IF(AND(F38>0,F40>0),"Cannot select both A and B","") ->  | L42: =+L37 -> 6
A44: III. | B44: PRIORITY DEVELOPMENT AREAS AND OTHER PREFERENCES | L44: 13
A45: A. | B45: Extended Affordability Agreement. | D45: =IF(AND('Project Description'!H819="Yes",'Project Description'!H823="Yes",'Project Description'!M825>0),'Project Description'!M825,0) -> 0 | E45: points | F45: 0 | H45: =IF(D45=0,"No extended affordability",'Project Description'!H825) -> No extended affordability | L45: 7
A46: B. | B46: Increased Unit Affordability.
A47: i. | B47: Extremely Low Income Targeting.
A48: a. | B48: Between 5% and 10% of units are non-PSH at 30% AMI or below. | E48: points | F48: 0 | I48: =TEXT(M48,"0.0%")&" of Total Units are non-PSH at 30% or below" -> -5.0% of Total Units are non-PSH at 30% or below | M48: =+'Unit Mix and Rents'!G47-5% -> -0.05 | N48: =IF(AND(M48>=5%,M48<10%),L48,0) -> 0
A49: b. | B49: Between 5% and 10% of units are PSH Units. | F49: 0 | I49: =TEXT(M49,"0.0%")&" of Total Units qualify as PSH Units" -> -5.0% of Total Units qualify as PSH Units | M49: =+'Unit Mix and Rents'!G46-5% -> -0.05 | N49: =IF(AND(M49>=5%,M49<10%),L49,0) -> 0
H50: =IF(AND(F48>0,F49>0),"Cannot select both a and b","") -> 
A51: ii. | B51: Very Low Income Targeting. | E51: points | F51: 0 | H51: =TEXT(M51,"0.0%")&" of Total Units at between 31%-50% AMI" -> 0.0% of Total Units at between 31%-50% AMI | M51: =+'Unit Mix and Rents'!G51 -> 0
A52: B. | B52: Governmental Priorities.
A53: i. | B53: =IF(M53="","Project Not Located in Difficult Development Area (DDA)","Project Located in Difficult Development Area (DDA) or") -> Project Not Located in Difficult Development Area (DDA) | D53: =MAX(H53:H55) -> 0 | E53: points | F53: 0 | H53: =IF(M54="CNI",0,IF(M53="",0,L53)) -> 0 | L53: 2 | M53: =IF('Project Description'!H128="Yes","DDA","") -> 
B54: =IF(M54="","Project Not Located in Qualified Census Tract (QCT)","Project Located in Qualified Census Tract (QCT) or") -> Project Not Located in Qualified Census Tract (QCT) | F54: 0 | H54: =IF(M54="",0,L54) -> 0 | L54: 2 | M54: =IF('Project Description'!H129="Yes","QCT","") -> 
B55: =IF(M55="","Project Not Located in Federally or State recognized Tribal Organization (RTO)","Project Located in Federally or State recognized Tribal Organization (RTO)") -> Project Not Located in Federally or State recognized Tribal Organization (RTO) | F55: 0 | H55: =IF(M55="",0,L55) -> 0 | L55: 2 | M55: =IF('Project Description'!H130="Yes","RTO","") ->  | O55: =+'Project Description'!E87 -> Select
A56: ii. | B56: Located in a parish that (a) has not received an award of LIHTC within the last 20 years. Grant, La Salle, St. Charles, or St. Helena. | D56: =IF(OR(O55="Grant",O55="LaSalle",O55="St. Charles",O55="St. Helena"),2,0) -> 0 | E56: points | F56: 0 | L56: 2 | S56: Scoring updated for 2025 QAP
A57: iii.c | B57: Parish with cost-burdened renters above 53% | E57: points | F57: 0 | H57: =TEXT(M57,"0.0%")&" cost-burdened renters" -> 0.0% cost-burdened renters | M57: =VLOOKUP(O55,Parishes!A9:AG73,27,FALSE) -> 0
A58: iii.c | B58: Only one of the following: | H58: =IF(AND(F59>0,F60>0),"Limited to 1 point in ii.d","") ->  | R58: Scoring updated for 2019 QAP
A59: iii.d | B59: Parish with children under 5 in poverty above 32% | E59: points | F59: 0 | H59: =TEXT(M59,"0.0%")&" children under 5 in poverty" -> 0.0% children under 5 in poverty | M59: =VLOOKUP(O55,Parishes!A9:AG73,29,FALSE) -> 0
A60: iii.e | B60: Parish with persons in poverty above 20% | E60: points | F60: 0 | H60: =TEXT(M60,"0.0%")&" persons in poverty" -> 0.0% persons in poverty | M60: =VLOOKUP(O55,Parishes!A9:AG73,28,FALSE) -> 0 | S60: Scoring updated for 2022 QAP
A61: iii.f | B61: Parish with Median Household Income at or below 46,000 | E61: points | F61: 0 | H61: =TEXT(M61,"#,##0")&" Median Household Income" -> 0 Median Household Income | M61: =VLOOKUP(O55,Parishes!A9:AG73,30,FALSE) -> 0
A62: C. | B62: Additional Financial Support | D62: =IF(M62>=7%,L62,IF(M62>=4%,L62-1,IF(M62>=2%,L62-2,0))) -> 0 | E62: points | F62: 0 | H62: =TEXT(M62,"0.0%")&" of TDC in Additional Financial Support" -> 0.0% of TDC in Additional Financial Support | L62: 4 | M62: =IF('Project Description'!H827="Yes",'Project Description'!M830,0) -> 0
B64: Total for Section III - Maximum 13 points | D64: =MIN(L64,M64) -> 0 | E64: points | F64: =SUM(F44:F63) -> 0 | L64: =+L44 -> 13 | M64: =SUM(D45:D62) -> 0 | N64: Section III Total
A66: IV. | B66: LOCATION CHARACTERISTICS | L66: 5
A67: A. | B67: Neighborhood Features.
A68: i. | B68: Points Gained. | D68: =MIN(M68,L68) -> 0 | E68: points | F68: 0 | L68: 5 | M68: =+'Project Description'!M834 -> 0
B69: =IF(AND(Q69=1,M69<0),"Error -- there is a nearby negative neighborhood feature thas is prohibited under the QAP.","") ->  | M69: =+'Project Description'!M861 -> 0 | N69: negative nhood feature | Q69: =+'Project Description'!Q860 -> 2
B71: Total for Section IV - Maximum 5 points | D71: =SUM(D67:D70) -> 0 | E71: points | F71: =SUM(F66:F70) -> 0 | L71: =+L66 -> 5
A73: V. | B73: PROJECT CHARACTERISTICS | L73: 16
A74: A. | B74: Community Facilities. | D74: =IF(AND(S74<>"Yes",P74="Yes",M74="Yes",V74=0),L74,0) -> 0 | E74: points | F74: 0 | L74: 2 | M74: =+'Project Description'!H880 -> Missing | N74: (CF?) | P74: =+'Project Description'!H92 -> Missing | Q74: (single site project?) | S74: =+'Project Description'!H152 -> Missing | T74: (H.O. project?) | V74: =+H32+F32+H26+F26 -> 0 | W74: Points claimed for Infill / Scattered Site
A75: B. | B75: Optional Amenities. *Provide architecture certification for the selected amenities.
A76: i. | B76: Washers and dryers required for new const. but no points | D76: 0 | E76: points | F76: =+D76 -> 0 | L76: 0 | S76: Scoring updated for 2022 QAP
A77: i. | B77: Washers and dryers are installed and maintained in each unit (no points will be offered for offering hookups only. Equipment must be new.) | E77: points | F77: 0 | M77: =+P81 -> Missing | N77: =+Q81 -> (Any rehab) | S77: Scoring updated for 2022 QAP
A78: ii. | B78: Dishwashers maintained in each unit - Required | D78: =IF('Project Description'!H883="Yes",L78,0) -> 0 | E78: point | F78: 0 | L78: 1
A79: iv. | B79: Smart thermostat installed in each unit | E79: point | F79: 0 | M79: =+'Project Description'!H884 -> Missing | N79: Wi-Fi
B80: *Applicant must provide documentation in the application submission
A81: iv. | B81: Green Building * | C81: ='Project Description'!H877 -> Missing | E81: points | F81: 0 | H81: =IF('Project Description'!$H$877="Yes",$B$81,"") ->  | M81: =+'Project Description'!H877 -> Missing | N81: (Green Bldg) | P81: =+'Project Description'!H103 -> Missing | Q81: (Any rehab) | S81: Scoring updated for 2025 QAP
A82: V. | B82: Universal Design * | E82: points | F82: 0 | H82: =IF('Project Description'!$H$885="Yes",$B$82,"") ->  | S82: Scoring updated for 2022 QAP
A83: C. | B83: Project Amenities. | H83: =M83&" Project Amenities claimed" -> 0 Project Amenities claimed | L83: 2 | M83: =+'Project Description'!M891 -> 0
B84: Playground | D84: =MIN(M83,L83) -> 0 | E84: point | F84: 0 | H84: =IF('Project Description'!H892="Yes",L84,0) -> 0 | L84: 1
B85: Computer Center (minimum 5 computers) | E85: point | F85: 0 | H85: =IF('Project Description'!H894="Yes",L85,0) -> 0 | L85: 1
B86: Exercise Room (must have equipment) | E86: point | F86: 0 | H86: =IF('Project Description'!H895="Yes",L86,0) -> 0 | L86: 1
B87: Picnic Area with Permanent Grill | E87: point | F87: 0 | H87: =IF('Project Description'!H896="Yes",L87,0) -> 0 | L87: 1
B88: Courtyard with Seating | E88: point | F88: 0 | H88: =IF('Project Description'!H902="Yes",L88,0) -> 0 | L88: 1
A89: D. | B89: Additional Accessible Units. | D89: =IF(M89>=20%,L89,IF(M89>=10%,L89-1,0)) -> 0 | E89: points | F89: 0 | H89: =+O89 -> 0 | I89: of total units are accessible | L89: 3 | M89: =+'Project Description'!H910+'Project Description'!H913-'Project Description'!P907-'Project Description'!P908 -> 0 | N89: provided | O89: =IF('Unit Mix and Rents'!F41=0,0,+M89/'Unit Mix and Rents'!F41) -> 0 | P89: In excess of Section 504
A90: E. | B90: On-Site Security. | H90: =+'Project Description'!M921 ->  | L90: 1 | M90: =SUM(H91:H93) -> 0
A91: i. | B91: Security Cameras. | D91: =MAX(H91:H93) -> 0 | E91: points | F91: 0 | H91: =IF('Project Description'!H919="Yes",2,0) -> 0 | L91: 2 | S91: Scoring updated for 2019 QAP
B92: Security Gate. | F92: 0 | H92: =IF('Project Description'!H920="Yes",2,0) -> 0 | L92: 2 | S92: Scoring updated for 2019 QAP
B93: On Site Security Guard. | F93: 0 | H93: =IF('Project Description'!H921="Yes",2,0) -> 0 | L93: 2 | S93: Scoring updated for 2019 QAP
A94: ii. | B94: Security cameras connect with local town crime surveillance initiative | D94: =IF('Project Description'!H922="Yes",L94,0) -> 0 | E94: point | F94: 0 | L94: 1
A95: F. | B95: TDC At Least 15% Below Maximum TDC Per Unit. | E95: points | F95: 0 | H95: =+M95 ->  | I95: =+N95 ->  | L95: 0 | M95: =+'Development Costs'!F255-1 ->  | N95: =IF(M95>0,"above the Maximum TDC",IF(M95<0,"below the Maximum TDC","")) -> 
A96: F. | B96: HUD Defensible Space | D96: =IF('Project Description'!H886="Yes",L96,0) -> 0 | E96: points | F96: 0 | L96: 2 | M96: =+'Project Description'!H96 -> Missing | N96: (Any new const.) | S96: Scoring updated for 2022 QAP
A97: G. | B97: Federally Qualified Health Centers (FQHC)
A98: a. | B98: On-site once a year | D98: =IF(M99=B100,3,IF(M99=B99,2, IF(M99=B98,1,IF(M99=B98,1,0)))) -> 0 | E98: points | F98: 0 | L98: 1
A99: b. | B99: On-site twice a year | L99: 2 | M99: ='Project Description'!H887 -> Missing | S99: Scoring updated for 2025 QAP
A100: c. | B100: On-site Quarterly | L100: 3
B101: Missing
B103: Total for Section V - Maximum 16 points | D103: =MIN(L103,M103) -> 0 | E103: points | F103: =SUM(F73:F101) -> 0 | L103: =+L73 -> 16 | M103: =SUM(D74:D99) -> 0 | N103: Section Total
A105: VI. | B105: THRESHOLD REQUIREMENTS - Please acknowledge that all of the following requirements have been met.
A107: H. | B107: 30% AMI And Target Population
B108: All Projects must set aside at least 5% of units for households with incomes at or below 30% AMI | F108: No | L108: =IF(N108>=5%,"Yes","No") -> No | M108: ='Unit Mix and Rents'!F47 -> 0 | N108: ='Unit Mix and Rents'!G47 -> 0
A110: I. | B110: Resiliency Standards: Required for projects located in Tier 1 or Tier 2 parishes | S110: Scoring updated for 2022 QAP
B111: FORTIFIED Roofs, windows, and doors: | D111: =IF(F111="Yes","",IF('Project Description'!H929="Yes",L111,"Required")) -> Required | F111: No | L111: ='Project Description'!M928 ->  | M111: =IF(L111="Yes","Required","") ->  | N111: (Tier 1 or 2))
B112: FORTIFIED SILVER: | F112: 0 | M112: =+'Project Description'!H96 -> Missing | N112: (Any new const.)
A113: J. | B113: Eviction Prevention and Low Barrier Tenant Screening | S113: Scoring updated for 2022 QAP
B114: Eviction Prevention Plan | D114: =IF(F114="Yes","",IF('Project Description'!H932="Yes",L114,"Required")) -> Required | F114: No | L114: Yes | M114: Required
B115: Low-Barrier Tenant Screening | D115: =IF(F115="Yes","",IF('Project Description'!H933="Yes",L115,"Required")) -> Required | F115: No | L115: Yes | M115: Required
A116: I. | B116: Diversity, Equity & Inclusion - Maximum 9 Points | L116: 2 | S116: Scoring updated for 2022 QAP
A117: i. | B117: (i) Material Participation of Minority, Women’s and Veteran’s Businesses – up to 4 points | S117: Scoring updated for 2022 QAP
B118: Professional Services/ General Contractor | E118: points | F118: 0 | L118: 2
B119: Sub-Contractors/Vendors 1%-4.99% of Total Development Cost | E119: points | F119: 0 | L119: 1
B120: Sub-Contractors/Vendors >5% of Total Development Cost | F120: 0 | L120: 2
A121: ii. | B121: Points for JV with a Certified Minority Entity, Woman-Owned Business, Veteran-Owned Business, Service Disabled Veteran-Owned Business or a Qualified Small Business (Max 5 points) | L121: 5
B122: JV with a Certified Minority Entity | E122: points | F122: 0 | L122: 5
B123: Woman-Owned Business | E123: points | F123: 0 | L123: 5
B124: Veteran-Owned Business | E124: points | F124: 0 | L124: 5
B125: Service Disabled Veteran-Owned Business | E125: points | F125: 0 | L125: 5
B126: Qualified Small Business | E126: points | F126: 0 | L126: 5
A127: K. | B127: Development Wi-Fi - Architect Certification is required | D127: =IF(F127="Yes","",IF('Project Description'!H884="Yes",L127,"Required")) -> Required | F127: No | L127: Yes | M127: Required
B129: TOTAL POINTS (TO BE CONFIRMED BY LHC) | D129: =+D103+D71+D64+D42+D35 -> 0 | E129: POINTS | F129: =+F103+F71+F64+F42+F35 -> 0 | G129: POINTS | L129: =+L73+L66+L44+L37+L7 -> 51
C2078: m ,

Sheet Summary
A3: =+Instructions!A3 -> 2025 QAP Underwriting Application v1.1
A4: =TRIM('Project Description'!E84)&" ("&TRIM('Project Description'!E86)&" LA), "&'Project Description'!E50 -> ( LA),
A6: Project Summary
A8: Taxpayer Name | B8: =+'Project Description'!E36 -> 0
A9: Developer | B9: =+'Project Description'!E50 -> 0
A10: Management Agent | B10: =+'Project Description'!E76 -> 0
A11: City | B11: =+'Project Description'!E86 -> 0
A12: Parish | B12: =+'Project Description'!E87 -> Select
A13: Number of Units | B13: =TEXT('Unit Mix and Rents'!F41,"0")&" total units and "&TEXT('Unit Mix and Rents'!O41,"0")&" LIHTC Units" -> 0 total units and 0 LIHTC Units
A15: ="The applicant's self-score is "&TEXT('Selection Criteria'!F129,"0.0")&" points." -> The applicant's self-score is 0.0 points.
A17: ="The primary development type is "&'Project Description'!H95&"; the primary building type is "&'Project Description'!H117 -> The primary development type is Missing; the primary building type is Missing
A19: ="Taxpayer is requesting "&TEXT('Project Description'!H204,"#,##0")&" of LIHTCs in the "&'Project Description'!H177&" Pool." -> Taxpayer is requesting 0 of LIHTCs in the Missing Pool.
A20: ="Taxpayer is requesting "&TEXT('Project Description'!H183,"#,##0")&" of NHTF, "&TEXT('Project Description'!H189,"#,##0")&" of HOME, and "&TEXT('Project Description'!H195,"#,##0")&" of CDBG-DR." -> Taxpayer is requesting 0 of NHTF, 0 of HOME, and 0 of CDBG-DR.
A21: ="LHC Funding Type is "&'Project Description'!D30&"." -> LHC Funding Type is .
A23: Unit Mix Summary | B23: 0 BR | C23: 1 BR | D23: 2 BR | E23: 3 BR | F23: 4 BR | G23: Total
A24: =+'Unit Mix and Rents'!B66 -> 20% AMI | B24: =+'Unit Mix and Rents'!C66 -> 0 | C24: =+'Unit Mix and Rents'!D66 -> 0 | D24: =+'Unit Mix and Rents'!E66 -> 0 | E24: =+'Unit Mix and Rents'!F66 -> 0 | F24: =+'Unit Mix and Rents'!G66 -> 0 | G24: =SUM(B24:F24) -> 0
A25: =+'Unit Mix and Rents'!B67 -> 30% AMI | B25: =+'Unit Mix and Rents'!C67 -> 0 | C25: =+'Unit Mix and Rents'!D67 -> 0 | D25: =+'Unit Mix and Rents'!E67 -> 0 | E25: =+'Unit Mix and Rents'!F67 -> 0 | F25: =+'Unit Mix and Rents'!G67 -> 0 | G25: 0
A26: =+'Unit Mix and Rents'!B68 -> 40% AMI | B26: =+'Unit Mix and Rents'!C68 -> 0 | C26: =+'Unit Mix and Rents'!D68 -> 0 | D26: =+'Unit Mix and Rents'!E68 -> 0 | E26: =+'Unit Mix and Rents'!F68 -> 0 | F26: =+'Unit Mix and Rents'!G68 -> 0 | G26: 0
A27: =+'Unit Mix and Rents'!B69 -> 50% AMI | B27: =+'Unit Mix and Rents'!C69 -> 0 | C27: =+'Unit Mix and Rents'!D69 -> 0 | D27: =+'Unit Mix and Rents'!E69 -> 0 | E27: =+'Unit Mix and Rents'!F69 -> 0 | F27: =+'Unit Mix and Rents'!G69 -> 0 | G27: 0
A28: =+'Unit Mix and Rents'!B70 -> 60% AMI | B28: =+'Unit Mix and Rents'!C70 -> 0 | C28: =+'Unit Mix and Rents'!D70 -> 0 | D28: =+'Unit Mix and Rents'!E70 -> 0 | E28: =+'Unit Mix and Rents'!F70 -> 0 | F28: =+'Unit Mix and Rents'!G70 -> 0 | G28: 0
A29: =+'Unit Mix and Rents'!B71 -> 70% AMI | B29: =+'Unit Mix and Rents'!C71 -> 0 | C29: =+'Unit Mix and Rents'!D71 -> 0 | D29: =+'Unit Mix and Rents'!E71 -> 0 | E29: =+'Unit Mix and Rents'!F71 -> 0 | F29: =+'Unit Mix and Rents'!G71 -> 0 | G29: 0
A30: =+'Unit Mix and Rents'!B72 -> 80% AMI | B30: =+'Unit Mix and Rents'!C72 -> 0 | C30: =+'Unit Mix and Rents'!D72 -> 0 | D30: =+'Unit Mix and Rents'!E72 -> 0 | E30: =+'Unit Mix and Rents'!F72 -> 0 | F30: =+'Unit Mix and Rents'!G72 -> 0 | G30: 0
A31: =+'Unit Mix and Rents'!B73 -> 120% AMI | B31: =+'Unit Mix and Rents'!C73 -> 0 | C31: =+'Unit Mix and Rents'!D73 -> 0 | D31: =+'Unit Mix and Rents'!E73 -> 0 | E31: =+'Unit Mix and Rents'!F73 -> 0 | F31: =+'Unit Mix and Rents'!G73 -> 0 | G31: 0
A32: =+'Unit Mix and Rents'!B74 -> Not AMI Restricted | B32: =+'Unit Mix and Rents'!C74 -> 0 | C32: =+'Unit Mix and Rents'!D74 -> 0 | D32: =+'Unit Mix and Rents'!E74 -> 0 | E32: =+'Unit Mix and Rents'!F74 -> 0 | F32: =+'Unit Mix and Rents'!G74 -> 0 | G32: 0
A33: Total Units | B33: =SUM(B24:B32) -> 0 | C33: 0 | D33: 0 | E33: 0 | F33: 0 | G33: 0
A35: =+'Unit Mix and Rents'!B77 -> PSH Units | B35: =+'Unit Mix and Rents'!C77 -> 0 | C35: =+'Unit Mix and Rents'!D77 -> 0 | D35: =+'Unit Mix and Rents'!E77 -> 0 | E35: =+'Unit Mix and Rents'!F77 -> 0 | F35: =+'Unit Mix and Rents'!G77 -> 0 | G35: =SUM(B35:F35) -> 0
A37: Operating Budget
A38: =+'Project Description'!B998 -> Gross Potential Rental Income | D38: =+'Project Description'!H998 -> 0
A39: =+'Project Description'!B999 -> Rent Loss (years 1-3) | D39: =+'Project Description'!H999 -> 0 | F39: =+'Project Description'!D999 -> 0.07
A40: =+'Project Description'!B1000 -> Other Income | D40: =+'Project Description'!H1000 -> 0
A41: Effective Gross Income | D41: =+'Project Description'!H1002 -> 0
A42: Total Operating Expenses | D42: =+'Project Description'!H1004 -> 0 | F42: =+'Revenues and Expenses'!D89 -> 0 | G42: PUPA
A43: =+'Project Description'!B1007 -> Net Operating Income | D43: =+'Project Description'!H1007 -> 0
A44: =+'Project Description'!B1009 -> Must Pay Debt Service | D44: =-SUM('Project Description'!H1009:H1013) -> 0
A45: Operating Cash Flow | D45: =+'Project Description'!H1014 -> 0
A46: =+'Project Description'!B1015 -> DSCR Year 1 | D46: =+'Project Description'!H1015 -> 0
A48: Total Sources of Funds | D48: =+'Project Description'!H529 -> 0 | F48: =+IF(G33=0,0,D48/G33) -> 0 | G48: per unit
A49: =+'Project Description'!B512 -> New LHC Risk Sharing First Mortgage Loan | D49: =+'Project Description'!H512 -> 0 | F49: =+IF(G33=0,0,D49/G33) -> 0
A50: =+'Project Description'!B513 -> Other Loan With Must-Pay Debt Service | D50: =+'Project Description'!H513 -> 0 | F50: =+IF(G33=0,0,D50/G33) -> 0
A51: =+'Project Description'!B514 -> Non-LHC loan #2 (identify lender): | D51: =+'Project Description'!H514 -> 0 | F51: =+IF(G33=0,0,D51/G33) -> 0
A52: =+'Project Description'!B515 -> LHC HOME Loan | D52: =+'Project Description'!H515 -> 0 | F52: =+IF(G33=0,0,D52/G33) -> 0
A53: =+'Project Description'!B516 -> LHC NHTF Loan | D53: =+'Project Description'!H516 -> 0 | F53: =+IF(G33=0,0,D53/G33) -> 0
A54: =+'Project Description'!B517 -> CDBG-DR Gap Financing Loan | D54: =+'Project Description'!H517 -> 0 | F54: =+IF(G33=0,0,D54/G33) -> 0
A55: =+'Project Description'!B518 -> Deferred Developer Fee | D55: =+'Project Description'!H518 -> 0 | F55: =+IF(G33=0,0,D55/G33) -> 0
A56: =+'Project Description'!B519 -> Federal Historic Tax Credits and Equity | D56: =+'Project Description'!H519 -> 0 | F56: =+IF(G33=0,0,D56/G33) -> 0
A57: =+'Project Description'!B520 -> State Historic Tax Credits and Equity | D57: =+'Project Description'!H520 -> 0 | F57: =+IF(G33=0,0,D57/G33) -> 0
A58: =+'Project Description'!B521 -> Estimated LIHTC Equity Proceeds | D58: =+'Project Description'!H521 -> 0 | F58: =+IF(G33=0,0,D58/G33) -> 0
A59: Other | D59: =D48-SUM(D49:E58) -> 0 | F59: =+IF(G33=0,0,D59/G33) -> 0
A61: Total Development Cost | D61: =+'Development Costs'!C229 -> 0 | F61: =+IF(G33=0,0,D61/G33) -> 0 | G61: per unit
A62: =+'Development Costs'!B201 -> Building Acquisition | D62: =+'Development Costs'!C201 -> 0 | F62: =+IF(G33=0,0,D62/G33) -> 0
A63: =+'Development Costs'!B202 -> Land Acquisition | D63: =+'Development Costs'!C202 -> 0 | F63: =+IF(G33=0,0,D63/G33) -> 0
A64: Total Hard Costs | D64: =SUM('Development Costs'!C203:C210) -> 0 | F64: =+IF(G33=0,0,D64/G33) -> 0 | K64: =SUM(D64:D64) -> 0
A65: Builder Compensation | C65: 0 | D65: 0 | F65: 0 | K65: =SUM(D64:D65) -> 0
A66: Construction Contingency | C66: =IF(K65=0,0,D66/K65) -> 0 | D66: =+'Development Costs'!C212 -> 0 | F66: =+IF(G33=0,0,D66/G33) -> 0 | K66: =SUM(D64:D66) -> 0
A67: Total Developer's Fee | C67: =IF(K66=0,0,D67/K66) -> 0 | D67: =+SUM('Development Costs'!C226:C227) -> 0 | F67: =+IF(G33=0,0,D67/G33) -> 0
A68: Initial Reserves | D68: =SUM('Development Costs'!C218:C223) -> 0 | F68: =+IF(G33=0,0,D68/G33) -> 0
A69: Soft Costs / Other | D69: =D61-SUM(D62:E68) -> 0 | F69: =+IF(G33=0,0,D69/G33) -> 0
A71: DSCR from Cash Flow Proforma:
A72: Year 1 | E72: =+'Project Description'!H1015 -> 0
A73: =+'Project Description'!B1018 -> Year 5 | E73: =+'Project Description'!H1018 -> 0
A74: =+'Project Description'!B1019 -> Year 10 | E74: =+'Project Description'!H1019 -> 0
A75: =+'Project Description'!B1020 -> Year 15 | E75: =+'Project Description'!H1020 -> 0
A76: =+'Project Description'!B1021 -> Year 20 | E76: =+'Project Description'!H1021 -> 0
A77: =+'Project Description'!B1022 -> Year 25 | E77: =+'Project Description'!H1022 -> 0
A78: =+'Project Description'!B1023 -> Year 30 | E78: =+'Project Description'!H1023 -> 0
A79: =+'Project Description'!B1024 -> Year 35 | E79: =+'Project Description'!H1024 -> 0
A82: Applicant's Additional Explanation:
A84: =+'Project Description'!B1065 -> 0

Sheet Checklist
A3: =+Instructions!A3 -> 2025 QAP Underwriting Application v1.1
A4: =TRIM('Project Description'!E84)&" ("&TRIM('Project Description'!E86)&" LA), "&'Project Description'!E50 -> ( LA),
A6: Checklist of Threshold Requirements and Other Required Information
A8: Complete the Following Worksheets (Each Requires User Entries)
B9: Project Description
B10: Unit Mix and Rents
B11: Development Costs
B12: Basis Calculation
B13: Revenues and Expenses
B14: Development Team
B15: Syndication
B16: Taxpayer Certification
B17: Reserve Adequacy
B18: Developer Experience (LHC-3)
B19: Property Management Experience (LHC-4)
B20: Appendix 1 (Ownership Information)
B21: Appendix 2 (Site Control Worksheet)
B22: Appendix 4 (Zoning Evidence)
A24: If user entries are required in other worksheets, instructions will appear below.
A26: Threshold Requirements | C26: QAP References
A28: The Threshold Requirements described below are required for each item marked "Yes" in column A. The 'QAP References' column provides a cross-reference to the appropriate portion(s) of the QAP.
A30: Yes | B30: ="Threshold Requirement "&E30&": "&F30&"." -> Threshold Requirement 1: Site Control (Also Appendix 2). | C30: =+'QAP Reference'!A39 -> IV.A.4 | E30: 1 | F30: Site Control (Also Appendix 2)
A31: As specified in the QAP. Generally, a purchase agreement, option to purchase, executed ground lease, or valid title. Label as Appendix 2 and include the worksheet in this Application titled 'Appendix 2'.
A33: Yes | B33: ="Threshold Requirement "&E33&": "&F33&"." -> Threshold Requirement 2: Zoning (Also Appendix 4). | C33: =+'QAP Reference'!A40 -> IV.A.5 | E33: =+E30+1 -> 2 | F33: Zoning (Also Appendix 4)
A34: As specified in the QAP. Documentation that development of the project is permitted under applicable zoning requirements. Label as Appendix 4; the signed document from the zoning authority should conform to the format of the worksheet in this Application titled 'Appendix 4'.
A36: Yes | B36: ="Threshold Requirement "&E36&": "&F36&"." -> Threshold Requirement 3: Infrastructure (Also Appendix 38). | C36: =+'QAP Reference'!A41 -> IV.A.6 | E36: =+E33+1 -> 3 | F36: Infrastructure (Also Appendix 38)
A37: As specified in the QAP. Evidence of essential utilities, transportation, and educational facilities.
A39: =IF('Project Description'!H100="Yes","Yes","") ->  | B39: ="Threshold Requirement "&E39&": "&F39&"." -> Threshold Requirement 4: Environmental Restrictions Checklist (Also Appendix 36). | C39: =+'QAP Reference'!A42 -> IV.A.7 | E39: =+E36+1 -> 4 | F39: Environmental Restrictions Checklist (Also Appendix 36)
A40: As specified in the QAP. Applicable to projects involving use of existing structures. Include any Operations and Maintenance Plans called for in the Checklist. The format for the Checklist is in the worksheet titled 'Appendix 36'.
A42: Yes | B42: ="Threshold Requirement "&E42&": "&F42&"." -> Threshold Requirement 5: Taxpayer Agreement Regarding Tenant Referrals (Also Appendix 39). | C42: =+'QAP Reference'!A44 -> IV.A.9 | E42: =+E39+1 -> 5 | F42: Taxpayer Agreement Regarding Tenant Referrals (Also Appendix 39)
A43: As specified in the QAP.
A45: Yes | B45: ="Threshold Requirement "&E45&": "&F45&"." -> Threshold Requirement 6: Minimum Internet / Cable Capacity Requirements. | C45: =+'QAP Reference'!A45 -> IV.A.10 | E45: =+E42+1 -> 6 | F45: Minimum Internet / Cable Capacity Requirements
A46: As specified in the QAP. Taxpayer agreement to comply with applicable QAP requirements.
A48: Yes | B48: ="Threshold Requirement "&E48&": "&F48&"." -> Threshold Requirement 7: Amenities: On-site laundry or washers and dryers hookups installed. | C48: =+'QAP Reference'!A46 -> IV.B.4 | E48: =+E45+1 -> 7 | F48: Amenities: On-site laundry or washers and dryers hookups installed
A49: As specified in the QAP.
A51: Yes | B51: ="Threshold Requirement "&E51&": "&F51&"." -> Threshold Requirement 8: Energy Efficiency Requirements. | C51: =+'QAP Reference'!A47 -> IV.A.11 | E51: =+E48+1 -> 8 | F51: Energy Efficiency Requirements
A52: As specified in the QAP. Requirements vary between new construction projects and rehabilitation projects. See the QAP.
A54: Yes | B54: ="Threshold Requirement "&E54&": "&F54&"." -> Threshold Requirement 9: Design Features. | C54: =+'QAP Reference'!A48 -> IV.A.12 | E54: =+E51+1 -> 9 | F54: Design Features
A55: As specified in the QAP: (1) 15-year-plus maintenance-free exterior; (2) 25-year-plus roof warranty; and (3) at least double paned, insulated windows.
A57: =IF(AND('Project Description'!H114="Yes",OR('Project Description'!H96="Yes",'Project Description'!H104="Yes")),"Yes","") ->  | B57: ="Threshold Requirement "&E57&": "&F57&"." -> Threshold Requirement 10: NC or SR Projects in Special Flood Hazard Areas. | C57: =+'QAP Reference'!A49 -> IV.A.13 | E57: =+E54+1 -> 10 | F57: NC or SR Projects in Special Flood Hazard Areas
A58: As specified in the QAP. Elevation to the minimum BFE.
A60: Yes | B60: ="Threshold Requirement "&E60&": "&F60&"." -> Threshold Requirement 11: Compliance with Local Floodplain Management Requirements. | C60: =+'QAP Reference'!A49 -> IV.A.13 | E60: =+E57+1 -> 11 | F60: Compliance with Local Floodplain Management Requirements
A61: As specified in the QAP. Applies to all projects.
A63: Yes | B63: ="Threshold Requirement "&E63&": "&F63&"." -> Threshold Requirement 12: Floodplain Determination. | C63: =+'QAP Reference'!A49 -> IV.A.13 | E63: =+E60+1 -> 12 | F63: Floodplain Determination
A64: All projects must provide a certification by the architect regarding whether all or part of the project lies in a floodplain. If all or part of the project lies in a floodplain, two additional requirements apply: (1) a finished-construction elevation certificate must be provided; and (2) the architect's certification must indicate whether the finished-construction elevation is at or above the Base Flood Elevation.
A66: =IF('Project Description'!H115="Yes","Yes","") ->  | B66: ="Threshold Requirement "&E66&": "&F66&"." -> Threshold Requirement 13: Architect's Certification for Levee Protected Areas. | C66: =+'QAP Reference'!A49 -> IV.A.13 | E66: =+E63+1 -> 13 | F66: Architect's Certification for Levee Protected Areas
A67: As specified in the QAP, for any project located inside a levee protected area.
A69: =IF('Project Description'!H101="Yes","Yes","") ->  | B69: ="Threshold Requirement "&E69&": "&F69&"." -> Threshold Requirement 14: Capital Needs Assessment (Also Appendix 6). | C69: =+'QAP Reference'!A51 -> IV.B.5 | E69: =+E66+1 -> 14 | F69: Capital Needs Assessment (Also Appendix 6)
A70: For all projects involving acquisition of any existing residential building, as specified in the QAP: a Capital Needs Assessment (labeled as Appendix 6). Additional requirements apply to historic rehab projects.
A72: =IF('Project Description'!H105="Yes","Yes","") ->  | B72: ="Threshold Requirement "&E72&": "&F72&"." -> Threshold Requirement 15: Historic Rehabilitation Projects. | C72: =+'QAP Reference'!A52 -> IV.A.15 | E72: =+E69+1 -> 15 | F72: Historic Rehabilitation Projects
A73: (1) Evidence of compliance with various minimum project requirements as specified in the QAP. (2) Approved Part I application from the Louisiana Office of Cultural Development Division of Historic Preservation, plus a Part II by the carryover date. (3) Additional requirements apply if 'substantial improvement' (as defined under the NFIP) is taking place and the structure is not being elevated.
A75: Yes | B75: ="Threshold Requirement "&E75&": "&F75&"." -> Threshold Requirement 16: Minimum Score. | C75: =+'QAP Reference'!A55 -> IV.A.18 | E75: =+E72+1 -> 16 | F75: Minimum Score
A76: Minimum selection criteria score of forty (40) points.
A78: =IF('Project Description'!H110="Yes","Yes","") ->  | B78: ="Threshold Requirement "&E78&": "&F78&"." -> Threshold Requirement 17: Audited Financials of Project (Or Equivalent) from Seller. | C78: =+'QAP Reference'!A59 -> IV.B.1 | E78: =+E75+1 -> 17 | F78: Audited Financials of Project (Or Equivalent) from Seller
A79: For projects including existing rental housing buildings. As specified in the QAP.
A81: =IF('Project Description'!H111="Yes","Yes","") ->  | B81: ="Threshold Requirement "&E81&": "&F81&"." -> Threshold Requirement 18: Sales Price With Related Persons. | C81: =+'QAP Reference'!A60 -> IV.B.2 | E81: =+E78+1 -> 18 | F81: Sales Price With Related Persons
A82: For projects where there is a relationship between seller and purchaser. As specified in the QAP.
A84: Yes | B84: ="Threshold Requirement "&E84&": "&F84&"." -> Threshold Requirement 19: Ten Year Title History (Also Appendix 3). | C84: =+'QAP Reference'!A61 -> IV.B.3 | E84: =+E81+1 -> 19 | F84: Ten Year Title History (Also Appendix 3)
A85: Applies to all projects, to help establish Land Cost as defined in the QAP.
A87: Yes | B87: ="Threshold Requirement "&E87&": "&F87&"." -> Threshold Requirement 20: Organizational Chart for Taxpayer / Applicant. | E87: =+E84+1 -> 20 | F87: Organizational Chart for Taxpayer / Applicant
A88: Must include ownership percentages.
A90: Yes | B90: ="Threshold Requirement "&E90&": "&F90&"." -> Threshold Requirement 21: Developer Experience. | C90: =+'QAP Reference'!A62 -> IV.C.1 | E90: =+E87+1 -> 21 | F90: Developer Experience
A91: As specified in the QAP. Evidence that the Managing General Partner or Sponsor meets the requirements of QAP V.C.1.
A93: Yes | B93: ="Threshold Requirement "&E93&": "&F93&"." -> Threshold Requirement 22: Property Management Experience (Also Appendix 45). | C93: =+'QAP Reference'!A64 -> V.C.2 | E93: =+E90+1 -> 22 | F93: Property Management Experience (Also Appendix 45)
A94: As specified in the QAP. Evidence that the property management firm meets the requirements of QAP V.C.2.
A96: =IF('Project Description'!H66="Yes","Yes","") ->  | B96: ="Threshold Requirement "&E96&": "&F96&"." -> Threshold Requirement 23: Development Team Member "Not in Good Standing". | C96: =+'QAP Reference'!A66 -> V.C.3 | E96: =+E93+1 -> 23 | F96: Development Team Member "Not in Good Standing"
A97: In this Application, you indicated that a member of the development team is "not in good standing" with the LHC. Please provide a complete discussion.
A99: Yes | B99: ="Threshold Requirement "&E99&": "&F99&"." -> Threshold Requirement 24: Local Community Notification (Also Appendix 37). | C99: =+'QAP Reference'!A67 -> III.A | E99: =+E96+1 -> 24 | F99: Local Community Notification (Also Appendix 37)
A100: As specified in the QAP, labeled as Appendix 37. (1) Proof of public notice. (2) Proof of notice to CEOs of local governing authorities. Notices must contain all information specified in the QAP.
A102: =IF(AND('Unit Mix and Rents'!AO41=0,'Unit Mix and Rents'!AP41=0),"","Yes") ->  | B102: ="Threshold Requirement "&E102&": "&F102&"." -> Threshold Requirement 25: Failure to Meet Minimum Unit Size / Bathroom Requirements. | C102: =+'QAP Reference'!A68 -> Appendix B | E102: =+E99+1 -> 25 | F102: Failure to Meet Minimum Unit Size / Bathroom Requirements
A103: In this Application, one or more unit types failed to meet the minimum requirements of the QAP; see the Unit Mix and Rents worksheet. As specified in the QAP, a waiver may be required, or a certification from the local jurisdiction, as applicable.
A105: =IF('Development Costs'!F255>1,"Yes","") ->  | B105: ="Threshold Requirement "&E105&": "&F105&"." -> Threshold Requirement 26: Failure to Meet Maximum Unit Development Cost Requirements. | C105: =+'QAP Reference'!A69 -> IV.D | E105: =+E102+1 -> 26 | F105: Failure to Meet Maximum Unit Development Cost Requirements
A106: In this Application, the total development cost exceeded the maximum TDC limitation under the QAP. The QAP allows various options and exceptions.
A108: Yes | B108: ="Threshold Requirement "&E108&": "&F108&"." -> Threshold Requirement 27: Construction and Design Standards. | C108: =+'QAP Reference'!A74 -> Appendix B | E108: =+E105+1 -> 27 | F108: Construction and Design Standards
A109: As specified in the QAP. Architect's Certifications that the proposed development complies with QAP requirements.
A111: Yes | B111: ="Threshold Requirement "&E111&": "&F111&"." -> Threshold Requirement 28: Project Amenities (Also Appendix 29). | C111: =+'QAP Reference'!A75 -> Appendix B | E111: =+E108+1 -> 28 | F111: Project Amenities (Also Appendix 29)
A112: As specified in the QAP. (1) HVAC systems, refrigerators, stoves. (2) All amenities (except laundry) available to tenants at no additional charge. (3) On-site laundry meeting QAP requirements. Some exceptions for SROs and for rehabilitation projects of twelve or fewer units.
A114: =IF('Development Costs'!J142=0,"","Yes") ->  | B114: ="Threshold Requirement "&E114&": "&F114&"." -> Threshold Requirement 29: One or More Violations of Fee and Profit Limits (Also Appendix 8). | C114: =+'QAP Reference'!A76 -> IV.D | E114: =+E111+1 -> 29 | F114: One or More Violations of Fee and Profit Limits (Also Appendix 8)
A115: See the Development Costs worksheet. Either reduce the affected amount(s), or (if you believe a waiver is justified) submit a signed letter (labeled as Appendix 8) requesting an appropriate waiver.
A117: Yes | B117: ="Threshold Requirement "&E117&": "&F117&"." -> Threshold Requirement 30: Developer Certification of Sources and Uses. | C117: =+'QAP Reference'!A34 -> IV.D.12 | E117: =+E114+1 -> 30 | F117: Developer Certification of Sources and Uses
A118: As specified in the QAP. There is no specific required format for this certification.
A120: Yes | B120: ="Threshold Requirement "&E120&": "&F120&"." -> Threshold Requirement 31: Resiliency Standards - Projects Located in Tier 1 or Tier 2 Parishes. | C120: =+'QAP Reference'!A36 -> IV.A.1 | E120: =+E117+1 -> 31 | F120: Resiliency Standards - Projects Located in Tier 1 or Tier 2 Parishes
A121: As specified in the QAP.
A123: =IF('Project Description'!H96="Yes","Yes","") ->  | B123: ="Threshold Requirement "&E123&": "&F123&"." -> Threshold Requirement 32: Resiliency Standards - Resiliency Standards (New Construction Only). | C123: =+'QAP Reference'!A37 -> IV.A.2 | E123: =+E120+1 -> 32 | F123: Resiliency Standards - Resiliency Standards (New Construction Only)
A124: As specified in the QAP.
A126: Yes | B126: ="Threshold Requirement "&E126&": "&F126&"." -> Threshold Requirement 33: Legal Description. | C126: =+'QAP Reference'!A54 -> IV.A.17 | E126: =+E123+1 -> 33 | F126: Legal Description
A127: As specified in the QAP.
A129: Yes | B129: ="Threshold Requirement "&E129&": "&F129&"." -> Threshold Requirement 34: Map. | C129: =+'QAP Reference'!A54 -> IV.A.17 | E129: =+E126+1 -> 34 | F129: Map
A130: As specified in the QAP.
A132: Yes | B132: ="Threshold Requirement "&E132&": "&F132&"." -> Threshold Requirement 35: Negative Neighoborhood Features. | C132: =+'QAP Reference'!A43 -> IV.A.8 | E132: =+E129+1 -> 35 | F132: Negative Neighoborhood Features
A133: As specified in the QAP.
A135: Yes | B135: ="Threshold Requirement "&E135&": "&F135&"." -> Threshold Requirement 36: Development Wi-Fi. | C135: =+'QAP Reference'!A58 -> IV.A.21 | E135: =+E132+1 -> 36 | F135: Development Wi-Fi
A136: As specified in the QAP.
A138: Yes | B138: ="Threshold Requirement "&E138&": "&F138&"." -> Threshold Requirement 37: LIHTC Compliance Training. | C138: =+'QAP Reference'!A57 -> IV.A.20 | E138: =+E135+1 -> 37 | F138: LIHTC Compliance Training
A139: As specified in the QAP.
A141: Yes | B141: ="Threshold Requirement "&E141&": "&F141&"." -> Threshold Requirement 38: 30% AMI and Target Population. | C141: =+'QAP Reference'!A38 -> IV.A.3 | E141: =+E138+1 -> 38 | F141: 30% AMI and Target Population
A142: As specified in the QAP.
A144: Yes | B144: ="Threshold Requirement "&E144&": "&F144&"." -> Threshold Requirement : Signed Documents. | F144: Signed Documents
A145: The following documents need to be signed by the Taxpayer (and, where noted, notarized): Financing Certification (notarized), Syndication Certification (signed by Taxpayer and Syndicator, both notarized), Taxpayer Certification (notarized), Appendix 1 (notarized), Appendix 4, Appendix 34, Appendix 35, Appendix 36 (signed by preparer), LHC-3, and LHC-4. | F145: QUESTION ON APP 35
A151: Appendices | C151: QAP References
A153: Below is a comprehensive list of Attachments. Those marked 'Yes' in column A are required for this application.
A155: Yes | B155: ="Appendix "&E155&": "&F155&"." -> Appendix 1: Ownership Information. | E155: =+E152+1 -> 1 | F155: Ownership Information
A156: The Ownership Information format is in the worksheet in this Application titled 'Appendix 1'.
A158: =A30 -> Yes | B158: ="Appendix "&E158&": "&F158&IF(J158="","."," (see Threshold Requirement "&J158&").") -> Appendix 2: Site Control (see Threshold Requirement 1). | C158: =+'QAP Reference'!A39 -> IV.A.4 | E158: =+E155+1 -> 2 | F158: Site Control | J158: =+E30 -> 1
A159: The materials required for this Appendix are described above in the Threshold Requirements section.
A161: Yes | B161: ="Appendix "&E161&": "&F161&IF(J161="","."," (see Threshold Requirement "&J161&").") -> Appendix 3: Ownership History (see Threshold Requirement 19). | C161: =+C84 -> IV.B.3 | E161: =+E158+1 -> 3 | F161: Ownership History | J161: =+E84 -> 19
A162: The materials required for this Appendix are described above in the Threshold Requirements section.
A164: Yes | B164: ="Appendix "&E164&": "&F164&IF(J164="","."," (see Threshold Requirement "&J164&").") -> Appendix 4: Zoning (see Threshold Requirement 2). | C164: =+C33 -> IV.A.5 | E164: =+E161+1 -> 4 | F164: Zoning | J164: =+E33 -> 2
A165: The materials required for this Appendix are described above in the Threshold Requirements section.
A167: =IF('Project Description'!H103="Yes","Yes","") ->  | B167: ="Appendix "&E167&": "&F167&IF(J167="","."," (see Threshold Requirement "&J167&").") -> Appendix 5: Appraisal. | C167: =+'QAP Reference'!A82 -> IV.B.6 | E167: =+E164+1 -> 5 | F167: Appraisal
A168: For rehabilitation projects, as specified in the QAP. The appraisal is to establish the fair market value of any existing property when the purchase price exceeds 500,000 or the Acquisition Costs of buildings are included in eligible basis. Appraisals must be dated within 90 days of submission of the Application.
A170: =+A69 ->  | B170: ="Appendix "&E170&": "&F170&IF(J170="","."," (see Threshold Requirement "&J170&").") -> Appendix 6: Capital Needs Assessment (see Threshold Requirement 14). | C170: =+'QAP Reference'!A51 -> IV.B.5 | E170: =+E167+1 -> 6 | F170: Capital Needs Assessment | J170: =+E69 -> 14
A171: The materials required for this Appendix are described above in the Threshold Requirements section.
A173: Yes | B173: ="Appendix "&E173&": "&F173&IF(J173="","."," (see Threshold Requirement "&J173&").") -> Appendix 7: Financing Commitments. | C173: =+'QAP Reference'!A81 -> V.H NA | E173: =+E170+1 -> 7 | F173: Financing Commitments
A174: Financing commitments must be fully executed.
A176: =+A114 ->  | B176: ="Appendix "&E176&": "&F176&IF(J176="","."," (see Threshold Requirement "&J176&").") -> Appendix 8: Waiver of Profit Limits (see Threshold Requirement 29). | C176: =+'QAP Reference'!A76 -> IV.D | E176: =+E173+1 -> 8 | F176: Waiver of Profit Limits | J176: =+E114 -> 29
A177: The materials required for this Appendix are described above in the Threshold Requirements section.
A179: Yes | B179: ="Appendix "&E179&": "&F179&IF(J179="","."," (see Threshold Requirement "&J179&").") -> Appendix 9: Development Services Agreement. | C179: =+'QAP Reference'!A77 -> IV.D | E179: =+E176+1 -> 9 | F179: Development Services Agreement
A180: The Development Services Agreement must be fully executed.
A182: =IF('Project Description'!H40="Yes","Yes","") ->  | B182: ="Appendix "&E182&": "&F182&IF(J182="","."," (see Threshold Requirement "&J182&").") -> Appendix 10: Federal Agency Letter. | C182: =+'QAP Reference'!A80 -> IV.A | E182: =+E179+1 -> 10 | F182: Federal Agency Letter
A183: A Federal Agency Provides Federal Funding or Mortgage Insurance. Please provide a signed letter from the agency advising that the agency has no objections to the reservation of tax credits / LHC Funds to the project.
A185: =IF('Project Description'!M177=1,"Yes","") ->  | B185: ="Appendix "&E185&": "&F185&IF(J185="","."," (see Threshold Requirement "&J185&").") -> Appendix 11: Non-Profit Participation. | C185: =+'QAP Reference'!A9 -> II.A | E185: =+E182+1 -> 11 | F185: Non-Profit Participation
A186: The Non-Profit Participation Information format is in the worksheet in this Application titled 'Appendix 11'. | F186: Confirm when App 11 is required; all QNP/CHDO Pool apps? Something else?
A188: =IF('Project Description'!M177=1,"Yes","") ->  | B188: ="Appendix "&E188&": "&F188&IF(J188="","."," (see Threshold Requirement "&J188&").") -> Appendix 12: Non-Profit IRS Determination Letter. | C188: =+'QAP Reference'!A9 -> II.A | E188: =+E185+1 -> 12 | F188: Non-Profit IRS Determination Letter
A189: IRS letter establishing the 501(c)(3) or 501(c)(4) status of the Qualified Non-Profit Organization.
A191: =IF('Project Description'!M177=1,"Yes","") ->  | B191: ="Appendix "&E191&": "&F191&IF(J191="","."," (see Threshold Requirement "&J191&").") -> Appendix 13: Non-Profit Counsel's Opinion. | C191: =+'QAP Reference'!A9 -> II.A | E191: =+E188+1 -> 13 | F191: Non-Profit Counsel's Opinion
A192: The format for the counsel's opinion is in the worksheet in this Application titled 'Appendix 13'.
A194: =IF('Project Description'!M177=1,"Yes","") ->  | B194: ="Appendix "&E194&": "&F194&IF(J194="","."," (see Threshold Requirement "&J194&").") -> Appendix 14: Non-Profit Articles and By-Laws. | C194: =+'QAP Reference'!A9 -> II.A | E194: =+E191+1 -> 14 | F194: Non-Profit Articles and By-Laws
A197: =IF('Project Description'!H73="Yes","Yes","") ->  | B197: ="Appendix "&E197&": "&F197&IF(J197="","."," (see Threshold Requirement "&J197&").") -> Appendix 15: CHDO Approval Letter. | C197: =+'QAP Reference'!A10 -> II.A | E197: =+E194+1 -> 15 | F197: CHDO Approval Letter
A198: =IF(A197="Yes","Please submit a letter from the HOME Participating Jurisdiction, certifying the applicant as a CHDO.","") -> 
B200: ="Appendix "&E200&": "&F200&IF(J200="","."," (see Threshold Requirement "&J200&").") -> Appendix 16: Not Applicable to This QAP. | E200: =+E197+1 -> 16 | F200: Not Applicable to This QAP | I200: RD Rural Rehab
A203: =IF('Selection Criteria'!D10=0,"","Yes") ->  | B203: ="Appendix "&E203&": "&F203&IF(J203="","."," (see Threshold Requirement "&J203&").") -> Appendix 17: Points Claimed for Geographic Diversity - Not Applicable to the 2025 QAP. | C203: =+'QAP Reference'!A90 -> Appendix A.I.A.ii | E203: =+E200+1 -> 17 | F203: Points Claimed for Geographic Diversity - Not Applicable to the 2025 QAP
A204: Please submit documentation called for in the QAP, regarding information about median incomes in (1) the census tract in which the project is located and (2) the MSA.
A206: =IF(SUM('Selection Criteria'!D13:D20)=0,"","Yes") ->  | B206: ="Appendix "&E206&": "&F206&IF(J206="","."," (see Threshold Requirement "&J206&").") -> Appendix 18: Points Claimed for Redevelopment Project. | C206: =+'QAP Reference'!B91 -> Redevelopment Project | E206: =+E203+1 -> 18 | F206: Points Claimed for Redevelopment Project
A207: Please submit documentation called for in the QAP, demonstrating that the project qualifies as a Redevelopment Project (either Distressed Property, Redevelopment Property, or Owner Occupied Property with Development Plan of Action) under Selection Criterion I.B.
A209: Yes | B209: ="Appendix "&E209&": "&F209&IF(J209="","."," (see Threshold Requirement "&J209&").") -> Appendix 19: Points Claimed in Rehabilitation & Preservation and/or New Construction. | E209: =+E206+1 -> 19 | F209: Points Claimed in Rehabilitation & Preservation and/or New Construction
A210: Please submit documentation called for in the QAP, demonstrating that the project qualifies for all points claimed under Selection Criterion I.B Rehabilitation & Preservation and/or I.C New Construction.
A212: =IF('Project Description'!H92="No","Yes","") ->  | B212: ="Appendix "&E212&": "&F212&IF(J212="","."," (see Threshold Requirement "&J212&").") -> Appendix 20: Scattered-Site Project. | C212: Glossary | E212: =+E209+1 -> 20 | F212: Scattered-Site Project
A213: =IF(A212="Yes",I213,"") ->  | I213: In this Application, you indicated that this is a multi-site project. (1) Provide documentation that the project satisfies the QAP requirements in the Glossary's definition of 'Scattered-Site Project'. (2) Include information adequate to identify each site, including (at a minimum) the street address and a location map for each site. (3) Indicate the unit mix and square footage proposed for each site. (4) Indicate the type of development activity (new construction and/or rehab) that will take place at each site. (5) Indicate the total development cost for each site. (6) Indicate whether any of the multiple sites are 'contiguous' (adjacent, or separated only by a roadway). (7) If you are claiming the 30% Basis Boost, provide documentation that 100% of the project sites qualify for the Basis Boost (see FAQ 14).
A215: =IF('Project Description'!H157="Yes","Yes","") ->  | B215: ="Appendix "&E215&": "&F215&IF(J215="","."," (see Threshold Requirement "&J215&").") -> Appendix 21: Preservation Property. | C215: Glossary | E215: =+E212+1 -> 21 | F215: Preservation Property
A216: Please submit documentation that the project meets the QAP's definition for "Preservation Property".
A218: =IF(OR('Project Description'!F808="Yes",'Project Description'!F809="Yes",'Project Description'!F810="Yes",'Project Description'!F811="Yes"),"Yes","") ->  | B218: ="Appendix "&E218&": "&F218&IF(J218="","."," (see Threshold Requirement "&J218&").") -> Appendix 22: Special Needs Project (Non-Elderly). | C218: =+'QAP Reference'!A92 -> Appendix A.II.A.i | E218: =+E215+1 -> 22 | F218: Special Needs Project (Non-Elderly)
A219: =Checklist!I219&'Project Description'!A807&"." -> Please provide (a) Description of Supportive Services tailored to each Special Needs Household (see the Supportive Services definitions in the Glossary); (b) Cost per annum of Supportive Services per Special Needs Household or written commitment from governmental or non-profit agency that Supportive Services will be provided to Project without cost; (c) Experience of Taxpayer/Owner in developing Projects servicing Special Needs Households; and (d) documentation of your commitment to set aside the number of units specified in Section 24.02. | I219: Please provide (a) Description of Supportive Services tailored to each Special Needs Household (see the Supportive Services definitions in the Glossary); (b) Cost per annum of Supportive Services per Special Needs Household or written commitment from governmental or non-profit agency that Supportive Services will be provided to Project without cost; (c) Experience of Taxpayer/Owner in developing Projects servicing Special Needs Households; and (d) documentation of your commitment to set aside the number of units specified in Section
A221: =IF('Selection Criteria'!H48+'Selection Criteria'!H49=0,"","Yes") ->  | B221: ="Appendix "&E221&": "&F221&IF(J221="","."," (see Threshold Requirement "&J221&").") -> Appendix 23: Points Claimed for Increased Unit Affordability - Not applicaliable to 2025 QAP. | C221: VII.II.B.1 | E221: =+E218+1 -> 23 | F221: Points Claimed for Increased Unit Affordability - Not applicaliable to 2025 QAP
A222: Please provide evidence of PSH, rental subsidy, or other means of maintaining the proposed level of affordability for these units.
A224: =IF('Project Description'!M218="Boost","Yes","") ->  | B224: ="Appendix "&E224&": "&F224&IF(J224="","."," (see Threshold Requirement "&J224&").") -> Appendix 24: Basis Boost. | C224: =+'QAP Reference'!A19 -> II.C | E224: =+E221+1 -> 24 | F224: Basis Boost
A225: In this Application, you indicated you were requesting the 30% Basis Boost. Please provide documentation establishing that the project's location satisfies applicable QAP requirements.
B227: ="Appendix "&E227&": "&F227&IF(J227="","."," (see Threshold Requirement "&J227&").") -> Appendix 25: Not Applicable to This QAP. | E227: =+E224+1 -> 25 | F227: Not Applicable to This QAP
A229: =IF('Project Description'!H819="Yes","Yes","") ->  | B229: ="Appendix "&E229&": "&F229&IF(J229="","."," (see Threshold Requirement "&J229&").") -> Appendix 26: Points Claimed for Additional Financial Support. | C229: =+'QAP Reference'!A98 -> Appendix A.III.D | E229: =+E227+1 -> 26 | F229: Points Claimed for Additional Financial Support
A230: Please document the amount and type of Additional Financial Support in accordance with applicable QAP Requirements.
A232: =IF('Selection Criteria'!G82=0,"","Yes") ->  | B232: ="Appendix "&E232&": "&F232&IF(J232="","."," (see Threshold Requirement "&J232&").") -> Appendix 27: Points Claimed for Green Building - N/A for 2025 QAP. | C232: =+'QAP Reference'!A102 -> Appendix A.V.B.iv | E232: =+E229+1 -> 27 | F232: Points Claimed for Green Building - N/A for 2025 QAP
A233: Please submit documentation that the project meets the Green Building definition in the Glossary.
A235: =IF('Selection Criteria'!D74=0,"","Yes") ->  | B235: ="Appendix "&E235&": "&F235&IF(J235="","."," (see Threshold Requirement "&J235&").") -> Appendix 28: Community Facilities. | C235: =+'QAP Reference'!A100 -> Appendix A.V.A | E235: =+E232+1 -> 28 | F235: Community Facilities
A236: Please submit documentation that the project includes Community Facilities as defined in the Glossary.
A238: Yes | B238: ="Appendix "&E238&": "&F238&IF(J238="","."," (see Threshold Requirement "&J238&").") -> Appendix 29: Project Amenities (see Threshold Requirement 28). | C238: =+C111 -> Appendix B | E238: =+E235+1 -> 29 | F238: Project Amenities | J238: =+E111 -> 28
A239: The materials required for this Appendix are described above in the Threshold Requirements section.
A241: =IF('Selection Criteria'!D89=0,"","Yes") ->  | B241: ="Appendix "&E241&": "&F241&IF(J241="","."," (see Threshold Requirement "&J241&").") -> Appendix 30: Points Claimed for Additional Accessible Units. | C241: =+'QAP Reference'!A104 -> Appendix A.V.D | E241: =+E238+1 -> 30 | F241: Points Claimed for Additional Accessible Units
A242: ="Please submit documentation that the units described in Sections "&F242&" and "&G242&" of this Application as being 'accessible' meet all applicable requirements under the Rehabilitation Act of 1973." -> Please submit documentation that the units described in Sections 27.06 and 27.07 of this Application as being 'accessible' meet all applicable requirements under the Rehabilitation Act of 1973. | F242: =+'Project Description'!A910 -> 27.06 | G242: =+'Project Description'!A913 -> 27.07
A244: =IF('Selection Criteria'!D68=0,"","Yes") ->  | B244: ="Appendix "&E244&": "&F244&IF(J244="","."," (see Threshold Requirement "&J244&").") -> Appendix 31: Points Claimed for On-Site Security. | C244: =+'QAP Reference'!A105 -> Appendix A.V.E | E244: =+E241+1 -> 31 | F244: Points Claimed for On-Site Security
A245: Please submit documentation that the project meets the On-Site Security definition in the Glossary.
B247: ="Appendix "&E247&": "&F247&IF(J247="","."," (see Threshold Requirement "&J247&").") -> Appendix 32: Not Applicable to This QAP. | E247: =+E244+1 -> 32 | F247: Not Applicable to This QAP
B249: ="Appendix "&E249&": "&F249&IF(J249="","."," (see Threshold Requirement "&J249&").") -> Appendix 33: Not Applicable to This QAP. | E249: =+E247+1 -> 33 | F249: Not Applicable to This QAP | I249: Was documentation of TDC at least 15% below max
A251: Yes | B251: ="Appendix "&E251&": "&F251&IF(J251="","."," (see Threshold Requirement "&J251&").") -> Appendix 34: Certification Regarding Debarment. | E251: =+E249+1 -> 34 | F251: Certification Regarding Debarment
A252: The format is in the worksheet in this Application titled 'Appendix 34'. The certification must be signed.
B254: ="Appendix "&E254&": "&F254&IF(J254="","."," (see Threshold Requirement "&J254&").") -> Appendix 35: Not Applicable to This QAP. | E254: =+E251+1 -> 35 | F254: Not Applicable to This QAP | I254: Was 'Matching Certification'
A256: =+A39 ->  | B256: ="Appendix "&E256&": "&F256&IF(J256="","."," (see Threshold Requirement "&J256&").") -> Appendix 36: Environmental Restrictions Checklist (see Threshold Requirement 4). | C256: =+C39 -> IV.A.7 | E256: =+E254+1 -> 36 | F256: Environmental Restrictions Checklist | J256: =+E39 -> 4
A257: The materials required for this Appendix are described above in the Threshold Requirements section.
A259: Yes | B259: ="Appendix "&E259&": "&F259&IF(J259="","."," (see Threshold Requirement "&J259&").") -> Appendix 37: Local Community Notification (see Threshold Requirement 24). | C259: =+C99 -> III.A | E259: =+E256+1 -> 37 | F259: Local Community Notification | J259: =+E99 -> 24
A260: The materials required for this Appendix are described above in the Threshold Requirements section.
A262: Yes | B262: ="Appendix "&E262&": "&F262&IF(J262="","."," (see Threshold Requirement "&J262&").") -> Appendix 38: Infrastructure (see Threshold Requirement 3). | C262: =+C36 -> IV.A.6 | E262: =+E259+1 -> 38 | F262: Infrastructure | J262: =+E36 -> 3
A263: The materials required for this Appendix are described above in the Threshold Requirements section.
A265: Yes | B265: ="Appendix "&E265&": "&F265&IF(J265="","."," (see Threshold Requirement "&J265&").") -> Appendix 39: Tenant Referrals Agreement (see Threshold Requirement 5). | C265: =+C42 -> IV.A.9 | E265: =+E262+1 -> 39 | F265: Tenant Referrals Agreement | J265: =+E42 -> 5
A266: The materials required for this Appendix are described above in the Threshold Requirements section.
A268: Yes | B268: ="Appendix "&E268&": "&F268&IF(J268="","."," (see Threshold Requirement "&J268&").") -> Appendix 40: Minimum Internet / Cable (see Threshold Requirement 6). | C268: =+C45 -> IV.A.10 | E268: =+E265+1 -> 40 | F268: Minimum Internet / Cable | J268: =+E45 -> 6
A269: The materials required for this Appendix are described above in the Threshold Requirements section.
A271: Yes | B271: ="Appendix "&E271&": "&F271&IF(J271="","."," (see Threshold Requirement "&J271&").") -> Appendix 41: Energy Efficiency Requirements (see Threshold Requirement 8). | C271: =+C51 -> IV.A.11 | E271: =+E268+1 -> 41 | F271: =+F51 -> Energy Efficiency Requirements | J271: =+E51 -> 8
A272: The materials required for this Appendix are described above in the Threshold Requirements section.
A274: Yes | B274: ="Appendix "&E274&": "&F274&IF(J274="","."," (see Threshold Requirement "&J274&").") -> Appendix 42: Design Features (see Threshold Requirement 9). | C274: =+C54 -> IV.A.12 | E274: =+E271+1 -> 42 | F274: =+F54 -> Design Features | J274: =+E54 -> 9
A275: The materials required for this Appendix are described above in the Threshold Requirements section.
B277: ="Appendix "&E277&": "&F277&IF(J277="","."," (see Threshold Requirement "&J277&").") -> Appendix 43: Not Applicable to This QAP. | E277: =+E274+1 -> 43 | F277: Not Applicable to This QAP | I277: Was documentation related to BFE; now obsolete
A279: =+A72 ->  | B279: ="Appendix "&E279&": "&F279&IF(J279="","."," (see Threshold Requirement "&J279&").") -> Appendix 44: Historic Rehabilitation Projects (see Threshold Requirement 15). | C279: =+C72 -> IV.A.15 | E279: =+E277+1 -> 44 | F279: =+F72 -> Historic Rehabilitation Projects | J279: =+E72 -> 15
A280: The materials required for this Appendix are described above in the Threshold Requirements section.
A282: Yes | B282: ="Appendix "&E282&": "&F282&IF(J282="","."," (see Threshold Requirement "&J282&").") -> Appendix 45: Property Management Experience (Also Appendix 45) (see Threshold Requirement 22). | C282: =+C93 -> V.C.2 | E282: =+E279+1 -> 45 | F282: =+F93 -> Property Management Experience (Also Appendix 45) | J282: =+E93 -> 22
A283: The materials required for this Appendix are described above in the Threshold Requirements section.
B285: ="Appendix "&E285&": "&F285&IF(J285="","."," (see Threshold Requirement "&J285&").") -> Appendix 46: Not Applicable to This QAP. | E285: =+E282+1 -> 46 | F285: Not Applicable to This QAP
B287: ="Appendix "&E287&": "&F287&IF(J287="","."," (see Threshold Requirement "&J287&").") -> Appendix 47: Not Applicable to This QAP. | E287: =+E285+1 -> 47 | F287: Not Applicable to This QAP
B289: ="Appendix "&E289&": "&F289&IF(J289="","."," (see Threshold Requirement "&J289&").") -> Appendix 48: Not Applicable to This QAP. | E289: =+E287+1 -> 48 | F289: Not Applicable to This QAP
B291: ="Appendix "&E291&": "&F291&IF(J291="","."," (see Threshold Requirement "&J291&").") -> Appendix 49: Not Applicable to This QAP. | E291: =+E289+1 -> 49 | F291: Not Applicable to This QAP
B293: ="Appendix "&E293&": "&F293&IF(J293="","."," (see Threshold Requirement "&J293&").") -> Appendix 50: Not Applicable to This QAP. | E293: =+E291+1 -> 50 | F293: Not Applicable to This QAP
B295: ="Appendix "&E295&": "&F295&IF(J295="","."," (see Threshold Requirement "&J295&").") -> Appendix 51: Not Applicable to This QAP. | E295: =+E293+1 -> 51 | F295: Not Applicable to This QAP
A297: Yes | B297: ="Appendix "&E297&": "&F297&IF(J297="","."," (see Threshold Requirement "&J297&").") -> Appendix 52: Other Project Information. | E297: =+E295+1 -> 52 | F297: Other Project Information
A298: This Appendix includes all needed information not covered elsewhere. See the next section of the Checklist.
A300: Yes | B300: ="Appendix "&E300&": "&F300&IF(J300="","."," (see Threshold Requirement "&J300&").") -> Appendix 53: Miscellaneous Waivers. | E300: =+E297+1 -> 53 | F300: Miscellaneous Waivers
A301: This Appendix includes the following types of waivers not covered elsewhere: (1) Waiver allowing a bond-financed project to exceed the maximum TDC limits; (2) Waivers for historic rehabilitation projects in accordance with QAP V.A.11; (3) Waiver of the ten year placed in service requirement; and (4) Waivers of minimum design standard requirements. If no waiver is needed, include Appendix 53 indicating Not Applicable.
A303: Yes | B303: ="Appendix "&E303&": "&F303&IF(J303="","."," (see Threshold Requirement "&J303&").") -> Appendix LHC-2: CEO Notification Letter Information. | C303: =+'QAP Reference'!A67 -> III.A | E303: LHC-2 | F303: CEO Notification Letter Information
A304: The format is in the worksheet titled 'LHC-2 CEO Notification'.
A306: Yes | B306: ="Appendix "&E306&": "&F306&IF(J306="","."," (see Threshold Requirement "&J306&").") -> Appendix LHC-3: Developer Experience Exhibit. | C306: =+C90 -> IV.C.1 | E306: LHC-3 | F306: Developer Experience Exhibit
A307: The format is in the worksheet titled 'LHC-3 Developer Experience'. This document must be signed.
A309: Yes | B309: ="Appendix "&E309&": "&F309&IF(J309="","."," (see Threshold Requirement "&J309&").") -> Appendix LHC-4: Management Experience Exhibit. | C309: =+C282 -> V.C.2 | E309: LHC-4 | F309: Management Experience Exhibit
A310: The format is in the worksheet titled 'LHC-3 Management Experience'. This document must be signed.
... 82 more rows

Sheet Serious Problems
A3: =+Instructions!A3 -> 2025 QAP Underwriting Application v1.1
A4: =TRIM('Project Description'!E84)&" ("&TRIM('Project Description'!E86)&" LA), "&'Project Description'!E50 -> ( LA),
A6: Summary of 'Serious Problem' Flags
A8: Worksheet | B8: Row | C8: 'Serious Problem' Message
A10: Project Description | B10: =IF(L10<>0,"Multi","") -> Multi | C10: =IF(E10=0,"",E10) -> Error--There are 207 areas that contain 'MISSING', please review and enter a value. | E10: =IF(B10="Multi","Error--There are " &COUNTIF('Project Description'!A1:J2036,"Missing")& " areas that contain 'MISSING', please review and enter a value.","") -> Error--There are 207 areas that contain 'MISSING', please review and enter a value. | L10: =COUNTIF('Project Description'!A1:J2036,"Missing") -> 207
A11: Project Description | B11: =ROW('Project Description'!B24) -> 24 | C11: =IF(E11=0,"",E11) ->  | E11: ='Project Description'!B24 -> 
A12: Project Description | B12: =ROW('Project Description'!B13) -> 13 | E12: ='Project Description'!B13 -> 
A13: Project Description | B13: 115 | C13: =IF(E13=0,"",E13) ->  | E13: =IF('Project Description'!H120="x","Error--REQUIRED: Census Tract information",IF('Project Description'!H120="","Error--the QAP the QAP requires Census Tract information","")) -> 
A14: Project Description | B14: 118 | C14: =IF(E14=0,"",E14) ->  | E14: =IF('Project Description'!H123=0,"Error--REQUIRED: Median Income for Primary Census Tract",IF('Project Description'!H123="","Error--the QAP requires Median Income for Primary Census Tract","")) -> 
A15: Project Description | B15: 148 | C15: =IF(E15=0,"",E15) -> 
A16: Project Description | B16: =ROW('Project Description'!B155) -> 155 | E16: ='Project Description'!B155 -> 
A17: Project Description | B17: =ROW('Project Description'!B184) -> 184 | E17: ='Project Description'!B184 -> 
A18: =+A17 -> Project Description | B18: =ROW('Project Description'!B190) -> 190 | E18: ='Project Description'!B190 -> 
A19: Project Description | B19: =ROW('Project Description'!B196) -> 196 | E19: ='Project Description'!B196 -> 
A20: Project Description | B20: =ROW('Project Description'!B205) -> 205 | E20: ='Project Description'!B205 -> 
A21: Project Description | B21: =ROW('Project Description'!B219) -> 219 | E21: ='Project Description'!B222 -> 
A22: Project Description | B22: =ROW('Project Description'!B433) -> 433 | C22: =IF(E22=0,"",E22) ->  | E22: ='Project Description'!B433 -> 
A23: =+A21 -> Project Description | B23: =ROW('Project Description'!B635) -> 635 | E23: =+'Project Description'!B635 -> 
A24: =+A22 -> Project Description | B24: =ROW('Project Description'!A693) -> 693 | E24: =+'Project Description'!B693 -> 
A25: Project Description | B25: =ROW('Project Description'!A703) -> 703 | E25: =+'Project Description'!B703 -> 
A26: =+A24 -> Project Description | B26: =ROW('Project Description'!B821) -> 821 | E26: ='Project Description'!B821 -> 
A27: =+A25 -> Project Description | B27: =ROW('Project Description'!B873) -> 873 | E27: ='Project Description'!B873 -> 
A28: =+A26 -> Project Description | B28: =ROW('Project Description'!B911) -> 911 | E28: ='Project Description'!B911 -> 
A29: Project Description | B29: =ROW('Project Description'!B914) -> 914 | E29: ='Project Description'!B914 -> 
A30: Project Description | B30: =ROW('Project Description'!B958) -> 958 | E30: ='Project Description'!B958 -> 
A31: Project Description | B31: =ROW('Project Description'!B960) -> 960 | E31: ='Project Description'!B960 -> 
A32: Project Description | B32: =ROW('Project Description'!B962) -> 962 | E32: ='Project Description'!B962 -> 
A33: Project Description | B33: =ROW('Project Description'!B964) -> 964 | E33: ='Project Description'!B964 -> 
A34: Project Description | B34: =ROW('Project Description'!B968) -> 968 | E34: ='Project Description'!B968 -> 
A35: Project Description | B35: =ROW('Project Description'!B986) -> 986 | E35: ='Project Description'!B986 -> 
A36: Project Description | B36: =ROW('Project Description'!B1015) -> 1015 | E36: ='Project Description'!C1015 -> 
A37: =+A36 -> Project Description | B37: =ROW('Project Description'!A1025) -> 1025 | E37: ='Project Description'!B1025 -> 
A38: Unit Mix and Rents | B38: =ROW('Unit Mix and Rents'!A49) -> 49 | E38: =+'Unit Mix and Rents'!O49 -> 
A39: Unit Mix and Rents | B39: =ROW('Unit Mix and Rents'!A58) -> 58 | C39: 0.0% of units are affordable at or below 30% AMI; QAP requires at least 5% | E39: =+'Unit Mix and Rents'!B58 -> 0.0% of units are affordable at or below 30% AMI; QAP requires at least 5%
A40: Development Costs | B40: =ROW('Development Costs'!A60) -> 60 | E40: =+'Development Costs'!E60 -> 
A41: Development Costs | B41: =ROW('Development Costs'!A99) -> 99 | E41: =+'Development Costs'!E99 -> 
A42: Development Costs | B42: =ROW('Development Costs'!A257) -> 257 | E42: =+'Development Costs'!B257 -> 
A43: =+A41 -> Development Costs | B43: =ROW('Development Costs'!A379) -> 379 | E43: =+'Development Costs'!B379 -> 
A44: =+A43 -> Development Costs | B44: =ROW('Development Costs'!A380) -> 380 | E44: =+'Development Costs'!B380 -> 
A45: Development Costs | B45: =ROW('Development Costs'!A381) -> 381 | E45: =+'Development Costs'!B381 -> 
A46: Development Costs | B46: =ROW('Development Costs'!A382) -> 382 | E46: =+'Development Costs'!B382 -> 
A47: Development Costs | B47: =ROW('Development Costs'!A383) -> 383 | E47: =+'Development Costs'!B383 -> 
A48: Development Costs | B48: =ROW('Development Costs'!A384) -> 384 | E48: =+'Development Costs'!B384 -> 
A49: Development Costs | B49: =ROW('Development Costs'!A385) -> 385 | E49: =+'Development Costs'!B385 -> 
A50: Development Costs | B50: =ROW('Development Costs'!A153) -> 153 | E50: =+'Development Costs'!B153 -> 
A51: Basis Calculation | B51: =ROW('Basis Calculation'!A58) -> 58 | E51: =+'Basis Calculation'!B58 -> 
A52: =+A51 -> Basis Calculation | B52: =ROW('Basis Calculation'!A59) -> 59 | E52: =+'Basis Calculation'!B59 -> 
A53: =+A52 -> Basis Calculation | B53: =ROW('Basis Calculation'!A60) -> 60 | E53: =+'Basis Calculation'!B60 -> 
A54: =+A53 -> Basis Calculation | B54: =ROW('Basis Calculation'!A61) -> 61 | E54: =+'Basis Calculation'!B61 -> 
A55: =+A54 -> Basis Calculation | B55: =ROW('Basis Calculation'!A62) -> 62 | E55: =+'Basis Calculation'!B62 -> 
A56: =+A55 -> Basis Calculation | B56: =ROW('Basis Calculation'!A63) -> 63 | E56: =+'Basis Calculation'!B63 -> 
A57: Syndication | B57: =ROW(Syndication!A33) -> 33 | E57: =+Syndication!D33 -> 

Sheet Reviewer Follow-Ups (hidden)
A3: =+Instructions!A3 -> 2025 QAP Underwriting Application v1.1
A4: =TRIM('Project Description'!E84)&" ("&TRIM('Project Description'!E86)&" LA), "&'Project Description'!E50 -> ( LA),
A6: Items for LHC Reviewer Follow-Up
A8: Worksheet | B8: Row | C8: Follow-Up Item
A10: Project Description | B10: =ROW('Project Description'!A64) -> 64 | C10: =IF(E10="Yes",F10,"") ->  | E10: =IF('Project Description'!H64="Yes","Yes","") ->  | F10: There is an IOI between the Developer and the Builder.
A11: =+A10 -> Project Description | B11: =ROW('Project Description'!A66) -> 66 | C11: =IF(E11="Yes",F11,"") ->  | E11: =IF('Project Description'!H66="Yes","Yes","") ->  | F11: There is a potential 'not in good standing' issue.
A12: Project Description | B12: =ROW('Project Description'!A158) -> 158 | C12: =IF(E12="Yes",F12,"") ->  | E12: =IF(AND('Project Description'!H157="Yes",'Project Description'!H95="New Construction"),"Yes","") ->  | F12: The applicant says this is a Preservation Property but it's a new construction project.
A13: Project Description | B13: =ROW('Project Description'!A179) -> 179 | E13: =IF('Project Description'!B179="","","Yes") ->  | F13: ="General pool selected; project appears eligible for "&'Project Description'!M178 -> General pool selected; project appears eligible for UrbanRehab
A14: =+A12 -> Project Description | B14: =ROW('Project Description'!A532) -> 532 | E14: =IF('Project Description'!B532="","","Yes") ->  | F14: =+'Project Description'!B532 -> 
A15: Project Description | B15: =ROW('Project Description'!A533) -> 533 | E15: =IF('Project Description'!B533="","","Yes") ->  | F15: =+'Project Description'!B533 -> 
A16: Project Description | B16: =ROW('Project Description'!A539) -> 539 | E16: =IF('Project Description'!H539="Yes","Yes","") ->  | F16: Equipment owned by the Developer or Builder will be used.
A17: Project Description | B17: =ROW('Project Description'!A559) -> 559 | E17: =IF('Project Description'!H559="Yes","Yes","") ->  | F17: The TDC includes IOI costs other than the developer fee.
A18: Project Description | B18: =ROW('Project Description'!A578) -> 578 | E18: =IF('Project Description'!H578=0,"","Yes") ->  | F18: ="See Section "&G18&" for description of community facilities." -> See Section 20.06 for description of community facilities. | G18: =+'Project Description'!L576 -> 20.06
A19: Project Description | B19: =ROW('Project Description'!A585) -> 585 | E19: =IF('Project Description'!H585="Yes","Yes","") ->  | F19: ="See Section "&G19&" for description of the proposed Community Service Facility." -> See Section 20.07 for description of the proposed Community Service Facility. | G19: =+'Project Description'!L585 -> 20.07
A20: Project Description | B20: =ROW('Project Description'!A586) -> 586 | E20: =IF('Project Description'!H706='Project Description'!H707,"","Yes") ->  | F20: ="See Section "&G20&": Applicant used an AMI that differs from the LHC database." -> See Section 23.02: Applicant used an AMI that differs from the LHC database. | G20: =+'Project Description'!L705 -> 23.02
A21: Project Description | B21: =ROW('Project Description'!A634) -> 634 | E21: =IF('Project Description'!M633='Project Description'!Q632,"","Yes") ->  | F21: =+'Project Description'!B634 -> Set-Aside Selection Not Yet Made
A22: =+A20 -> Project Description | B22: =ROW('Project Description'!A725) -> 725 | E22: =IF(OR('Project Description'!B725="",'Project Description'!B725=0),"","Yes") ->  | F22: ="See Section "&G22&": Applicant disagrees with calculated gross rents." -> See Section 23.03: Applicant disagrees with calculated gross rents. | G22: =+'Project Description'!L711 -> 23.03
A23: Project Description | B23: =ROW('Project Description'!A767) -> 767 | F23: ="See Section "&G23&": Applicant disagrees with calculated net rents (after subtracting UAs)." -> See Section 23.07: Applicant disagrees with calculated net rents (after subtracting UAs). | G23: =+'Project Description'!L767 -> 23.07
A24: Project Description | B24: =ROW('Project Description'!A797) -> 797 | E24: =IF(OR('Project Description'!B798="",'Project Description'!B798=0),"","Yes") ->  | F24: ="See Section "&G24&": One or more FMRs disagrees with LHC's database." -> See Section 23.11: One or more FMRs disagrees with LHC's database. | G24: =+'Project Description'!A797 -> 23.11
A25: Project Description | B25: =ROW('Project Description'!A924) -> 924 | E25: =IF(OR('Project Description'!B924="",'Project Description'!B924=0),"","Yes") ->  | F25: ="See Section "&G25&": On-Site Security points are claimed but there is no security expense." -> See Section 27.08: On-Site Security points are claimed but there is no security expense. | G25: =+'Project Description'!A916 -> 27.08
A26: Project Description | B26: =ROW('Project Description'!A953) -> 953 | E26: =IF('Project Description'!H952="Yes","Yes","") ->  | F26: ="See Section "&G26&": Soft market requiring above-LHC-standard vacancy rate." -> See Section 28: Soft market requiring above-LHC-standard vacancy rate. | G26: =+'Project Description'!L950 -> 28
A27: Project Description | B27: =ROW('Project Description'!A971) -> 971 | C27: =IF(E27="Yes","The applicant entered a non-zero trending rate for the ADRR","") ->  | E27: =IF('Project Description'!H971=0,"","Yes") -> 
A28: =+A26 -> Project Description | B28: =ROW('Project Description'!A977) -> 977 | E28: =IF('Project Description'!H977="Yes","Yes","") ->  | F28: ="See Section "&G28&": HUD or RD regulates the annual reserve deposit." -> See Section 28: HUD or RD regulates the annual reserve deposit. | G28: =+'Project Description'!L950 -> 28
A29: Project Description | B29: =ROW('Project Description'!A982) -> 982 | C29: =IF(E29="Yes","There are non-LHC requirements governing the Replacement Reserve","") ->  | E29: =IF('Project Description'!H982="Yes","Yes","") -> 
A30: =+A26 -> Project Description | B30: =ROW('Project Description'!A1048) -> 1048 | E30: =IF(OR('Project Description'!B1048="",'Project Description'!B1048=0),"","Yes") ->  | F30: ="See Section "&G30&": One or more LHC fees does not match the calculated amount." -> See Section 32: One or more LHC fees does not match the calculated amount. | G30: =+'Project Description'!L1027 -> 32
A31: Development Costs | B31: =ROW('Development Costs'!A160) -> 160 | E31: =IF(SUM('Development Costs'!C160:C163)=0,"","Yes") ->  | F31: ="See Section "&G31&": The applicant made custom adjustments to Acquisition Basis." -> See Section 38.01: The applicant made custom adjustments to Acquisition Basis. | G31: =+'Development Costs'!A157 -> 38.01
A32: Development Costs | B32: =ROW('Development Costs'!A185) -> 185 | E32: =IF(SUM('Development Costs'!C185:C191)=0,"","Yes") ->  | F32: ="See Section "&G32&": The applicant made custom adjustments to Construction Basis." -> See Section 38.02: The applicant made custom adjustments to Construction Basis. | G32: =+'Development Costs'!A168 -> 38.02
A33: Revenues and Expenses | B33: =ROW('Revenues and Expenses'!A53) -> 53 | E33: =IF(OR('Revenues and Expenses'!B91="",'Revenues and Expenses'!B91=0),"","Yes") ->  | F33: ="See Section "&G33&": This is an elevator building with no elevator maintenance expense budgeted." -> See Section 44.22: This is an elevator building with no elevator maintenance expense budgeted. | G33: =+'Revenues and Expenses'!A53 -> 44.22
A34: App 2 Site Control | B34: 41 | E34: =IF('App 2 Site Control'!I43<>0,"Yes","") ->  | F34: Appendix 2 indicates there is ground rent; check Revenues and Expenses for annual ground rent, and check Uses of Funds for prepaid ground rent.
C51: =IF(E51=0,"",E51) -> 

Sheet Development Team
A3: =+Instructions!A3 -> 2025 QAP Underwriting Application v1.1
A4: =TRIM('Project Description'!E84)&" ("&TRIM('Project Description'!E86)&" LA), "&'Project Description'!E50 -> ( LA),
A6: Development Team
B8: Developer: | C8: =+'Project Description'!E50 -> 0
C9: =+'Project Description'!E51 -> 0
C10: =+'Project Description'!E52 -> 0
C12: Contact: | D12: =+'Project Description'!E39 -> 0 | E12: Phone: | F12: =+'Project Description'!E40 -> 0
C14: E-Mail Address: | D14: =+'Project Description'!E41 -> 0
B16: Taxpayer: | C16: =+'Project Description'!E36 -> 0
C17: =+'Project Description'!E37 -> 0
C18: =+'Project Description'!E38 -> 0
C20: Contact: | D20: =+'Project Description'!E39 -> 0 | E20: Phone: | F20: =+'Project Description'!E40 -> 0
C22: E-Mail Address: | D22: =+'Project Description'!E41 -> 0
B24: =+'Project Description'!E46 -> 0 | C24: =+'Project Description'!E45 -> 0
B25: =+'Project Description'!E44 -> 0 | C25: =+C17 -> 0
C26: =+C18 -> 0
C28: Contact: | D28: =+D20 -> 0 | E28: Phone: | F28: =+F20 -> 0
C30: E-Mail Address: | D30: =+D22 -> 0
B32: Sponsor:
C36: Contact: | E36: Phone:
C38: E-Mail Address:
B40: Consultant:
C44: Contact: | E44: Phone:
C46: E-Mail Address:
B48: Fiscal Member/Partner:
C52: Contact: | E52: Phone:
B54: Syndicator: | C54: =IF(Syndication!E12=0,"",Syndication!E12) -> 
C55: =IF(Syndication!E13=0,"",Syndication!E13) -> 
C56: =IF(Syndication!E14=0,"",Syndication!E14) -> 
C58: Contact: | D58: =IF(Syndication!F16=0,"",Syndication!F16) ->  | E58: Phone: | F58: =IF(Syndication!H16=0,"",Syndication!H16) -> 
B60: Attorney:
C64: Contact: | E64: Phone:
B67: Accountant:
B68: (Independent 3rd Party)
C71: Contact: | E71: Phone:
B73: Construction Mortgage
B74: Lender:
C77: Contact: | E77: Phone:
B80: Permanent Mortgage
B81: Lender:
C84: Contact: | E84: Phone:
B86: Management Co.:
C90: Contact: | E90: Phone:
B92: Architect:
C96: Contact: | E96: Phone:
B98: Builder / Contractor:
C102: Contact: | E102: Phone:

Sheet Syndication
A3: =+Instructions!A3 -> 2025 QAP Underwriting Application v1.1
A4: =TRIM('Project Description'!E84)&" ("&TRIM('Project Description'!E86)&" LA), "&'Project Description'!E50 -> ( LA),
A6: Syndication Information and Certification
B8: I. | C8: Syndication Commitment: A Commitment attached hereto as Exhibit A has been received from the Syndicator (named below) to purchase an ownership interest in the Taxpayer/Applicant for the total dollar amount specified below (the "Syndication Proceeds") in the percentage specified below in connection with the Low-Income Housing Credits specified in the Commitment:
C10: A. | D10: Syndicator Information (see Glossary for definition of 'Syndicator')
D12: Name:
D13: Address:
D16: Telephone:
D17: Contact:
C19: B. | D19: Percentage Interest in Taxpayer to be Acquired by Syndicator:
C21: C. | D21: % Interest in Taxpayer to be Retained by Sponsor/Developer: | J21: =1-J19 -> 1
C23: D. | D23: Amount of Tax Credits Specified in Commitment: | J23: =+'Project Description'!H204 -> 0
C25: E. | D25: Syndication Proceeds Generated by Syndicator (Prior to Subtraction
D26: of Syndication Costs): | M26: =IF(J23=0,0,+J26/(J23*J19*10)) -> 0 | N26: calculated syndication price
C28: F. | D28: Gross Equity to be invested in Taxpayer by Syndicator: | J28: =+'Project Description'!E432 -> 0
C30: G. | D30: Syndication Costs Paid by Syndicator (E-F): | J30: =J26-J28 -> 0
C32: H. | D32: Syndication Costs Paid by Developer (VI.10): | J32: =+J135 -> 0 | M32: =+'Development Costs'!D106 -> 0 | N32: from Development Costs worksheet
D33: =IF(J32='Development Costs'!D106,"","Doesn't Match Total Syndication Costs ("&TEXT('Development Costs'!D106,"#,##0")&") from the Dev. Costs worksheet.") -> 
C35: I. | D35: Total Syndication Costs (G+H): | J35: =+J30+J32 -> 0
C37: J. | D37: Total Syndication Costs as a % of Syndication Proceeds (I/E):* | J37: =IF(J26>0, J35/J26, 0) -> 0
C39: K. | D39: Total Syndication Proceeds Available (F-H): | J39: =+J28-J32 -> 0
C40: ________________
C41: * If syndication is public, may not exceed 15%. If syndication is private, may not exceed 10%.
B43: II. | C43: Disbursement of Gross Equity by Installment: The Gross Equity will be invested in the Taxpayer by the Syndicator in the following installments:
C45: Event | F45: Date | H45: Percentage | J45: Installment
B47: 1) | H47: 0 | J47: 0
B48: 2) | H48: 0 | J48: 0
B49: 3) | H49: 0 | J49: 0
B50: 4) | H50: 0 | J50: 0
B51: 5) | H51: 0 | J51: 0
B52: 6) | H52: 0 | J52: 0
B53: 7) | H53: 0 | J53: 0
B54: 8) | H54: 0 | J54: 0
B55: 9) | H55: 0 | J55: 0
B56: 10) | H56: 0 | J56: 0
B57: 11) | H57: 0 | J57: 0
B58: 12) | H58: 0 | J58: 0
B59: 13) | H59: 0 | J59: 0
B60: 14) | H60: 0 | J60: 0
B61: 15) | H61: 0 | J61: 0
F62: =IF(ROUND(SUM(J47:J61),-1)<>ROUND(J28,-1), "WARNING - Does not agree with Line F above.", "") -> 
B63: III. | C63: Sources of Interim Financing From Commercial Lenders: The following constitutes the source of Bridge Loan Costs and/or other Interim Financing Devices from commercial lenders:
C65: A. | D65: Interim Funds from Commercial Lender #1:
D67: Name:
D68: Address:
D71: Telephone:
D72: Contact:
D74: Loan Amount: | J74: 0
D75: Interest Rate: | F75: 0 | G75: per annum
D76: Estimate Total Interest Payments: | J76: 0
D77: Security for Interim Funds:
C79: B. | D79: Interim Funds from Commercial Lender #2:
D81: Name:
D82: Address:
D85: Telephone:
D86: Contact:
D88: Loan Amount: | J88: 0
D89: Interest Rate: | F89: 0 | G89: per annum
D90: Estimate Total Interest Payments: | J90: 0
D91: Security for Interim Funds:
B93: IV. | C93: Identity of Interest Information With Respect to Commercial Loans: The terms of the interim financing specified in Section III above were negotiated in good faith and on an "arm's-length" basis. There is no identity-of-interest between the entities listed in the Sources of Interim Funds and any partners or investors in the Taxpayer/Applicant.
B95: V. | C95: Interim Funds from Syndicator and Syndication Costs:
C97: A. | D97: The Syndicator will provide interim financing of | J97: 0
D98: at an interest rate of | J98: 0
D99: per annum and expects to receive | J99: 0
D100: of interest on funds loaned to the Taxpayer by the Syndicator.
C102: B. | D102: The following amounts represent syndication expenses to be incurred and paid by the
D103: Syndicator in obtaining cash to invest in the Taxpayer:
C105: Items | G105: Payee* | J105: Amounts*
B107: 1 | C107: Accountant's Fee Paid by Syndicator | G107: 0 | J107: 0
B108: 2 | C108: Syndicator's Fee | G108: 0 | J108: 0
B109: 3 | C109: Attorney's Fee Paid by Syndicator | G109: 0 | J109: 0
B110: 4 | C110: Broker Fees Paid by Syndicator | G110: 0 | J110: 0
B111: 5 | C111: Organizational Expense of Syndication | G111: 0 | J111: 0
B112: 6 | C112: Other: | D112: 0 | G112: 0 | J112: 0
B113: 7 | C113: Other: | D113: 0 | G113: 0 | J113: 0
B114: 8 | C114: Other: | D114: 0 | G114: 0 | J114: 0
B115: 9 | C115: Other: | D115: 0 | G115: 0 | J115: 0
B116: 10 | C116: Other: | D116: 0 | G116: 0 | J116: 0
C117: TOTAL: | F117: =IF(J117=J30, "", "This doesn't match Section I, Line G!") ->  | J117: =+SUM(J107:J116) -> 0 | M117: =+J30 -> 0 | N117: Syndication Costs paid by Syndicator (Line I.G above)
B118: _____________
B119: * All amounts must relate solely to the Syndication and must be amounts specifically approved and paid by the Syndicator. No amounts should be shown without specifying the name of a payee and no amounts shown may be paid by the Taxpayer or Developer.
B121: VI. | C121: Syndication Costs Paid by Taxpayer or Developer: The following amounts represent syndication expenses to be incurred and paid by the Taxpayer or Developer in obtaining cash to invest in the Taxpayer:
C123: Items | G123: Payee* | J123: Amounts*
B125: 1 | C125: Accountant's Fee Paid by Taxpayer | G125: 0 | J125: 0
B126: 2 | C126: Taxpayer's Fee | G126: 0 | J126: 0
B127: 3 | C127: Attorney's Fee Paid by Taxpayer | G127: 0 | J127: 0
B128: 4 | C128: Broker Fees Paid by Taxpayer | G128: 0 | J128: 0
B129: 5 | C129: Organizational Expense of Syndication | G129: 0 | J129: 0
B130: 6 | C130: Other: | D130: 0 | G130: 0 | J130: 0
B131: 7 | C131: Other: | D131: 0 | G131: 0 | J131: 0
B132: 8 | C132: Other: | D132: 0 | G132: 0 | J132: 0
B133: 9 | C133: Other: | D133: 0 | G133: 0 | J133: 0
B134: 10 | C134: Other: | D134: 0 | G134: 0 | J134: 0
C135: TOTAL: | F135: =IF(J135=J32, "", "This doesn't match Section I, Line H!") ->  | J135: =+SUM(J125:J134) -> 0
B136: _____________
B137: * All amounts must relate solely to the Syndication and must be amounts specifically approved and paid by the Syndicator. No amounts should be shown without specifying the name of a payee and no amounts shown may be paid by the Taxpayer or Developer.
B139: VII. | C139: Net Equity:
C141: The estimated Placed in Service Date is | J141: =+M141 -> 00:00:00 | M141: =+'Project Description'!H274 -> 00:00:00 | N141: Placed In Service Date for Last Building | R141: ="See Section "&TEXT('Project Description'!A274,"0.00") -> See Section 16.30
C142: The Net Equity* as of the Estimated Placed in Service Date is | J142: =+J150 -> 0
C144: * Compute Net Equity by (i) compounding Installments from Part II above in advance of the Placed In Service Date by the Compound Factor, (ii) discounting Installments following the Placed In Service Date by the Discount Factor, (iii) adding the sum total of adjusted Installments from (i) and (ii). The Compound Factor and the Discount Factor for purposes of the Application will be determined as of January 1st of the year in which the Application is submitted and will be based on the yield as of such date on the six (6) month T-Bill plus two (2) percent.
C146: Please evidence this calculation as follows:
C148: (i) | D148: Compounding Installments prior to Placed In Service Date: | J148: 0
C149: (ii) | D149: Discounting Installments Following Placed In Service Date: | J149: 0
C150: (iii) | D150: Net Equity [Add (i) plus (ii)]: | J150: =+J148+J149 -> 0
B153: WITNESS my signature, on this the | G153: day of
G158: ='Project Description'!E36&" (Taxpayer)" -> (Taxpayer)
F161: By:
B165: Notary
B168: The undersigned duly authorized representative of the Syndicator hereby certifies as follows: (1) The information contained in this Syndication Information and Certification is true and correct as of the date of its execution by the Taxpayer/Applicant; and (2) The syndication of the tax credits requested by the Syndicator has been or will be (check one):
E170: Publicly Offered* | M170: =IF(D170="","Private","Public") -> Private
C171: =IF(D170="","",D170) ->  | D171: x | E171: Privately Placed
D172: =IF(D170<>"",IF(D171<>"","You can only check one block!",""),IF(D171="","You must check at least one block!","")) -> 
B173: * If the syndication proceeds are generated through public offering, please submit copy of all filings with the SEC as Appendix B.
B176: WITNESS my signature, on this the | G176: day of
G180: =E12&" (Syndicator)" -> (Syndicator)
F182: By:
F185: Title:

Sheet Taxpayer Certification
A3: =+Instructions!A3 -> 2025 QAP Underwriting Application v1.1
A4: =TRIM('Project Description'!E84)&" ("&TRIM('Project Description'!E86)&" LA), "&'Project Description'!E50 -> ( LA),
A6: Taxpayer / Applicant Certification
B8: The undersigned Taxpayer or duly authorized representative of the same hereby certifies that the information contained in the Low Income Tax Credit Application Package, including all appendices and Exhibits attached hereto is complete and accurate as of the date hereof. The undersigned acknowledges that the information provided in this Application package or in any other document, release or communication by the Louisiana Housing Corporation (the "Corporation") has not been relied upon for purpose of making any investment decision by the Taxpayer and that any and all expenses and investments with respect to this application for an allocation of low-income housing tax credits have been or will be made on the basis of an independent judgement by the Taxpayer or upon consultation with a qualified tax consultant.
B9: The Taxpayer hereby certifies that the project can be completed and operated within the development schedule and budget set forth in the Application.
B10: The Taxpayer represents that it will furnish promptly such other supporting information, documents and fees as may be requested and/or required. In carrying out the development and operation of the project, the Taxpayer agrees to comply with all applicable federal and state laws regarding unlawful discrimination and will abide by all Corporation rules and regulations. The Taxpayer understands and agrees that the Corporation is not responsible for actions taken by the Taxpayer in reliance on a prospective tax credit reservation by the Corporation and the Taxpayer further agrees that the Corporation, its employees, agents and/or consultants shall not be responsible or liable in any manner whatsoever for expenses incurred by Taxpayer or its consultants in applying for low income housing tax credits.
B11: By execution of this Application, the Taxpayer understands and agrees that the Corporation may conduct its own independent review and analysis of the information contained herein and in the attachments hereto, that any such review and analysis will be made for the protection of the Corporation. It is further understood and agreed by the Taxpayer that, for the purpose of determining and establishing the terms and conditions under which the allocation may be made, the Corporation may request or require adjustment or changes in the information contained herein (including attachments hereto) or in any documentation or materials now or hereafter submitted in connection with this Application.
B12: The Taxpayer acknowledges that a certification of information contained in this Application will be made as of the date the Corporation reserves or allocates tax credits for the Project and as of the Placed in Service Date of the Project and that the amount of tax credits reserved and/or allocated pursuant to any forward commitment or carry forward allocation may be revised or adjusted in accordance with the feasibility/viability review as of such Placed in Service Date and in accordance with the audit of the Certificate of Actual Costs. The Taxpayer further acknowledges that the Tax Credit Regulatory Agreement (including the Compliance Monitoring Agreement attached thereto) shall be entered into prior to or simultaneously with the allocation of tax credits by the Corporation or within any year of the compliance period. The Taxpayer shall hold the Corporation, its employees, agents and/or consultants harmless in connection with any claims of damage which may be filed by the Taxpayer based upon the processing of this Application by the Corporation or its agents, employees and/or consultants.
B13: ="WITNESS my signature on "&TEXT(D28,"mmmm d yyyy") -> WITNESS my signature on January 0 1900 | D13: =+'Project Description'!E36&" (Taxpayer)" -> (Taxpayer)
C17: By:
I18: Sworn to and subscribed before me
B20: =I18&TEXT(D29,"mmmm d yyyy") -> Sworn to and subscribed before me January 0 1900
B25: ="Notary Public, State of "&D30 -> Notary Public, State of
B28: Date of Taxpayer Certification:
B29: Date of Notarization:
B30: State for Notary Public:

Sheet Reserve Adequacy
A3: =+Instructions!A3 -> 2025 QAP Underwriting Application v1.1
A4: =TRIM('Project Description'!E84)&" ("&TRIM('Project Description'!E86)&" LA), "&'Project Description'!E50 -> ( LA),
A6: Analysis of Replacement Reserve Adequacy | E6: =IF(Checklist!A170="Yes","","This exhibit is not required (no CNA is required for this transaction)") -> This exhibit is not required (no CNA is required for this transaction)
B8: Year 1 | C8: Year 2 | D8: Year 3 | E8: Year 4 | F8: Year 5 | G8: Year 6 | H8: Year 7 | I8: Year 8 | J8: Year 9 | K8: Year 10 | L8: Year 11 | M8: Year 12 | N8: Year 13 | O8: Year 14 | P8: Year 15
A10: Beginning Balance | B10: =+B20 -> 0 | C10: =+B15 -> 0 | D10: =+C15 -> 0 | E10: =+D15 -> 0 | F10: =+E15 -> 0 | G10: =+F15 -> 0 | H10: =+G15 -> 0 | I10: 0 | J10: 0 | K10: 0 | L10: 0 | M10: 0 | N10: 0 | O10: 0 | P10: 0
A11: ="+ Annual Deposit" -> + Annual Deposit | B11: =+B21 -> 0 | C11: =ROUND(B11*(1+B22),0) -> 0 | D11: =ROUND(C11*(1+B22),0) -> 0 | E11: =ROUND(D11*(1+B22),0) -> 0 | F11: =ROUND(E11*(1+B22),0) -> 0 | G11: =ROUND(F11*(1+B22),0) -> 0 | H11: =ROUND(G11*(1+B22),0) -> 0 | I11: =ROUND(H11*(1+B22),0) -> 0 | J11: =ROUND(I11*(1+B22),0) -> 0 | K11: =ROUND(J11*(1+B22),0) -> 0 | L11: =ROUND(K11*(1+B22),0) -> 0 | M11: =ROUND(L11*(1+B22),0) -> 0 | N11: =ROUND(M11*(1+B22),0) -> 0 | O11: =ROUND(N11*(1+B22),0) -> 0 | P11: =ROUND(O11*(1+B22),0) -> 0
A12: ="- Anticipated Needs" -> - Anticipated Needs | B12: =-B31 -> 0 | C12: =-C31 -> 0 | D12: 0 | E12: 0 | F12: 0 | G12: 0 | H12: 0 | I12: 0 | J12: 0 | K12: 0 | L12: 0 | M12: 0 | N12: 0 | O12: 0 | P12: 0
A13: ="+ Interest at "&TEXT(B23,"#0.00%") -> + Interest at 1.00% | B13: =ROUND((B10+MIN(0,B11+B12))*B23,0) -> 0 | C13: =ROUND((C10+MIN(0,C11+C12))*B23,0) -> 0 | D13: =ROUND((D10+MIN(0,D11+D12))*B23,0) -> 0 | E13: =ROUND((E10+MIN(0,E11+E12))*B23,0) -> 0 | F13: =ROUND((F10+MIN(0,F11+F12))*B23,0) -> 0 | G13: =ROUND((G10+MIN(0,G11+G12))*B23,0) -> 0 | H13: =ROUND((H10+MIN(0,H11+H12))*B23,0) -> 0 | I13: =ROUND((I10+MIN(0,I11+I12))*B23,0) -> 0 | J13: =ROUND((J10+MIN(0,J11+J12))*B23,0) -> 0 | K13: =ROUND((K10+MIN(0,K11+K12))*B23,0) -> 0 | L13: =ROUND((L10+MIN(0,L11+L12))*B23,0) -> 0 | M13: =ROUND((M10+MIN(0,M11+M12))*B23,0) -> 0 | N13: =ROUND((N10+MIN(0,N11+N12))*B23,0) -> 0 | O13: =ROUND((O10+MIN(0,O11+O12))*B23,0) -> 0 | P13: =ROUND((P10+MIN(0,P11+P12))*B23,0) -> 0
A15: Ending Balance | B15: =SUM(B9:B14) -> 0 | C15: 0 | D15: 0 | E15: 0 | F15: 0 | G15: 0 | H15: 0 | I15: 0 | J15: 0 | K15: 0 | L15: 0 | M15: 0 | N15: 0 | O15: 0 | P15: 0
A16: Per Unit | B16: =IF(B25=0,0,B15/B25) -> 0 | C16: =IF(B25=0,0,C15/B25) -> 0 | D16: =IF(B25=0,0,D15/B25) -> 0 | E16: =IF(B25=0,0,E15/B25) -> 0 | F16: =IF(B25=0,0,F15/B25) -> 0 | G16: =IF(B25=0,0,G15/B25) -> 0 | H16: =IF(B25=0,0,H15/B25) -> 0 | I16: =IF(B25=0,0,I15/B25) -> 0 | J16: =IF(B25=0,0,J15/B25) -> 0 | K16: =IF(B25=0,0,K15/B25) -> 0 | L16: =IF(B25=0,0,L15/B25) -> 0 | M16: =IF(B25=0,0,M15/B25) -> 0 | N16: =IF(B25=0,0,N15/B25) -> 0 | O16: =IF(B25=0,0,O15/B25) -> 0 | P16: =IF(B25=0,0,P15/B25) -> 0
A17: Ending balance problem? | B17: =IF(B16<B26,"Problem","") ->  | C17: =IF(C16<B26,"Problem","") ->  | D17: =IF(D16<B26,"Problem","") ->  | E17: =IF(E16<B26,"Problem","") ->  | F17: =IF(F16<B26,"Problem","") ->  | G17: =IF(G16<B26,"Problem","") ->  | H17: =IF(H16<B26,"Problem","") ->  | I17: =IF(I16<B26,"Problem","") ->  | J17: =IF(J16<B26,"Problem","") ->  | K17: =IF(K16<B26,"Problem","") ->  | L17: =IF(L16<B26,"Problem","") ->  | M17: =IF(M16<B26,"Problem","") ->  | N17: =IF(N16<B26,"Problem","") ->  | O17: =IF(O16<B26,"Problem","") ->  | P17: =IF(P16<B26,"Problem","") -> 
A19: Inputs:
A20: Initial Deposit | B20: =+'Development Costs'!C101 -> 0 | C20: (from Development Costs worksheet)
A21: Annual Deposit (Year 1) | B21: ='Project Description'!H987 -> 0 | C21: =" (from Section "&'Project Description'!L950&")" -> (from Section 28) | G21: =AVERAGE(B29:P29) -> 0 | H21: average annual uninflated capital needs | L21: =AVERAGE(B31:P31) -> 0 | M21: average annual inflated capital needs
A22: Annual deposit escalation | B22: =+'Project Description'!H971 -> 0 | C22: =" (from Section "&'Project Description'!L950&")" -> (from Section 28)
A23: Interest Rate | B23: 0.01 | C23: (LHC standard)
A24: Inflation Rate | B24: 0.02 | C24: (LHC standard)
A25: Total Units | B25: =+'Unit Mix and Rents'!F41 -> 0 | C25: (from Unit Mix and Rents worksheet)
A26: Minimum Balance Per Unit | B26: =IF(B25=0,0,ROUND(MAX(B11:P11)/6/B25,0)) -> 0 | C26: (per QAP definition of Minimum Reserve Balance)
B28: =+B8 -> Year 1 | C28: Year 2 | D28: Year 3 | E28: Year 4 | F28: Year 5 | G28: Year 6 | H28: Year 7 | I28: Year 8 | J28: Year 9 | K28: Year 10 | L28: Year 11 | M28: Year 12 | N28: Year 13 | O28: Year 14 | P28: Year 15
A29: Capital Needs (uninflated) | B29: 0 | C29: 0 | D29: 0 | E29: 0 | F29: 0 | G29: 0 | H29: 0 | I29: 0 | J29: 0 | K29: 0 | L29: 0 | M29: 0 | N29: 0 | O29: 0 | P29: 0
A30: Inflation Factor | B30: 1 | C30: =+B30*(1+B24) -> 1.02 | D30: =+C30*(1+B24) -> 1.0404 | E30: =+D30*(1+B24) -> 1.061208 | F30: =+E30*(1+B24) -> 1.08243216 | G30: =+F30*(1+B24) -> 1.104080803 | H30: =+G30*(1+B24) -> 1.126162419 | I30: =+H30*(1+B24) -> 1.148685668 | J30: =+I30*(1+B24) -> 1.171659381 | K30: =+J30*(1+B24) -> 1.195092569 | L30: =+K30*(1+B24) -> 1.21899442 | M30: =+L30*(1+B24) -> 1.243374308 | N30: =+M30*(1+B24) -> 1.268241795 | O30: =+N30*(1+B24) -> 1.29360663 | P30: =+O30*(1+B24) -> 1.319478763
A31: Capital Needs (inflated) | B31: =ROUND(B29*B30,0) -> 0 | C31: =ROUND(C29*C30,0) -> 0 | D31: 0 | E31: 0 | F31: 0 | G31: 0 | H31: 0 | I31: 0 | J31: 0 | K31: 0 | L31: 0 | M31: 0 | N31: 0 | O31: 0 | P31: 0
A35: 0.35 | B35: =+B36*A35 -> 0 | C35: =+C36*A35 -> 15657.25 | D35: =+D36*A35 -> 36157.1 | E35: =+E36*A35 -> 45608.85 | F35: =+F36*A35 -> 73378.55 | G35: =+G36*A35 -> 61160.05 | H35: =+H36*A35 -> 67405.8 | I35: =+I36*A35 -> 40906.6 | J35: =+J36*A35 -> 20623.05 | K35: =+K36*A35 -> 26548.55 | L35: =+L36*A35 -> 32116.7 | M35: =+M36*A35 -> 43943.2 | N35: =+N36*A35 -> 37819.6 | O35: =+O36*A35 -> 42477.75 | P35: =+P36*A35 -> 49092.4
B36: 0 | C36: 44735 | D36: 103306 | E36: 130311 | F36: 209653 | G36: 174743 | H36: 192588 | I36: 116876 | J36: 58923 | K36: 75853 | L36: 91762 | M36: 125552 | N36: 108056 | O36: 121365 | P36: 140264

Sheet App 1 Owner Info
A3: =+Instructions!A3 -> 2025 QAP Underwriting Application v1.1
A4: =TRIM('Project Description'!E84)&" ("&TRIM('Project Description'!E86)&" LA), "&'Project Description'!E50 -> ( LA),
A6: Appendix 1: Ownership Information
A8: Note: The Corporation reserves tax credits to the Taxpayer and the controlling party of the Taxpayer. Reservations are not transferrable. Any change in controlling party is deemed a material change.
B10: Taxpayer Entity Name: | D10: =+'Project Description'!E36 -> 0
B11: Taxpayer Is: | D11: =+'Project Description'!E43 -> 0
B12: Taxpayer Federal Tax ID Number: | D12: =+'Project Description'!E42 -> 0
B14: Controlling Principal Entity Name: | D14: =+'Project Description'!E45 -> 0
B15: Controlling Principal Role: | D15: =+'Project Description'!E46 -> 0
B17: Contact Person: | D17: =+'Project Description'!E39 -> 0
B18: Email: | D18: =+'Project Description'!E41 -> 0
B19: Telephone: | D19: =+'Project Description'!E40 -> 0
B21: Controlling Principal % Ownership | D21: 0
B23: ="I. PREVIOUS PARTICIPATION OF "&'Project Description'!E46 -> I. PREVIOUS PARTICIPATION OF
B25: ="List all projects in which the "&D15&J25 -> List all projects in which the 0 has requested an allocation of low-income housing tax credits or sold a project which received an allocation of low income housing tax credits. Attach a separate sheet with additional information if necessary. | J25: has requested an allocation of low-income housing tax credits or sold a project which received an allocation of low income housing tax credits. Attach a separate sheet with additional information if necessary.
G27: Application
C28: Project Name and Location | G28: Date | H28: Status
H30: Missing
H32: Missing
H34: Missing
B36: II. DISCLOSURE OF IDENTITIES OF INTEREST RELATED PARTIES:
B38: =+J38 -> The undersigned duly authorized representative of the Developer/Taxpayer hereby certifies under penalty of perjury that the following persons are (i) members of the Corporation's Board of Commissioners or Corporation Staff who are related to or have any identity of interest with the Developer/Taxpayer or (ii) affiliates, employees, consultants or otherwise related to or having an identity of interest with the Developer/Taxpayer and who have applied for an Allocation of Tax Credits in the calendar year within which this Application has been submitted or who have any interests in any project receiving Tax Credits and/or projects subject to compliance monitoring by the Corporation. | J38: The undersigned duly authorized representative of the Developer/Taxpayer hereby certifies under penalty of perjury that the following persons are (i) members of the Corporation's Board of Commissioners or Corporation Staff who are related to or have any identity of interest with the Developer/Taxpayer or (ii) affiliates, employees, consultants or otherwise related to or having an identity of interest with the Developer/Taxpayer and who have applied for an Allocation of Tax Credits in the calendar year within which this Application has been submitted or who have any interests in any project receiving Tax Credits and/or projects subject to compliance monitoring by the Corporation.
B40: Related Board Members and Staff:
B42: (1)
B43: (2)
B44: (3)
B45: (4)
B46: (5)
B48: Related Affiliates, Employees, Consultants, Etc.:
B50: (1)
B51: (2)
B52: (3)
B53: (4)
B54: (5)
B56: =+J56&'Project Description'!E46&L56 -> The undersigned duly authorized representative of the owner (the "Taxpayer") of the captioned project (the "Project") hereby certifies under penalty of perjury that the Contractor certifying the construction and/or rehabilitation requirements for the Project as well as the cost estimates for the Project bears a relationship either to the Taxpayer or the within the meaning of Section 267(b) orSection 707(b)(1) of the Internal Revenue Code of 1986, as amended, after substituting 5% for 50% in Section 267(b) and Section 707(b)(1) and does not have any identity of interest with any member of the Board, staff, consultant or other affiliate of the Corporation. | J56: The undersigned duly authorized representative of the owner (the "Taxpayer") of the captioned project (the "Project") hereby certifies under penalty of perjury that the Contractor certifying the construction and/or rehabilitation requirements for the Project as well as the cost estimates for the Project bears a relationship either to the Taxpayer or the | L56: within the meaning of Section 267(b) orSection 707(b)(1) of the Internal Revenue Code of 1986, as amended, after substituting 5% for 50% in Section 267(b) and Section 707(b)(1) and does not have any identity of interest with any member of the Board, staff, consultant or other affiliate of the Corporation.
B58: ="WITNESS my signature on "&TEXT(D73,"mmmm d yyyy") -> WITNESS my signature on January 0 1900
C60: ="Builder "&IF('Project Description'!H64="Yes","IS","IS NOT")&" related to Taxpayer or "&D15 -> Builder IS NOT related to Taxpayer or 0
F62: =+'App 1 Owner Info'!D10&" (Taxpayer)" -> 0 (Taxpayer)
E65: By:
B66: =J66&TEXT(D74,"mmmm d yyyy") -> Sworn to and subscribed before me January 0 1900 | J66: Sworn to and subscribed before me
J68: Builder IS related to Taxpayer or General Partner
J69: Builder IS NOT related to Taxpayer or General Partner
